Workbook

Sheet Main Sheet
B1: 1. For faster sweep execution, minimize the screen hide the graphs. | H1: 1-minute data | I1: Tracking Method | J1: Meas. GH | K1: Clear Sky PA | L1: PA Calc. Method 1 | M1: Meas. PA | P1: Clear Sky | Q1: Clear Sky | R1: Clear Sky | S1: Clear Sky | T1: Clear Sky | U1: Clear Sky | V1: Clear Sky | W1: Clear Sky | X1: Clear Sky | Y1: Clear Sky | AC1: GH_AVG | AD1: GH_MIN | AE1: GH_MAX | AF1: GH_AVG | AG1: DH_1 | AH1: DH_2 | AI1: DH_3 | AJ1: PA_AVG | AK1: PA_MIN | AL1: PA_MAX | AM1: PA_AVG | AN1: GHX_AVG | AO1: GHX_AVG | AT1: Meas. DH | AW1: Calc. Method 1 PA | AY1: Meas. PA | CJ1: Clear Sky | CL1: Clear Sky | DC1: GH_AVG | DD1: GH_MIN | DE1: GH_MAX | DF1: GH_AVG | DG1: DH_1 | DH1: DH_2 | DI1: DH_3 | DJ1: PA_AVG | DK1: PA_MIN | DL1: PA_MAX | DM1: PA_AVG | DN1: GHX_AVG | DO1: GHX_AVG
B2: 2. Is best to not re-save this spreadsheet in case you have accidently | H2: only | I2: 0 = None | J2: kWh/m2 | K2: kWh/m2 | L2: kWh/m2 | M2: kWh/m2 | P2: Apparent | Q2: Optical | S2: Diffuse | U2: kWh/m2 | V2: kWh/m2 | W2: kWh/m2 | X2: kWh/m2 | Y2: kWh/m2 | AC2: kWh/m2 | AD2: kWh/m2 | AE2: kWh/m2 | AF2: kWh/m2 | AG2: kWh/m2 | AH2: kWh/m2 | AI2: kWh/m2 | AJ2: kWh/m2 | AM2: Sum | AN2: kWh/m2 | AO2: Running | AT2: kWh/m2 | AW2: kWh/m2 | AY2: kWh/m2 | CJ2: kWh/m2 | CL2: kWh/m2 | DC2: kWh/m2 | DD2: kWh/m2 | DE2: kWh/m2 | DF2: Running | DG2: kWh/m2 | DH2: kWh/m2 | DI2: kWh/m2 | DJ2: kWh/m2 | DM2: Sum | DN2: kWh/m2 | DO2: Running
A3: Year | B3: changed some of the cells that contain imbedded instructions or formulas. | H3: Loop Timer | I3: 1 = Single Axis | J3: One Day | K3: One Day | L3: One Day | M3: One Day | P3: Exterrest | Q3: Depth | S3: Factor C | U3: Daily IBC | V3: Daily IBH | W3: Daily IDC | X3: Daily IRC | Y3: Daily IC | AC3: Daily | AD3: Daily | AE3: Daily | AF3: Sum | AG3: Daily | AH3: Daily | AI3: Daily | AJ3: Daily | AN3: Daily | AO3: Sum | AT3: Daily | AW3: Daily | AY3: Daily | CJ3: DH Daily | CL3: GH Daily | DC3: Daily | DD3: Daily | DE3: Daily | DF3: Sum | DG3: Daily | DH3: Daily | DI3: Daily | DJ3: Daily | DN3: Daily | DO3: Sum
A4: 2013 | B4: Prof. Mack Grady, Baylor University, Feb. 27, 2013 | H4: 13:40:07 | I4: 2 = Tilt Only | J4: =$DC$4 -> 6.423061321 | K4: =$Y4 -> 7.261287588 | L4: =$AW4 -> 8.45765301 | M4: =$DJ$4 -> 8.505758461 | P4: Flux A | U4: =$U1453 -> 6.62464432 | V4: =$V1453 -> 4.933975566 | W4: =$W1453 -> 0.5624639119 | X4: =$X1453 -> 0.07417935682 | Y4: =$Y1453 -> 7.261287588 | AC4: =$AC1453 -> 6.423061321 | AD4: =$AD1453 -> 6.378381437 | AE4: =$AE1453 -> 6.463821864 | AF4: =MAX(AF13:AF1452)/1000 -> 6.424 | AG4: =$AG1453 -> 0.4753631163 | AH4: =$AH1453 -> 0.4743983495 | AI4: =$AI1453 -> 0.4745584831 | AJ4: =$AJ1453 -> 8.505758461 | AK4: =$AK1453 -> 8.446180466 | AL4: =$AL1453 -> 8.55974894 | AM4: =$AM1453 -> 49.25438664 | AN4: =$AN1453 -> 6.043491287 | AO4: =MAX(AO13:AO1452)/1000 -> 6.045 | AT4: =$AT1453 -> 0.4679169993 | AW4: =$AW1453 -> 8.45765301 | AY4: =$AY1453 -> 8.499727828 | CJ4: =$CJ1453 -> 0.6028470039 | CL4: =$CL1453 -> 5.53682257 | DC4: =DC1453 -> 6.423061321 | DD4: =DD1453 -> 6.378381437 | DE4: 6.463821864 | DF4: 6.424 | DG4: 0.4753631163 | DH4: 0.4743983495 | DI4: 0.4745584831 | DJ4: 8.505758461 | DK4: 8.446180466 | DL4: 8.55974894 | DM4: 49.25438664 | DN4: 6.043491287 | DO4: 6.045
A5: Day of Year | B5: Measurement and Panel Latitude | C5: Measurement and Panel Longitude Shift | E5: Panel Tilt | F5: Panel Az. | G5: Panel Tilt Sweep | H5: Panel Az Sweep | I5: 3 = Sun Following | J5: Clear Sky GH One Day | K5: Clear Sky DH One Day | L5: Meas. DH, One Day | M5: Meas. GHX One Day | P5: Master's Eq (7.22) | Q5: Master's Eq (7.23) | R5: Master's Eq (7.21) | S5: Master's Eq (7.28) | T5: Master's Eq (7.27) | Y5: on panel
A6: 57 | B6: 31.35 | C6: -13.68 | E6: 30 | F6: 180 | I6: 0 | J6: =CL4 -> 5.53682257 | K6: =CJ4 -> 0.6028470039 | L6: =AT4 -> 0.4679169993 | M6: =$DN$4 -> 6.043491287 | P6: A1 | X6: Master's | BJ6: Tracking | BK6: Tracking | BL6: Tracking | BM6: Tracking | BN6: Tracking | BP6: Tracking | BR6: Tracking | BS6: Tracking | BT6: Tracking | BU6: Tracking
A7: TOYAH_SOLAR_2013_057_FEB_26.dat | O7: Clear Sky | P7: 1160 | X7: Eq. (7.30) | BJ7: Method 0 | BK7: Method 0 | BL7: Method 0 | BM7: Method 2 | BN7: Method 2 | BP7: Method 2 | BR7: Method 1 | BS7: Method 1 | BT7: Method 3 | BU7: Method 3 | CI7: Clear Sky | CJ7: Clear Sky | CK7: Clear Sky | CL7: Clear Sky | CN7: Sunrise | CO7: Sunrise | CP7: Sunrise | CQ7: Sunset | CR7: Sunset | CS7: Sunset | CT7: Sunrise | CU7: Sunset
A8: Sun declination angle | B8: Equation of time (mins) | C8: Solar time correction (hours) | D8: Hours of sun | E8: Sunrise (clock time) | F8: Sunset (clock time) | G8: Sunrise (decimal hour) | H8: Sunset (decimal hour) | I8: Solar Noon (decimal clock time) | J8: Solar Noon (clock time) | O8: Master's Eq (7.4) | P8: Pk-to-Pk Variation A2 | Q8: K1 | S8: C1 | U8: Master's Eq (7.24) | V8: Master's Eq (7.25) | W8: Master's Eq (7.29) | X8: Ground Reflectance | Y8: Master's Eq (7.32) | BJ8: No Tracking | BK8: No Tracking | BL8: No Tracking | BM8: Tilt Tracking | BN8: Tilt Tracking | BP8: Tilt Tracking | BR8: Single-Axis Rotation, Tilt and Azimuth Specified | BS8: Single-Axis Rotation, Tilt and Azimuth Specified | BX8: Constrained | BY8: Cosine of Constrained | CI8: Master's Eq (7.25) | CJ8: Master's Eq (7.29) | CK8: Master's Eq (7.30) | CL8: Master's Eq (7.32) | CN8: Elevation | CO8: Decimal | CP8: Clock | CQ8: Elevation | CR8: Decimal | CS8: Clock | CT8: Azimuth | CU8: Azimuth
A9: =23.45*SIN(360/365*($A$6-81)*PI()/180) -> -9.414893347 | B9: =9.87*SIN(2*360/365*($A$6-81)*PI()/180)-7.53*COS(360/365*($A$6-81)*PI()/180)-1.5*SIN(360/365*($A$6-81)*PI()/180) -> -13.55279212 | C9: =$B$9/60+$C$6/15 -> -1.137879869 | D9: =L1453 -> 11.23333333 | E9: =$CP$11 -> 731 | F9: =$CS$11 -> 1845 | G9: =INT(E9/100)+(E9-100*INT(E9/100))/60 -> 7.516666667 | H9: =INT(F9/100)+(F9-100*INT(F9/100))/60 -> 18.75 | I9: =12-C9 -> 13.13787987 | J9: =INT(I9)*100+(I9-INT(I9))*60 -> 1308.272792 | K9: Sun | M9: Incident Angle for this | P9: 75 | Q9: 0.174 | R9: Beam Reaching | S9: 0.095 | T9: Diffuse | U9: Beam | V9: Beam | W9: Diffuse | X9: 0.2 | AA9: Year = | AB9: =$A$4 -> 2013 | AC9: Day of Year = | AD9: =$A$6 -> 57 | AW9: Solar Radiation on Panel | AY9: Solar Radiation on Panel | BD9: Day of Year | BE9: Sun declination angle | BF9: Equation of time (mins) | BH9: Solar Noon wrt Clock Noon (mins) | BJ9: Cosine of Constrained | BL9: Constrained | BM9: Azimuth Specified | BN9: Azimuth Specified | BO9: Sun | BP9: Azimuth Specified | BQ9: Sun | BR9: Optimum | BS9: Only | BT9: Sun Following | BU9: Sun Following | BW9: Incident Angle | BX9: Incident Angle | BY9: Incident Angle | CI9: Beam | CJ9: Diffuse | CK9: =X9 -> 0.2 | CL9: Total | CN9: Minute | CO9: Hour | CP9: Hour,Min | CQ9: Minute | CR9: Hour | CS9: Hour,Min | CT9: Minute | CU9: Minute | DB9: =$A$4 -> 2013 | DC9: Day of Year = | DD9: =$A$6 -> 57
C10: Clock | D10: Solar | F10: Cosine | G10: Zenith | H10: Elevation | I10: East-facing | J10: South-facing | K10: Azimuth Angle | M10: Tracking | O10: Air | P10: Day Lag NA | Q10: K2 | R10: Earth | S10: C2 | T10: Radiation | U10: on Panel | V10: on Horiz. Panel | W10: on Panel | X10: Reflected on Panel | Y10: Total on Panel | AA10: Note - 1-Min data only | AC10: Measured | AD10: Measured | AE10: Measured | AF10: Measured | AG10: Measured | AH10: Measured | AI10: Measured | AJ10: Measured | AK10: Measured | AL10: Measured | AM10: Measured | AN10: Measured | AO10: Measured | AP10: Measured | AQ10: Measured | AR10: Measured | AS10: Measured | AT10: DH = Min | AU10: Calc. Method 1 | AV10: Calc. Method 1 Constrained | AW10: Calc. Method 1 | AY10: Licor | AZ10: First | BA10: Last | BJ10: Incident | BK10: Incident | BL10: Incident | BM10: Panel Tilt | BN10: Unconstrained | BO10: =G10 -> Zenith | BP10: Constrained | BQ10: Azimuth | BR10: Rotation | BS10: Incident | BT10: Panel Tilt | BU10: Incident | BW10: for the Chosen | BX10: for the Chosen | BY10: for the Chosen | CA10: Measured | CB10: Measured | CC10: Measured | CD10: Measured | CE10: Measured | CF10: Measured | CI10: on Horiz. Panel | CJ10: on Horiz. Panel | CK10: Reflected on Horiz. Panel | CL10: on Horiz. Panel | CN10: Before | CO10: Calc | CP10: Calc | CQ10: After | CR10: Calc | CS10: Calc | CT10: Before | CU10: After | CX10: DH = Max | DC10: Measured | DD10: Measured | DE10: Measured | DF10: Measured | DG10: Measured | DH10: Measured | DI10: Measured | DJ10: Measured | DK10: Measured | DL10: Measured | DM10: Measured | DN10: Measured | DO10: Measured | DP10: Measured | DQ10: Measured | DR10: Measured | DS10: Measured | EA10: Measured | EB10: Measured | EC10: Measured | ED10: Measured | EE10: Measured | EF10: Measured
A11: Local | B11: Local | C11: time | D11: time | E11: Hour angle | F11: Zenith | G11: Angle | H11: Angle | I11: vertical surface | J11: vertical surface | K11: Degrees | M11: Method | O11: Mass | P11: 275 | Q11: 0.035 | R11: IB | S11: 0.04 | T11: IDH | U11: IBC | V11: IBH | W11: IDC | X11: IRC | Y11: IC | AC11: GH_AVG | AD11: GH_MIN | AE11: GH_MAX | AF11: GH_AVG | AG11: DH_1 | AH11: DH_2 | AI11: DH_3 | AJ11: PA_AVG | AK11: PA_MIN | AL11: PA_MAX | AM11: PA | AN11: GHX_AVG | AO11: GHX_AVG | AP11: Telapse | AQ11: DH_1 Band | AR11: DH_2 Band | AS11: DH_3 Band | AT11: of | AU11: Uses DH, GH | AV11: Sun Zenith Angle | AY11: Plane of Array | AZ11: Sunshine | BA11: Sunshine | BJ11: Angle | BK11: Angle | BL11: Angle | BM11: Angle | BN11: Incident Angle | BO11: =G11 -> Angle | BP11: Incident Angle | BQ11: Angle | BR11: Angle | BS11: Angle | BT11: Angle | BU11: Angle | BW11: Tracking Method | BX11: Tracking Method | BY11: Tracking Method | CA11: GH | CB11: PA | CC11: GHX | CD11: Batt | CE11: Logger | CF11: Readings | CI11: IBH | CJ11: IDC | CK11: IRC | CL11: IC | CN11: =SUM(CN14:CN1451) -> -0.09713774064 | CO11: 7.524392769 | CP11: 731 | CQ11: -0.1923886414 | CR11: 18.7513743 | CS11: 1845 | CT11: 100.9828273 | CU11: 258.9462261 | CX11: of | DC11: GH_AVG | DD11: GH_MIN | DE11: GH_MAX | DF11: GH_AVG | DG11: DH_1 | DH11: DH_2 | DI11: DH_3 | DJ11: PA_AVG | DK11: PA_MIN | DL11: PA_MAX | DM11: PA | DN11: GHX_AVG | DO11: GHX_AVG | DP11: Telapse | DQ11: DH_1 Band | DR11: DH_2 Band | DS11: DH_3 Band | EA11: GH | EB11: PA | EC11: GHX | ED11: Batt | EE11: Logger | EF11: Readings
A12: Hour | B12: Minute | C12: Tlocal | D12: Tsolar | E12: Degrees | F12: Angle | G12: Degrees | H12: Degrees | I12: fve | J12: fvs | K12: (+/-) | L12: Sunshine | M12: Degrees | O12: Ratio m | P12: A (W/m2) | Q12: k | R12: W/m2 | S12: Factor C | T12: W/m2 | U12: W/m2 | V12: W/m2 | W12: W/m2 | X12: W/m2 | Y12: W/m2 | AA12: Hour_Min | AB12: Hour_Min | AC12: W/m2 | AD12: W/m2 | AE12: W/m2 | AF12: Running Sum | AG12: W/m2 | AH12: W/m2 | AI12: W/m2 | AJ12: W/m2 | AK12: W/m2 | AL12: W/m2 | AM12: Sum | AN12: W/m2 | AO12: Running Sum | AP12: Seconds | AQ12: Position | AR12: Position | AS12: Position | AT12: DH_1,DH_2,DH_3 | AU12: (GH - DH) | AV12: Degrees | AW12: P on Panel | AY12: P on Panel | AZ12: Row | BA12: Row | BK12: Degrees | BL12: Degrees | BM12: Degrees | BN12: Degrees | BO12: =G12 -> Degrees | BP12: =H12 -> Degrees | BQ12: Degrees | BR12: Degrees | BS12: Degrees | BT12: Degrees | BU12: =BP12 -> Degrees | BW12: Degrees | BX12: Degrees | CA12: Const | CB12: Const | CC12: Const | CD12: Volts | CE12: Temp | CF12: Averaged | CI12: W/m2 | CJ12: W/m2 | CK12: W/m2 | CL12: W/m2 | CX12: DH_1,DH_2,DH_3 | DB12: Hour_Min | DC12: W/m2 | DD12: W/m2 | DE12: W/m2 | DF12: Running Sum | DG12: W/m2 | DH12: W/m2 | DI12: W/m2 | DJ12: W/m2 | DK12: W/m2 | DL12: W/m2 | DM12: Sum | DN12: W/m2 | DO12: Running Sum | DP12: Seconds | DQ12: Position | DR12: Position | DS12: Position | EA12: Const | EB12: Const | EC12: Const | ED12: Volts | EE12: Temp | EF12: Averaged
A13: 0 | B13: 0 | C13: =A13+B13/60 -> 0 | D13: =C13+$C$9 -> -1.137879869 | E13: =180*(12-D13)/12 -> 197.068198 | F13: =SIN($B$6*PI()/180)*SIN($A$9*PI()/180)+COS($B$6*PI()/180)*COS($A$9*PI()/180)*COS(E13*PI()/180) -> -0.8905004707 | G13: =ACOS(F13)*180/PI() -> 152.9362033 | H13: =90-G13 -> -62.93620331 | I13: =COS($A$9*PI()/180)*SIN(E13*PI()/180) -> -0.2895560956 | J13: =-SIN($A$9*PI()/180)*COS($B$6*PI()/180)+COS($A$9*PI()/180)*SIN($B$6*PI()/180)*COS(E13*PI()/180) -> -0.3509503942 | K13: =IF(I13>0,ACOS(-J13/SQRT(I13^2+J13^2))*180/PI(),(PI()+ACOS(J13/SQRT(I13^2+J13^2)))*180/PI()) -> 320.4752297 | L13: =IF(H13<0,0,1) -> 0 | M13: =$BX13 -> 90 | O13: =IF($L13>0,1/F13,0) -> 0 | P13: =IF($L13>0,$P$7+$P$9*SIN(360/365*($A$6-$P$11)*PI()/180),0) -> 0 | Q13: =IF($L13>0,$Q$9+$Q$11*SIN(360/365*($A$6-100)*PI()/180),0) -> 0 | R13: =IF($L13>0,P13*EXP(-Q13*O13),0) -> 0 | S13: =IF($L13>0,$S$9+$S$11*SIN(360/365*($A$6-100)*PI()/180),0) -> 0 | T13: =IF($L13>0,S13*R13,0) -> 0 | U13: =IF($L13>0,IF(M13<=90,R13*COS(M13*PI()/180),0),0) -> 0 | V13: =IF($L13>0,R13*F13,0) -> 0 | W13: =IF($L13,T13*(1+COS($E$6*PI()/180))/2,0) -> 0 | X13: =IF($L13>0,$X$9*(V13+T13)*(1-COS($E$6*PI()/180))/2,0) -> 0 | Y13: =IF($L13>0,U13+W13+X13,0) -> 0 | AA13: 0 | AT13: =MIN(AG13:AI13) -> 0 | AU13: =IF($L13>0,AC13-AT13,0) -> 0 | AV13: =IF(G13<90,IF(G13>80,80,G13),G13) -> 152.9362033 | AW13: =IF($L13>0,IF($M13>-0.001,IF($M13<90,IF($AU13>0,$AT13+$AU13/COS($AV13*PI()/180)*COS($M13*PI()/180),AT13),AT13),AT13),0) -> 0 | AY13: =IF($L13>0,AJ13,0) -> 0 | AZ13: =IF(L13=1,IF(L12=0,ROW(),0),0) -> 0 | BA13: =IF(L13=1,IF(L14=0,ROW(),0),0) -> 0 | BD13: 1 | BE13: =23.45*SIN(360/365*(BD13-81)*PI()/180) -> -23.01163673 | BF13: =9.87*SIN(2*360/365*(BD13-81)*PI()/180)-7.53*COS(360/365*(BD13-81)*PI()/180)-1.5*SIN(360/365*(BD13-81)*PI()/180) -> -3.705178323 | BH13: =BF13+$C$6*60/15 -> -58.42517832 | BJ13: =COS(BL13*PI()/180) -> 6.125742275e-17 | BK13: =IF($L13>0,180/PI()*ACOS(SIN($G13*PI()/180)*SIN($E$6*PI()/180)*COS(($K13-$F$6)*PI()/180)+$F13*COS($E$6*PI()/180)),90) -> 90 | BL13: =IF(BK13>90,90,BK13) -> 90 | BM13: =IF($L13>0,180/PI()*ASIN(SQRT(1/(1+COS($BO13*PI()/180) * COS($BO13*PI()/180) /SIN($BO13*PI()/180)/SIN($BO13*PI()/180)/COS(($K13-$F$6)*PI()/180)/COS(($K13-$F$6)*PI()/180)))),0) -> 0 | BN13: =IF($L13>0,180/PI()*ACOS(SIN($G13*PI()/180)*SIN($BM13*PI()/180)*COS(($K13-$F$6)*PI()/180)+$F13*COS($BM13*PI()/180)),90) -> 90 | BO13: =G13 -> 152.9362033 | BP13: =IF(BN13<BO13,BN13,BO13) -> 90 | BQ13: =K13 -> 320.4752297 | BR13: =IF($L13>0,180/PI()*ATAN(SIN($BO13*PI()/180)*SIN($BQ13*PI()/180)/(SIN($E$6*PI()/180)*SIN($BO13*PI()/180)*COS($BQ13*PI()/180)-COS($E$6*PI()/180)*COS($BO13*PI()/180))),0) -> 0 | BS13: =IF($L13>0,180/PI()*ACOS(-SIN(BR13*PI()/180)*SIN($BO13*PI()/180)*SIN(BQ13*PI()/180)-SIN($E$6*PI()/180)*COS(BR13*PI()/180)*SIN($BO13*PI()/180)*COS(BQ13*PI()/180)+COS($E$6*PI()/180)*COS($BR13*PI()/180)*COS(BO13*PI()/180)),90) -> 90 | BT13: =IF($L13>0,180/PI()*ASIN(SQRT(1/(1+$F13*$F13/SIN($G13*PI()/180)/SIN($G13*PI()/180)))),0) -> 0 | BU13: =IF($L13>0,0,90) -> 90 | BW13: =IF($I$6=0,$BL13,IF($I$6=1,$BS13,IF($I$6=2,$BP13,IF($I$6=3,$BU13)))) -> 90 | BX13: =IF(BW13<90,BW13,90) -> 90 | BY13: =COS(BX13*PI()/180) -> 6.125742275e-17 | CI13: =V13 -> 0 | CJ13: =IF($L13,T13,0) -> 0 | CK13: 0 | CL13: =SUM(CI13:CK13) -> 0 | CN13: Not Used | CO13: Not Used | CP13: Not Used | CQ13: Not Used | CR13: Not Used | CS13: Not Used | CT13: Not Used | CU13: Not Used | CX13: =MAX(AG13:AI13) -> 0
A14: 0 | B14: =B13+1 -> 1 | C14: 0.01666666667 | D14: -1.121213202 | E14: =180*(12-D14)/12 -> 196.818198 | F14: =SIN($B$6*PI()/180)*SIN($A$9*PI()/180)+COS($B$6*PI()/180)*COS($A$9*PI()/180)*COS(E14*PI()/180) -> -0.8915717735 | G14: 153.0714246 | H14: -63.07142456 | I14: =COS($A$9*PI()/180)*SIN(E14*PI()/180) -> -0.2854383937 | J14: =-SIN($A$9*PI()/180)*COS($B$6*PI()/180)+COS($A$9*PI()/180)*SIN($B$6*PI()/180)*COS(E14*PI()/180) -> -0.3516030377 | K14: =IF(I14>0,ACOS(-J14/SQRT(I14^2+J14^2))*180/PI(),(PI()+ACOS(J14/SQRT(I14^2+J14^2)))*180/PI()) -> 320.9296157 | L14: =IF(H14<0,0,1) -> 0 | M14: =$BX14 -> 90 | O14: 0 | P14: =IF($L14>0,$P$7+$P$9*SIN(360/365*($A$6-$P$11)*PI()/180),0) -> 0 | Q14: =IF($L14>0,$Q$9+$Q$11*SIN(360/365*($A$6-100)*PI()/180),0) -> 0 | R14: 0 | S14: =IF($L14>0,$S$9+$S$11*SIN(360/365*($A$6-100)*PI()/180),0) -> 0 | T14: 0 | U14: 0 | V14: 0 | W14: 0 | X14: 0 | Y14: 0 | AA14: =AA13+1 -> 1 | AT14: =MIN(AG14:AI14) -> 0 | AU14: 0 | AV14: =IF(G14<90,IF(G14>80,80,G14),G14) -> 153.0714246 | AW14: 0 | AY14: =IF($L14>0,AJ14,0) -> 0 | AZ14: =IF(L14=1,IF(L13=0,ROW(),0),0) -> 0 | BA14: =IF(L14=1,IF(L15=0,ROW(),0),0) -> 0 | BD14: =BD13+1 -> 2 | BE14: -22.93054361 | BF14: =9.87*SIN(2*360/365*(BD14-81)*PI()/180)-7.53*COS(360/365*(BD14-81)*PI()/180)-1.5*SIN(360/365*(BD14-81)*PI()/180) -> -4.149710085 | BH14: =BF14+$C$6*60/15 -> -58.86971009 | BJ14: =COS(BL14*PI()/180) -> 6.125742275e-17 | BK14: =IF($L14>0,180/PI()*ACOS(SIN($G14*PI()/180)*SIN($E$6*PI()/180)*COS(($K14-$F$6)*PI()/180)+$F14*COS($E$6*PI()/180)),90) -> 90 | BL14: =IF(BK14>90,90,BK14) -> 90 | BM14: =IF($L14>0,180/PI()*ASIN(SQRT(1/(1+COS($BO14*PI()/180) * COS($BO14*PI()/180) /SIN($BO14*PI()/180)/SIN($BO14*PI()/180)/COS(($K14-$F$6)*PI()/180)/COS(($K14-$F$6)*PI()/180)))),0) -> 0 | BN14: 90 | BO14: =G14 -> 153.0714246 | BP14: =IF(BN14<BO14,BN14,BO14) -> 90 | BQ14: =K14 -> 320.9296157 | BR14: 0 | BS14: =IF($L14>0,180/PI()*ACOS(-SIN(BR14*PI()/180)*SIN($BO14*PI()/180)*SIN(BQ14*PI()/180)-SIN($E$6*PI()/180)*COS(BR14*PI()/180)*SIN($BO14*PI()/180)*COS(BQ14*PI()/180)+COS($E$6*PI()/180)*COS($BR14*PI()/180)*COS(BO14*PI()/180)),90) -> 90 | BT14: =IF($L14>0,180/PI()*ASIN(SQRT(1/(1+$F14*$F14/SIN($G14*PI()/180)/SIN($G14*PI()/180)))),0) -> 0 | BU14: =IF($L14>0,0,90) -> 90 | BW14: =IF($I$6=0,$BK14,IF($I$6=1,$BS14,IF($I$6=2,$BP14,IF($I$6=3,$BU14)))) -> 90 | BX14: =IF(BW14<90,BW14,90) -> 90 | BY14: =COS(BX14*PI()/180) -> 6.125742275e-17 | CI14: =V14 -> 0 | CJ14: =IF($L14,T14,0) -> 0 | CK14: 0 | CL14: =SUM(CI14:CK14) -> 0 | CN14: =IF($H14<= 0,IF($H15>=0,$H14,""),"") ->  | CO14: =IF($H14<= 0,IF($H15>=0,$A14+$B14/60+($A15+$B15/60-$A14-$B14/60)*(-$H14/($H15-$H14)),""),"") ->  | CP14: =IF($CO14<>"",ROUND(100*INT($CO14)+($CO14-INT($CO14))*60,0),"") ->  | CQ14: =IF($H13>=0,IF($H14<=0,$H14,""),"") ->  | CR14: =IF($H13>= 0,IF($H14<=0,$A14+$B14/60+($A15+$B15/60-$A14-$B14/60)*(-$H14/($H15-$H14)),""),"") ->  | CS14: =IF($CR14<>"",ROUND(100*INT($CR14)+($CR14-INT($CR14))*60,0),"") ->  | CT14: =IF($H14<= 0,IF($H15>=0,$K14,""),"") ->  | CU14: =IF($H14>= 0,IF($H15<=0,$K14,""),"") ->  | CX14: =MAX(AG14:AI14) -> 0
A15: 0 | B15: =B14+1 -> 2 | C15: 0.03333333333 | D15: -1.104546535 | E15: 196.568198 | F15: =SIN($B$6*PI()/180)*SIN($A$9*PI()/180)+COS($B$6*PI()/180)*COS($A$9*PI()/180)*COS(E15*PI()/180) -> -0.8926277223 | G15: 153.2053255 | H15: -63.20532547 | I15: =COS($A$9*PI()/180)*SIN(E15*PI()/180) -> -0.2813152575 | J15: =-SIN($A$9*PI()/180)*COS($B$6*PI()/180)+COS($A$9*PI()/180)*SIN($B$6*PI()/180)*COS(E15*PI()/180) -> -0.3522463275 | K15: 321.3880099 | L15: 0 | M15: 90 | O15: 0 | P15: 0 | Q15: 0 | R15: 0 | S15: 0 | T15: 0 | U15: 0 | V15: 0 | W15: 0 | X15: 0 | Y15: 0 | AA15: =AA14+1 -> 2 | AT15: =MIN(AG15:AI15) -> 0 | AU15: 0 | AV15: 153.2053255 | AW15: 0 | AY15: 0 | AZ15: 0 | BA15: 0 | BD15: =BD14+1 -> 3 | BE15: -22.84265567 | BF15: =9.87*SIN(2*360/365*(BD15-81)*PI()/180)-7.53*COS(360/365*(BD15-81)*PI()/180)-1.5*SIN(360/365*(BD15-81)*PI()/180) -> -4.589420831 | BH15: =BF15+$C$6*60/15 -> -59.30942083 | BJ15: 6.125742275e-17 | BK15: 90 | BL15: 90 | BM15: 0 | BN15: 90 | BO15: 153.2053255 | BP15: 90 | BQ15: 321.3880099 | BR15: 0 | BS15: 90 | BT15: 0 | BU15: 90 | BW15: 90 | BX15: 90 | BY15: 6.125742275e-17 | CI15: 0 | CJ15: 0 | CK15: 0 | CL15: 0 | CT15: =IF($H15<= 0,IF($H16>=0,$K15,""),"") ->  | CU15: =IF($H15>= 0,IF($H16<=0,$K15,""),"") ->  | CX15: 0
A16: 0 | B16: 3 | C16: 0.05 | D16: -1.087879869 | E16: 196.318198 | F16: -0.8936682971 | G16: 153.3378858 | H16: -63.33788581 | I16: -0.2771867655 | J16: -0.3528802513 | K16: 321.8504329 | L16: 0 | M16: 90 | O16: 0 | P16: 0 | Q16: 0 | R16: 0 | S16: 0 | T16: 0 | U16: 0 | V16: 0 | W16: 0 | X16: 0 | Y16: 0 | AA16: 3 | AT16: =MIN(AG16:AI16) -> 0 | AU16: 0 | AV16: 153.3378858 | AW16: 0 | AY16: 0 | AZ16: 0 | BA16: 0 | BD16: 4 | BE16: -22.74799897 | BF16: -5.023906865 | BH16: =BF16+$C$6*60/15 -> -59.74390687 | BJ16: 6.125742275e-17 | BK16: 90 | BL16: 90 | BM16: 0 | BN16: 90 | BO16: 153.3378858 | BP16: 90 | BQ16: 321.8504329 | BR16: 0 | BS16: 90 | BT16: 0 | BU16: 90 | BW16: 90 | BX16: 90 | BY16: 6.125742275e-17 | CI16: 0 | CJ16: 0 | CK16: 0 | CL16: 0 | CX16: 0
A17: 0 | B17: 4 | C17: 0.06666666667 | D17: -1.071213202 | E17: 196.068198 | F17: -0.8946934781 | G17: 153.4690851 | H17: -63.46908513 | I17: -0.2730529962 | J17: -0.3535047971 | K17: 322.3169042 | L17: 0 | M17: 90 | O17: 0 | P17: 0 | Q17: 0 | R17: 0 | S17: 0 | T17: 0 | U17: 0 | V17: 0 | W17: 0 | X17: 0 | Y17: 0 | AA17: 4 | AT17: 0 | AU17: 0 | AV17: 153.4690851 | AW17: 0 | AY17: 0 | AZ17: 0 | BA17: 0 | BD17: 5 | BE17: -22.64660154 | BF17: -5.452770624 | BH17: -60.17277062 | BJ17: 6.125742275e-17 | BK17: 90 | BL17: 90 | BM17: 0 | BN17: 90 | BO17: 153.4690851 | BP17: 90 | BQ17: 322.3169042 | BR17: 0 | BS17: 90 | BT17: 0 | BU17: 90 | BW17: 90 | BX17: 90 | BY17: 6.125742275e-17 | CI17: 0 | CJ17: 0 | CK17: 0 | CL17: 0 | CX17: 0
A18: 0 | B18: 5 | C18: 0.08333333333 | D18: -1.054546535 | E18: 195.818198 | F18: -0.8957032456 | G18: 153.5989028 | H18: -63.59890283 | I18: -0.2689140284 | J18: -0.354119953 | K18: 322.7874419 | L18: 0 | M18: 90 | O18: 0 | P18: 0 | Q18: 0 | R18: 0 | S18: 0 | T18: 0 | U18: 0 | V18: 0 | W18: 0 | X18: 0 | Y18: 0 | AA18: 5 | AT18: 0 | AU18: 0 | AV18: 153.5989028 | AW18: 0 | AY18: 0 | AZ18: 0 | BA18: 0 | BD18: 6 | BE18: -22.53849343 | BF18: -5.875621107 | BH18: -60.59562111 | BJ18: 6.125742275e-17 | BK18: 90 | BL18: 90 | BM18: 0 | BN18: 90 | BO18: 153.5989028 | BP18: 90 | BQ18: 322.7874419 | BR18: 0 | BS18: 90 | BT18: 0 | BU18: 90 | BW18: 90 | BX18: 90 | BY18: 6.125742275e-17 | CI18: 0 | CJ18: 0 | CK18: 0 | CL18: 0 | CX18: 0
A19: 0 | B19: 6 | C19: 0.1 | D19: -1.037879869 | E19: 195.568198 | F19: -0.8966975806 | G19: 153.7273181 | H19: -63.72731808 | I19: -0.2647699408 | J19: -0.3547257073 | K19: 323.2620628 | L19: 0 | M19: 90 | O19: 0 | P19: 0 | Q19: 0 | R19: 0 | S19: 0 | T19: 0 | U19: 0 | V19: 0 | W19: 0 | X19: 0 | Y19: 0 | AA19: 6 | AT19: 0 | AU19: 0 | AV19: 153.7273181 | AW19: 0 | AY19: 0 | AZ19: 0 | BA19: 0 | BD19: 7 | BE19: -22.42370668 | BF19: -6.292074307 | BH19: -61.01207431 | BJ19: 6.125742275e-17 | BK19: 90 | BL19: 90 | BM19: 0 | BN19: 90 | BO19: 153.7273181 | BP19: 90 | BQ19: 323.2620628 | BR19: 0 | BS19: 90 | BT19: 0 | BU19: 90 | BW19: 90 | BX19: 90 | BY19: 6.125742275e-17 | CI19: 0 | CJ19: 0 | CK19: 0 | CL19: 0 | CX19: 0
A20: 0 | B20: 7 | C20: 0.1166666667 | D20: -1.021213202 | E20: 195.318198 | F20: -0.897676464 | G20: 153.8543099 | H20: -63.8543099 | I20: -0.2606208124 | J20: -0.3553220484 | K20: 323.7407823 | L20: 0 | M20: 90 | O20: 0 | P20: 0 | Q20: 0 | R20: 0 | S20: 0 | T20: 0 | U20: 0 | V20: 0 | W20: 0 | X20: 0 | Y20: 0 | AA20: 7 | AT20: 0 | AU20: 0 | AV20: 153.8543099 | AW20: 0 | AY20: 0 | AZ20: 0 | BA20: 0 | BD20: 8 | BE20: -22.30227531 | BF20: -6.701753633 | BH20: -61.42175363 | BJ20: 6.125742275e-17 | BK20: 90 | BL20: 90 | BM20: 0 | BN20: 90 | BO20: 153.8543099 | BP20: 90 | BQ20: 323.7407823 | BR20: 0 | BS20: 90 | BT20: 0 | BU20: 90 | BW20: 90 | BX20: 90 | BY20: 6.125742275e-17 | CI20: 0 | CJ20: 0 | CK20: 0 | CL20: 0 | CX20: 0
A21: 0 | B21: 8 | C21: 0.1333333333 | D21: -1.004546535 | E21: 195.068198 | F21: -0.8986398773 | G21: 153.9798571 | H21: -63.97985713 | I21: -0.2564667222 | J21: -0.355908965 | K21: 324.223614 | L21: 0 | M21: 90 | O21: 0 | P21: 0 | Q21: 0 | R21: 0 | S21: 0 | T21: 0 | U21: 0 | V21: 0 | W21: 0 | X21: 0 | Y21: 0 | AA21: 8 | AT21: 0 | AU21: 0 | AV21: 153.9798571 | AW21: 0 | AY21: 0 | AZ21: 0 | BA21: 0 | BD21: 9 | BE21: -22.17423529 | BF21: -7.104290318 | BH21: -61.82429032 | BJ21: 6.125742275e-17 | BK21: 90 | BL21: 90 | BM21: 0 | BN21: 90 | BO21: 153.9798571 | BP21: 90 | BQ21: 324.223614 | BR21: 0 | BS21: 90 | BT21: 0 | BU21: 90 | BW21: 90 | BX21: 90 | BY21: 6.125742275e-17 | CI21: 0 | CJ21: 0 | CK21: 0 | CL21: 0 | CX21: 0
A22: 0 | B22: 9 | C22: 0.15 | D22: -0.9878798687 | E22: 194.818198 | F22: -0.8995878021 | G22: 154.1039384 | H22: -64.10393844 | I22: -0.2523077492 | J22: -0.3564864459 | K22: 324.7105703 | L22: 0 | M22: 90 | O22: 0 | P22: 0 | Q22: 0 | R22: 0 | S22: 0 | T22: 0 | U22: 0 | V22: 0 | W22: 0 | X22: 0 | Y22: 0 | AA22: 9 | AT22: 0 | AU22: 0 | AV22: 154.1039384 | AW22: 0 | AY22: 0 | AZ22: 0 | BA22: 0 | BD22: 10 | BE22: -22.03962456 | BF22: -7.499323825 | BH22: -62.21932382 | BJ22: 6.125742275e-17 | BK22: 90 | BL22: 90 | BM22: 0 | BN22: 90 | BO22: 154.1039384 | BP22: 90 | BQ22: 324.7105703 | BR22: 0 | BS22: 90 | BT22: 0 | BU22: 90 | BW22: 90 | BX22: 90 | BY22: 6.125742275e-17 | CI22: =V22 -> 0 | CJ22: =IF($L22,T22,0) -> 0 | CK22: 0 | CL22: =SUM(CI22:CK22) -> 0 | CX22: 0
A23: 0 | B23: 10 | C23: 0.1666666667 | D23: -0.9712132021 | E23: 194.568198 | F23: -0.9005202202 | G23: 154.2265323 | H23: -64.22653234 | I23: -0.2481439726 | J23: -0.3570544801 | K23: 325.2016615 | L23: 0 | M23: 90 | O23: 0 | P23: 0 | Q23: 0 | R23: 0 | S23: 0 | T23: 0 | U23: 0 | V23: 0 | W23: 0 | X23: 0 | Y23: 0 | AA23: 10 | AT23: 0 | AU23: 0 | AV23: 154.2265323 | AW23: 0 | AY23: 0 | AZ23: 0 | BA23: 0 | BD23: 11 | BE23: -21.89848302 | BF23: -7.886502235 | BH23: -62.60650223 | BJ23: 6.125742275e-17 | BK23: 90 | BL23: 90 | BM23: 0 | BN23: 90 | BO23: 154.2265323 | BP23: 90 | BQ23: 325.2016615 | BR23: 0 | BS23: 90 | BT23: 0 | BU23: 90 | BW23: 90 | BX23: 90 | BY23: 6.125742275e-17 | CI23: 0 | CJ23: 0 | CK23: 0 | CL23: 0 | CX23: 0
A24: 0 | B24: 11 | C24: 0.1833333333 | D24: -0.9545465354 | E24: 194.318198 | F24: -0.9014371141 | G24: 154.3476172 | H24: -64.3476172 | I24: -0.2439754718 | J24: -0.3576130568 | K24: 325.6968966 | L24: 0 | M24: 90 | O24: 0 | P24: 0 | Q24: 0 | R24: 0 | S24: 0 | T24: 0 | U24: 0 | V24: 0 | W24: 0 | X24: 0 | Y24: 0 | AA24: 11 | AT24: 0 | AU24: 0 | AV24: 154.3476172 | AW24: 0 | AY24: 0 | AZ24: 0 | BA24: 0 | BD24: 12 | BE24: -21.75085248 | BF24: -8.265482636 | BH24: -62.98548264 | BJ24: 6.125742275e-17 | BK24: 90 | BL24: 90 | BM24: 0 | BN24: 90 | BO24: 154.3476172 | BP24: 90 | BQ24: 325.6968966 | BR24: 0 | BS24: 90 | BT24: 0 | BU24: 90 | BW24: 90 | BX24: 90 | BY24: 6.125742275e-17 | CI24: 0 | CJ24: 0 | CK24: 0 | CL24: 0 | CX24: 0
A25: 0 | B25: 12 | C25: 0.2 | D25: -0.9378798687 | E25: 194.068198 | F25: -0.9023384663 | G25: 154.4671712 | H25: -64.46717124 | I25: -0.239802326 | J25: -0.3581621655 | K25: 326.1962825 | L25: 0 | M25: 90 | O25: 0 | P25: 0 | Q25: 0 | R25: 0 | S25: 0 | T25: 0 | U25: 0 | V25: 0 | W25: 0 | X25: 0 | Y25: 0 | AA25: 12 | AT25: 0 | AU25: 0 | AV25: 154.4671712 | AW25: 0 | AY25: 0 | AZ25: 0 | BA25: 0 | BD25: 13 | BE25: -21.5967767 | BF25: -8.635931491 | BH25: -63.35593149 | BJ25: 6.125742275e-17 | BK25: 90 | BL25: 90 | BM25: 0 | BN25: 90 | BO25: 154.4671712 | BP25: 90 | BQ25: 326.1962825 | BR25: 0 | BS25: 90 | BT25: 0 | BU25: 90 | BW25: 90 | BX25: 90 | BY25: 6.125742275e-17 | CI25: 0 | CJ25: 0 | CK25: 0 | CL25: 0 | CX25: 0
A26: 0 | B26: 13 | C26: 0.2166666667 | D26: -0.9212132021 | E26: 193.818198 | F26: -0.9032242595 | G26: 154.5851726 | H26: -64.58517255 | I26: -0.2356246147 | J26: -0.3587017955 | K26: 326.6998242 | L26: 0 | M26: 90 | O26: 0 | P26: 0 | Q26: 0 | R26: 0 | S26: 0 | T26: 0 | U26: 0 | V26: 0 | W26: 0 | X26: 0 | Y26: 0 | AA26: 13 | AT26: 0 | AU26: 0 | AV26: 154.5851726 | AW26: 0 | AY26: 0 | AZ26: 0 | BA26: 0 | BD26: 14 | BE26: -21.43630132 | BF26: -8.997524999 | BH26: -63.717525 | BJ26: 6.125742275e-17 | BK26: 90 | BL26: 90 | BM26: 0 | BN26: 90 | BO26: 154.5851726 | BP26: 90 | BQ26: 326.6998242 | BR26: 0 | BS26: 90 | BT26: 0 | BU26: 90 | BW26: 90 | BX26: 90 | BY26: 6.125742275e-17 | CI26: 0 | CJ26: 0 | CK26: 0 | CL26: 0 | CX26: 0
A27: 0 | B27: 14 | C27: 0.2333333333 | D27: -0.9045465354 | E27: 193.568198 | F27: -0.9040944769 | G27: 154.7015991 | H27: -64.70159913 | I27: -0.2314424174 | J27: -0.3592319367 | K27: 327.2075248 | L27: 0 | M27: 90 | O27: 0 | P27: 0 | Q27: 0 | R27: 0 | S27: 0 | T27: 0 | U27: 0 | V27: 0 | W27: 0 | X27: 0 | Y27: 0 | AA27: 14 | AT27: 0 | AU27: 0 | AV27: 154.7015991 | AW27: 0 | AY27: 0 | AZ27: 0 | BA27: 0 | BD27: 15 | BE27: -21.26947391 | BF27: -9.349949446 | BH27: -64.06994945 | BJ27: 6.125742275e-17 | BK27: 90 | BL27: 90 | BM27: 0 | BN27: 90 | BO27: 154.7015991 | BP27: 90 | BQ27: 327.2075248 | BR27: 0 | BS27: 90 | BT27: 0 | BU27: 90 | BW27: 90 | BX27: 90 | BY27: 6.125742275e-17 | CI27: 0 | CJ27: 0 | CK27: 0 | CL27: 0 | CX27: 0
A28: 0 | B28: 15 | C28: 0.25 | D28: -0.8878798687 | E28: 193.318198 | F28: -0.9049491019 | G28: 154.8164288 | H28: -64.81642882 | I28: -0.2272558138 | J28: -0.3597525789 | K28: 327.7193854 | L28: 0 | M28: 90 | O28: 0 | P28: 0 | Q28: 0 | R28: 0 | S28: 0 | T28: 0 | U28: 0 | V28: 0 | W28: 0 | X28: 0 | Y28: 0 | AA28: 15 | AT28: 0 | AU28: 0 | AV28: 154.8164288 | AW28: 0 | AY28: 0 | AZ28: 0 | BA28: 0 | BD28: 16 | BE28: -21.09634389 | BF28: -9.692901542 | BH28: -64.41290154 | BJ28: 6.125742275e-17 | BK28: 90 | BL28: 90 | BM28: 0 | BN28: 90 | BO28: 154.8164288 | BP28: 90 | BQ28: 327.7193854 | BR28: 0 | BS28: 90 | BT28: 0 | BU28: 90 | BW28: 90 | BX28: 90 | BY28: 6.125742275e-17 | CI28: 0 | CJ28: 0 | CK28: 0 | CL28: 0 | CX28: 0
A29: 0 | B29: 16 | C29: 0.2666666667 | D29: -0.8712132021 | E29: 193.068198 | F29: -0.9057881183 | G29: 154.9296394 | H29: -64.9296394 | I29: -0.2230648836 | J29: -0.3602637122 | K29: 328.2354048 | L29: 0 | M29: 90 | O29: 0 | P29: 0 | Q29: 0 | R29: 0 | S29: 0 | T29: 0 | U29: 0 | V29: 0 | W29: 0 | X29: 0 | Y29: 0 | AA29: 16 | AT29: 0 | AU29: 0 | AV29: 154.9296394 | AW29: 0 | AY29: 0 | AZ29: 0 | BA29: 0 | BD29: 17 | BE29: -20.91696257 | BF29: -10.02608875 | BH29: -64.74608875 | BJ29: 6.125742275e-17 | BK29: 90 | BL29: 90 | BM29: 0 | BN29: 90 | BO29: 154.9296394 | BP29: 90 | BQ29: 328.2354048 | BR29: 0 | BS29: 90 | BT29: 0 | BU29: 90 | BW29: 90 | BX29: 90 | BY29: 6.125742275e-17 | CI29: 0 | CJ29: 0 | CK29: 0 | CL29: 0 | CX29: 0
A30: 0 | B30: 17 | C30: 0.2833333333 | D30: -0.8545465354 | E30: 192.818198 | F30: -0.9066115102 | G30: 155.0412085 | H30: -65.04120855 | I30: -0.2188697066 | J30: -0.360765327 | K30: 328.7555798 | L30: 0 | M30: 90 | O30: 0 | P30: 0 | Q30: 0 | R30: 0 | S30: 0 | T30: 0 | U30: 0 | V30: 0 | W30: 0 | X30: 0 | Y30: 0 | AA30: 17 | AT30: 0 | AU30: 0 | AV30: 155.0412085 | AW30: 0 | AY30: 0 | AZ30: 0 | BA30: 0 | BD30: 18 | BE30: -20.73138311 | BF30: -10.34922958 | BH30: -65.06922958 | BJ30: 6.125742275e-17 | BK30: 90 | BL30: 90 | BM30: 0 | BN30: 90 | BO30: 155.0412085 | BP30: 90 | BQ30: 328.7555798 | BR30: 0 | BS30: 90 | BT30: 0 | BU30: 90 | BW30: 90 | BX30: 90 | BY30: 6.125742275e-17 | CI30: 0 | CJ30: 0 | CK30: 0 | CL30: 0 | CX30: 0
A31: 0 | B31: 18 | C31: 0.3 | D31: -0.8378798687 | E31: 192.568198 | F31: -0.9074192617 | G31: 155.1511139 | H31: -65.15111389 | I31: -0.2146703626 | J31: -0.3612574136 | K31: 329.2799048 | L31: 0 | M31: 90 | O31: 0 | P31: 0 | Q31: 0 | R31: 0 | S31: 0 | T31: 0 | U31: 0 | V31: 0 | W31: 0 | X31: 0 | Y31: 0 | AA31: 18 | AT31: 0 | AU31: 0 | AV31: 155.1511139 | AW31: 0 | AY31: 0 | AZ31: 0 | BA31: 0 | BD31: 19 | BE31: -20.53966049 | BF31: -10.66205393 | BH31: -65.38205393 | BJ31: 6.125742275e-17 | BK31: 90 | BL31: 90 | BM31: 0 | BN31: 90 | BO31: 155.1511139 | BP31: 90 | BQ31: 329.2799048 | BR31: 0 | BS31: 90 | BT31: 0 | BU31: 90 | BW31: 90 | BX31: 90 | BY31: 6.125742275e-17 | CI31: 0 | CJ31: 0 | CK31: 0 | CL31: 0 | CX31: 0
A32: 0 | B32: 19 | C32: 0.3166666667 | D32: -0.8212132021 | E32: 192.318198 | F32: -0.9082113576 | G32: 155.259333 | H32: -65.25933296 | I32: -0.2104669315 | J32: -0.3617399628 | K32: 329.8083718 | L32: 0 | M32: 90 | O32: 0 | P32: 0 | Q32: 0 | R32: 0 | S32: 0 | T32: 0 | U32: 0 | V32: 0 | W32: 0 | X32: 0 | Y32: 0 | AA32: 19 | AT32: 0 | AU32: 0 | AV32: 155.259333 | AW32: 0 | AY32: 0 | AZ32: 0 | BA32: 0 | BD32: 20 | BE32: -20.34185152 | BF32: -10.96430334 | BH32: -65.68430334 | BJ32: 6.125742275e-17 | BK32: 90 | BL32: 90 | BM32: 0 | BN32: 90 | BO32: 155.259333 | BP32: 90 | BQ32: 329.8083718 | BR32: 0 | BS32: 90 | BT32: 0 | BU32: 90 | BW32: 90 | BX32: 90 | BY32: 6.125742275e-17 | CI32: 0 | CJ32: 0 | CK32: 0 | CL32: 0 | CX32: 0
A33: 0 | B33: 20 | C33: 0.3333333333 | D33: -0.8045465354 | E33: 192.068198 | F33: -0.9089877827 | G33: 155.3658433 | H33: -65.36584327 | I33: -0.2062594935 | J33: -0.3622129652 | K33: 330.3409705 | L33: 0 | M33: 90 | O33: 0 | P33: 0 | Q33: 0 | R33: 0 | S33: 0 | T33: 0 | U33: 0 | V33: 0 | W33: 0 | X33: 0 | Y33: 0 | AA33: 20 | AT33: 0 | AU33: 0 | AV33: 155.3658433 | AW33: 0 | AY33: 0 | AZ33: 0 | BA33: 0 | BD33: 21 | BE33: -20.13801482 | BF33: -11.25573125 | BH33: -65.97573125 | BJ33: 6.125742275e-17 | BK33: 90 | BL33: 90 | BM33: 0 | BN33: 90 | BO33: 155.3658433 | BP33: 90 | BQ33: 330.3409705 | BR33: 0 | BS33: 90 | BT33: 0 | BU33: 90 | BW33: 90 | BX33: 90 | BY33: 6.125742275e-17 | CI33: 0 | CJ33: 0 | CK33: 0 | CL33: 0 | CX33: 0
A34: 0 | B34: 21 | C34: 0.35 | D34: -0.7878798687 | E34: 191.818198 | F34: -0.9097485224 | G34: 155.4706223 | H34: -65.47062229 | I34: -0.2020481286 | J34: -0.3626764119 | K34: 330.8776878 | L34: 0 | M34: 90 | O34: 0 | P34: 0 | Q34: 0 | R34: 0 | S34: 0 | T34: 0 | U34: 0 | V34: 0 | W34: 0 | X34: 0 | Y34: 0 | AA34: 21 | AT34: 0 | AU34: 0 | AV34: 155.4706223 | AW34: 0 | AY34: 0 | AZ34: 0 | BA34: 0 | BD34: 22 | BE34: -19.9282108 | BF34: -11.53610331 | BH34: -66.25610331 | BJ34: 6.125742275e-17 | BK34: 90 | BL34: 90 | BM34: 0 | BN34: 90 | BO34: 155.4706223 | BP34: 90 | BQ34: 330.8776878 | BR34: 0 | BS34: 90 | BT34: 0 | BU34: 90 | BW34: 90 | BX34: 90 | BY34: 6.125742275e-17 | CI34: 0 | CJ34: 0 | CK34: 0 | CL34: 0 | CX34: 0
A35: 0 | B35: 22 | C35: 0.3666666667 | D35: -0.7712132021 | E35: 191.568198 | F35: -0.910493562 | G35: 155.5736475 | H35: -65.57364749 | I35: -0.1978329171 | J35: -0.3631302941 | K35: 331.4185085 | L35: 0 | M35: 90 | O35: 0 | P35: 0 | Q35: 0 | R35: 0 | S35: 0 | T35: 0 | U35: 0 | V35: 0 | W35: 0 | X35: 0 | Y35: 0 | AA35: 22 | AT35: 0 | AU35: 0 | AV35: 155.5736475 | AW35: 0 | AY35: 0 | AZ35: 0 | BA35: 0 | BD35: 23 | BE35: -19.71250161 | BF35: -11.80519758 | BH35: -66.52519758 | BJ35: 6.125742275e-17 | BK35: 90 | BL35: 90 | BM35: 0 | BN35: 90 | BO35: 155.5736475 | BP35: 90 | BQ35: 331.4185085 | BR35: 0 | BS35: 90 | BT35: 0 | BU35: 90 | BW35: 90 | BX35: 90 | BY35: 6.125742275e-17 | CI35: 0 | CJ35: 0 | CK35: 0 | CL35: 0 | CX35: 0
A36: 0 | B36: 23 | C36: 0.3833333333 | D36: -0.7545465354 | E36: 191.318198 | F36: -0.9112228874 | G36: 155.6748963 | H36: -65.67489631 | I36: -0.193613939 | J36: -0.3635746031 | K36: 331.9634142 | L36: 0 | M36: 90 | O36: 0 | P36: 0 | Q36: 0 | R36: 0 | S36: 0 | T36: 0 | U36: 0 | V36: 0 | W36: 0 | X36: 0 | Y36: 0 | AA36: 23 | AT36: 0 | AU36: 0 | AV36: 155.6748963 | AW36: 0 | AY36: 0 | AZ36: 0 | BA36: 0 | BD36: 24 | BE36: -19.49095119 | BF36: -12.06280479 | BH36: -66.78280479 | BJ36: 6.125742275e-17 | BK36: 90 | BL36: 90 | BM36: 0 | BN36: 90 | BO36: 155.6748963 | BP36: 90 | BQ36: 331.9634142 | BR36: 0 | BS36: 90 | BT36: 0 | BU36: 90 | BW36: 90 | BX36: 90 | BY36: 6.125742275e-17 | CI36: 0 | CJ36: 0 | CK36: 0 | CL36: 0 | CX36: 0
A37: 0 | B37: 24 | C37: 0.4 | D37: -0.7378798687 | E37: 191.068198 | F37: -0.9119364848 | G37: 155.7743462 | H37: -65.77434625 | I37: -0.1893912748 | J37: -0.3640093305 | K37: 332.5123842 | L37: 0 | M37: 90 | O37: 0 | P37: 0 | Q37: 0 | R37: 0 | S37: 0 | T37: 0 | U37: 0 | V37: 0 | W37: 0 | X37: 0 | Y37: 0 | AA37: 24 | AT37: 0 | AU37: 0 | AV37: 155.7743462 | AW37: 0 | AY37: 0 | AZ37: 0 | BA37: 0 | BD37: 25 | BE37: -19.26362517 | BF37: -12.30872852 | BH37: -67.02872852 | BJ37: 6.125742275e-17 | BK37: 90 | BL37: 90 | BM37: 0 | BN37: 90 | BO37: 155.7743462 | BP37: 90 | BQ37: 332.5123842 | BR37: 0 | BS37: 90 | BT37: 0 | BU37: 90 | BW37: 90 | BX37: 90 | BY37: 6.125742275e-17 | CI37: 0 | CJ37: 0 | CK37: 0 | CL37: 0 | CX37: 0
A38: 0 | B38: 25 | C38: 0.4166666667 | D38: -0.7212132021 | E38: 190.818198 | F38: -0.9126343405 | G38: 155.8719748 | H38: -65.8719748 | I38: -0.1851650049 | J38: -0.364434468 | K38: 333.0653947 | L38: 0 | M38: 90 | O38: 0 | P38: 0 | Q38: 0 | R38: 0 | S38: 0 | T38: 0 | U38: 0 | V38: 0 | W38: 0 | X38: 0 | Y38: 0 | AA38: 25 | AT38: 0 | AU38: 0 | AV38: 155.8719748 | AW38: 0 | AY38: 0 | AZ38: 0 | BA38: 0 | BD38: 26 | BE38: -19.03059093 | BF38: -12.54278545 | BH38: -67.26278545 | BJ38: 6.125742275e-17 | BK38: 90 | BL38: 90 | BM38: 0 | BN38: 90 | BO38: 155.8719748 | BP38: 90 | BQ38: 333.0653947 | BR38: 0 | BS38: 90 | BT38: 0 | BU38: 90 | BW38: 90 | BX38: 90 | BY38: 6.125742275e-17 | CI38: 0 | CJ38: 0 | CK38: 0 | CL38: 0 | CX38: 0
A39: 0 | B39: 26 | C39: 0.4333333333 | D39: -0.7045465354 | E39: 190.568198 | F39: -0.9133164413 | G39: 155.9677595 | H39: -65.96775952 | I39: -0.1809352097 | J39: -0.3648500075 | K39: 333.6224193 | L39: 0 | M39: 90 | O39: 0 | P39: 0 | Q39: 0 | R39: 0 | S39: 0 | T39: 0 | U39: 0 | V39: 0 | W39: 0 | X39: 0 | Y39: 0 | AA39: 26 | AT39: 0 | AU39: 0 | AV39: 155.9677595 | AW39: 0 | AY39: 0 | AZ39: 0 | BA39: 0 | BD39: 27 | BE39: -18.79191752 | BF39: -12.76480551 | BH39: -67.48480551 | BJ39: 6.125742275e-17 | BK39: 90 | BL39: 90 | BM39: 0 | BN39: 90 | BO39: 155.9677595 | BP39: 90 | BQ39: 333.6224193 | BR39: 0 | BS39: 90 | BT39: 0 | BU39: 90 | BW39: 90 | BX39: 90 | BY39: 6.125742275e-17 | CI39: 0 | CJ39: 0 | CK39: 0 | CL39: 0 | CX39: 0
A40: 0 | B40: 27 | C40: 0.45 | D40: -0.6878798687 | E40: 190.318198 | F40: -0.9139827741 | G40: 156.061678 | H40: -66.06167805 | I40: -0.1767019698 | J40: -0.3652559411 | K40: 334.1834284 | L40: 0 | M40: 90 | O40: 0 | P40: 0 | Q40: 0 | R40: 0 | S40: 0 | T40: 0 | U40: 0 | V40: 0 | W40: 0 | X40: 0 | Y40: 0 | AA40: 27 | AT40: 0 | AU40: 0 | AV40: 156.061678 | AW40: 0 | AY40: 0 | AZ40: 0 | BA40: 0 | BD40: 28 | BE40: -18.54767565 | BF40: -12.97463203 | BH40: -67.69463203 | BJ40: 6.125742275e-17 | BK40: 90 | BL40: 90 | BM40: 0 | BN40: 90 | BO40: 156.061678 | BP40: 90 | BQ40: 334.1834284 | BR40: 0 | BS40: 90 | BT40: 0 | BU40: 90 | BW40: 90 | BX40: 90 | BY40: 6.125742275e-17 | CI40: 0 | CJ40: 0 | CK40: 0 | CL40: 0 | CX40: 0
A41: 0 | B41: 28 | C41: 0.4666666667 | D41: -0.6712132021 | E41: 190.068198 | F41: -0.9146333263 | G41: 156.1537081 | H41: -66.15370809 | I41: -0.1724653657 | J41: -0.365652261 | K41: 334.7483896 | L41: 0 | M41: 90 | O41: 0 | P41: 0 | Q41: 0 | R41: 0 | S41: 0 | T41: 0 | U41: 0 | V41: 0 | W41: 0 | X41: 0 | Y41: 0 | AA41: 28 | AT41: 0 | AU41: 0 | AV41: 156.1537081 | AW41: 0 | AY41: 0 | AZ41: 0 | BA41: 0 | BD41: 29 | BE41: -18.29793771 | BF41: -13.17212197 | BH41: -67.89212197 | BJ41: 6.125742275e-17 | BK41: 90 | BL41: 90 | BM41: 0 | BN41: 90 | BO41: 156.1537081 | BP41: 90 | BQ41: 334.7483896 | BR41: 0 | BS41: 90 | BT41: 0 | BU41: 90 | BW41: 90 | BX41: 90 | BY41: 6.125742275e-17 | CI41: 0 | CJ41: 0 | CK41: 0 | CL41: 0 | CX41: 0
A42: 0 | B42: 29 | C42: 0.4833333333 | D42: -0.6545465354 | E42: 189.818198 | F42: -0.9152680856 | G42: 156.2438275 | H42: -66.24382748 | I42: -0.1682254781 | J42: -0.3660389598 | K42: 335.3172674 | L42: 0 | M42: 90 | O42: 0 | P42: 0 | Q42: 0 | R42: 0 | S42: 0 | T42: 0 | U42: 0 | V42: 0 | W42: 0 | X42: 0 | Y42: 0 | AA42: 29 | AT42: 0 | AU42: 0 | AV42: 156.2438275 | AW42: 0 | AY42: 0 | AZ42: 0 | BA42: 0 | BD42: 30 | BE42: -18.04277769 | BF42: -13.35714598 | BH42: -68.07714598 | BJ42: 6.125742275e-17 | BK42: 90 | BL42: 90 | BM42: 0 | BN42: 90 | BO42: 156.2438275 | BP42: 90 | BQ42: 335.3172674 | BR42: 0 | BS42: 90 | BT42: 0 | BU42: 90 | BW42: 90 | BX42: 90 | BY42: 6.125742275e-17 | CI42: 0 | CJ42: 0 | CK42: 0 | CL42: 0 | CX42: 0
A43: 0 | B43: 30 | C43: 0.5 | D43: -0.6378798687 | E43: 189.568198 | F43: -0.9158870397 | G43: 156.3320142 | H43: -66.33201416 | I43: -0.1639823878 | J43: -0.36641603 | K43: 335.8900231 | L43: 0 | M43: 90 | O43: 0 | P43: 0 | Q43: 0 | R43: 0 | S43: 0 | T43: 0 | U43: 0 | V43: 0 | W43: 0 | X43: 0 | Y43: 0 | AA43: 30 | AT43: 0 | AU43: 0 | AV43: 156.3320142 | AW43: 0 | AY43: 0 | AZ43: 0 | BA43: 0 | BD43: 31 | BE43: -17.78227121 | BF43: -13.52958854 | BH43: -68.24958854 | BJ43: 6.125742275e-17 | BK43: 90 | BL43: 90 | BM43: 0 | BN43: 90 | BO43: 156.3320142 | BP43: 90 | BQ43: 335.8900231 | BR43: 0 | BS43: 90 | BT43: 0 | BU43: 90 | BW43: 90 | BX43: 90 | BY43: 6.125742275e-17 | CI43: 0 | CJ43: 0 | CK43: 0 | CL43: 0 | CX43: 0
A44: 0 | B44: 31 | C44: 0.5166666667 | D44: -0.6212132021 | E44: 189.318198 | F44: -0.9164901769 | G44: 156.4182462 | H44: -66.41824623 | I44: -0.1597361754 | J44: -0.3667834645 | K44: 336.4666151 | L44: 0 | M44: 90 | O44: 0 | P44: 0 | Q44: 0 | R44: 0 | S44: 0 | T44: 0 | U44: 0 | V44: 0 | W44: 0 | X44: 0 | Y44: 0 | AA44: 31 | AT44: 0 | AU44: 0 | AV44: 156.4182462 | AW44: 0 | AY44: 0 | AZ44: 0 | BA44: 0 | BD44: 32 | BE44: -17.51649546 | BF44: -13.68934812 | BH44: -68.40934812 | BJ44: 6.125742275e-17 | BK44: 90 | BL44: 90 | BM44: 0 | BN44: 90 | BO44: 156.4182462 | BP44: 90 | BQ44: 336.4666151 | BR44: 0 | BS44: 90 | BT44: 0 | BU44: 90 | BW44: 90 | BX44: 90 | BY44: 6.125742275e-17 | CI44: 0 | CJ44: 0 | CK44: 0 | CL44: 0 | CX44: 0
A45: 0 | B45: 32 | C45: 0.5333333333 | D45: -0.6045465354 | E45: 189.068198 | F45: -0.9170774859 | G45: 156.502502 | H45: -66.50250196 | I45: -0.1554869219 | J45: -0.3671412563 | K45: 337.0469983 | L45: 0 | M45: 90 | O45: 0 | P45: 0 | Q45: 0 | R45: 0 | S45: 0 | T45: 0 | U45: 0 | V45: 0 | W45: 0 | X45: 0 | Y45: 0 | AA45: 32 | AT45: 0 | AU45: 0 | AV45: 156.502502 | AW45: 0 | AY45: 0 | AZ45: 0 | BA45: 0 | BD45: 33 | BE45: -17.24552919 | BF45: -13.83633719 | BH45: -68.55633719 | BJ45: 6.125742275e-17 | BK45: 90 | BL45: 90 | BM45: 0 | BN45: 90 | BO45: 156.502502 | BP45: 90 | BQ45: 337.0469983 | BR45: 0 | BS45: 90 | BT45: 0 | BU45: 90 | BW45: 90 | BX45: 90 | BY45: 6.125742275e-17 | CI45: 0 | CJ45: 0 | CK45: 0 | CL45: 0 | CX45: 0
A46: 0 | B46: 33 | C46: 0.55 | D46: -0.5878798687 | E46: 188.818198 | F46: -0.9176489552 | G46: 156.5847598 | H46: -66.5847598 | I46: -0.1512347082 | J46: -0.3674893985 | K46: 337.6311246 | L46: 0 | M46: 90 | O46: 0 | P46: 0 | Q46: 0 | R46: 0 | S46: 0 | T46: 0 | U46: 0 | V46: 0 | W46: 0 | X46: 0 | Y46: 0 | AA46: 33 | AT46: 0 | AU46: 0 | AV46: 156.5847598 | AW46: 0 | AY46: 0 | AZ46: 0 | BA46: 0 | BD46: 34 | BE46: -16.9694527 | BF46: -13.97048235 | BH46: -68.69048235 | BJ46: 6.125742275e-17 | BK46: 90 | BL46: 90 | BM46: 0 | BN46: 90 | BO46: 156.5847598 | BP46: 90 | BQ46: 337.6311246 | BR46: 0 | BS46: 90 | BT46: 0 | BU46: 90 | BW46: 90 | BX46: 90 | BY46: 6.125742275e-17 | CI46: 0 | CJ46: 0 | CK46: 0 | CL46: 0 | CX46: 0
A47: 0 | B47: 34 | C47: 0.5666666667 | D47: -0.5712132021 | E47: 188.568198 | F47: -0.9182045742 | G47: 156.6649984 | H47: -66.66499843 | I47: -0.1469796152 | J47: -0.3678278846 | K47: 338.2189424 | L47: 0 | M47: 90 | O47: 0 | P47: 0 | Q47: 0 | R47: 0 | S47: 0 | T47: 0 | U47: 0 | V47: 0 | W47: 0 | X47: 0 | Y47: 0 | AA47: 34 | AT47: 0 | AU47: 0 | AV47: 156.6649984 | AW47: 0 | AY47: 0 | AZ47: 0 | BA47: 0 | BD47: 35 | BE47: -16.68834779 | BF47: -14.09172437 | BH47: -68.81172437 | BJ47: 6.125742275e-17 | BK47: 90 | BL47: 90 | BM47: 0 | BN47: 90 | BO47: 156.6649984 | BP47: 90 | BQ47: 338.2189424 | BR47: 0 | BS47: 90 | BT47: 0 | BU47: 90 | BW47: 90 | BX47: 90 | BY47: 6.125742275e-17 | CI47: 0 | CJ47: 0 | CK47: 0 | CL47: 0 | CX47: 0
A48: 0 | B48: 35 | C48: 0.5833333333 | D48: -0.5545465354 | E48: 188.318198 | F48: -0.9187443321 | G48: 156.7431967 | H48: -66.74319675 | I48: -0.1427217239 | J48: -0.3681567081 | K48: 338.8103971 | L48: 0 | M48: 90 | O48: 0 | P48: 0 | Q48: 0 | R48: 0 | S48: 0 | T48: 0 | U48: 0 | V48: 0 | W48: 0 | X48: 0 | Y48: 0 | AA48: 35 | AT48: 0 | AU48: 0 | AV48: 156.7431967 | AW48: 0 | AY48: 0 | AZ48: 0 | BA48: 0 | BD48: 36 | BE48: -16.40229777 | BF48: -14.20001822 | BH48: -68.92001822 | BJ48: 6.125742275e-17 | BK48: 90 | BL48: 90 | BM48: 0 | BN48: 90 | BO48: 156.7431967 | BP48: 90 | BQ48: 338.8103971 | BR48: 0 | BS48: 90 | BT48: 0 | BU48: 90 | BW48: 90 | BX48: 90 | BY48: 6.125742275e-17 | CI48: 0 | CJ48: 0 | CK48: 0 | CL48: 0 | CX48: 0
A49: 0 | B49: 36 | C49: 0.6 | D49: -0.5378798687 | E49: 188.068198 | F49: -0.9192682188 | G49: 156.8193339 | H49: -66.81933391 | I49: -0.1384611154 | J49: -0.3684758627 | K49: 339.4054304 | L49: 0 | M49: 90 | O49: 0 | P49: 0 | Q49: 0 | R49: 0 | S49: 0 | T49: 0 | U49: 0 | V49: 0 | W49: 0 | X49: 0 | Y49: 0 | AA49: 36 | AT49: 0 | AU49: 0 | AV49: 156.8193339 | AW49: 0 | AY49: 0 | AZ49: 0 | BA49: 0 | BD49: 37 | BE49: -16.11138739 | BF49: -14.29533312 | BH49: -69.01533312 | BJ49: 6.125742275e-17 | BK49: 90 | BL49: 90 | BM49: 0 | BN49: 90 | BO49: 156.8193339 | BP49: 90 | BQ49: 339.4054304 | BR49: 0 | BS49: 90 | BT49: 0 | BU49: 90 | BW49: 90 | BX49: 90 | BY49: 6.125742275e-17 | CI49: 0 | CJ49: 0 | CK49: 0 | CL49: 0 | CX49: 0
A50: 0 | B50: 37 | C50: 0.6166666667 | D50: -0.5212132021 | E50: 187.818198 | F50: -0.9197762243 | G50: 156.8933893 | H50: -66.89338935 | I50: -0.1341978708 | J50: -0.3687853424 | K50: 340.0039809 | L50: 0 | M50: 90 | O50: 0 | P50: 0 | Q50: 0 | R50: 0 | S50: 0 | T50: 0 | U50: 0 | V50: 0 | W50: 0 | X50: 0 | Y50: 0 | AA50: 37 | AT50: 0 | AU50: 0 | AV50: 156.8933893 | AW50: 0 | AY50: 0 | AZ50: 0 | BA50: 0 | BD50: 38 | BE50: -15.81570286 | BF50: -14.37765251 | BH50: -69.09765251 | BJ50: 6.125742275e-17 | BK50: 90 | BL50: 90 | BM50: 0 | BN50: 90 | BO50: 156.8933893 | BP50: 90 | BQ50: 340.0039809 | BR50: 0 | BS50: 90 | BT50: 0 | BU50: 90 | BW50: 90 | BX50: 90 | BY50: 6.125742275e-17 | CI50: 0 | CJ50: 0 | CK50: 0 | CL50: 0 | CX50: 0
A51: 0 | B51: 38 | C51: 0.6333333333 | D51: -0.5045465354 | E51: 187.568198 | F51: -0.9202683388 | G51: 156.9653428 | H51: -66.96534281 | I51: -0.1299320712 | J51: -0.3690851412 | K51: 340.6059838 | L51: 0 | M51: 90 | O51: 0 | P51: 0 | Q51: 0 | R51: 0 | S51: 0 | T51: 0 | U51: 0 | V51: 0 | W51: 0 | X51: 0 | Y51: 0 | AA51: 38 | AT51: 0 | AU51: 0 | AV51: 156.9653428 | AW51: 0 | AY51: 0 | AZ51: 0 | BA51: 0 | BD51: 39 | BE51: -15.5153318 | BF51: -14.44697408 | BH51: -69.16697408 | BJ51: 6.125742275e-17 | BK51: 90 | BL51: 90 | BM51: 0 | BN51: 90 | BO51: 156.9653428 | BP51: 90 | BQ51: 340.6059838 | BR51: 0 | BS51: 90 | BT51: 0 | BU51: 90 | BW51: 90 | BX51: 90 | BY51: 6.125742275e-17 | CI51: 0 | CJ51: 0 | CK51: 0 | CL51: 0 | CX51: 0
A52: 0 | B52: 39 | C52: 0.65 | D52: -0.4878798687 | E52: 187.318198 | F52: -0.9207445531 | G52: 157.0351744 | H52: -67.03517435 | I52: -0.1256637979 | J52: -0.3693752535 | K52: 341.2113708 | L52: 0 | M52: 90 | O52: 0 | P52: 0 | Q52: 0 | R52: 0 | S52: 0 | T52: 0 | U52: 0 | V52: 0 | W52: 0 | X52: 0 | Y52: 0 | AA52: 39 | AT52: 0 | AU52: 0 | AV52: 157.0351744 | AW52: 0 | AY52: 0 | AZ52: 0 | BA52: 0 | BD52: 40 | BE52: -15.21036321 | BF52: -14.50330972 | BH52: -69.22330972 | BJ52: 6.125742275e-17 | BK52: 90 | BL52: 90 | BM52: 0 | BN52: 90 | BO52: 157.0351744 | BP52: 90 | BQ52: 341.2113708 | BR52: 0 | BS52: 90 | BT52: 0 | BU52: 90 | BW52: 90 | BX52: 90 | BY52: 6.125742275e-17 | CI52: 0 | CJ52: 0 | CK52: 0 | CL52: 0 | CX52: 0
A53: 0 | B53: 40 | C53: 0.6666666667 | D53: -0.4712132021 | E53: 187.068198 | F53: -0.9212048579 | G53: 157.1028644 | H53: -67.1028644 | I53: -0.1213931322 | J53: -0.3696556738 | K53: 341.8200704 | L53: 0 | M53: 90 | O53: 0 | P53: 0 | Q53: 0 | R53: 0 | S53: 0 | T53: 0 | U53: 0 | V53: 0 | W53: 0 | X53: 0 | Y53: 0 | AA53: 40 | AT53: 0 | AU53: 0 | AV53: 157.1028644 | AW53: 0 | AY53: 0 | AZ53: 0 | BA53: 0 | BD53: 41 | BE53: -14.90088746 | BF53: -14.54668549 | BH53: -69.26668549 | BJ53: 6.125742275e-17 | BK53: 90 | BL53: 90 | BM53: 0 | BN53: 90 | BO53: 157.1028644 | BP53: 90 | BQ53: 341.8200704 | BR53: 0 | BS53: 90 | BT53: 0 | BU53: 90 | BW53: 90 | BX53: 90 | BY53: 6.125742275e-17 | CI53: 0 | CJ53: 0 | CK53: 0 | CL53: 0 | CX53: 0
A54: 0 | B54: 41 | C54: 0.6833333333 | D54: -0.4545465354 | E54: 186.818198 | F54: -0.9216492447 | G54: 157.1683937 | H54: -67.16839372 | I54: -0.1171201553 | J54: -0.3699263966 | K54: 342.4320076 | L54: 0 | M54: 90 | O54: 0 | P54: 0 | Q54: 0 | R54: 0 | S54: 0 | T54: 0 | U54: 0 | V54: 0 | W54: 0 | X54: 0 | Y54: 0 | AA54: 41 | AT54: 0 | AU54: 0 | AV54: 157.1683937 | AW54: 0 | AY54: 0 | AZ54: 0 | BA54: 0 | BD54: 42 | BE54: -14.58699625 | BF54: -14.57714155 | BH54: -69.29714155 | BJ54: 6.125742275e-17 | BK54: 90 | BL54: 90 | BM54: 0 | BN54: 90 | BO54: 157.1683937 | BP54: 90 | BQ54: 342.4320076 | BR54: 0 | BS54: 90 | BT54: 0 | BU54: 90 | BW54: 90 | BX54: 90 | BY54: 6.125742275e-17 | CI54: 0 | CJ54: 0 | CK54: 0 | CL54: 0 | CX54: 0
A55: 0 | B55: 42 | C55: 0.7 | D55: -0.4378798687 | E55: 186.568198 | F55: -0.9220777049 | G55: 157.2317435 | H55: -67.23174352 | I55: -0.1128449486 | J55: -0.3701874169 | K55: 343.0471041 | L55: 0 | M55: 90 | O55: 0 | P55: 0 | Q55: 0 | R55: 0 | S55: 0 | T55: 0 | U55: 0 | V55: 0 | W55: 0 | X55: 0 | Y55: 0 | AA55: 42 | AT55: 0 | AU55: 0 | AV55: 157.2317435 | AW55: 0 | AY55: 0 | AZ55: 0 | BA55: 0 | BD55: 43 | BE55: -14.2687826 | BF55: -14.59473209 | BH55: -69.31473209 | BJ55: 6.125742275e-17 | BK55: 90 | BL55: 90 | BM55: 0 | BN55: 90 | BO55: 157.2317435 | BP55: 90 | BQ55: 343.0471041 | BR55: 0 | BS55: 90 | BT55: 0 | BU55: 90 | BW55: 90 | BX55: 90 | BY55: 6.125742275e-17 | CI55: 0 | CJ55: 0 | CK55: 0 | CL55: 0 | CX55: 0
A56: 0 | B56: 43 | C56: 0.7166666667 | D56: -0.4212132021 | E56: 186.318198 | F56: -0.9224902304 | G56: 157.2928954 | H56: -67.29289538 | I56: -0.1085675936 | J56: -0.3704387296 | K56: 343.6652783 | L56: 0 | M56: 90 | O56: 0 | P56: 0 | Q56: 0 | R56: 0 | S56: 0 | T56: 0 | U56: 0 | V56: 0 | W56: 0 | X56: 0 | Y56: 0 | AA56: 43 | AT56: 0 | AU56: 0 | AV56: 157.2928954 | AW56: 0 | AY56: 0 | AZ56: 0 | BA56: 0 | BD56: 44 | BE56: -13.94634081 | BF56: -14.59952526 | BH56: -69.31952526 | BJ56: 6.125742275e-17 | BK56: 90 | BL56: 90 | BM56: 0 | BN56: 90 | BO56: 157.2928954 | BP56: 90 | BQ56: 343.6652783 | BR56: 0 | BS56: 90 | BT56: 0 | BU56: 90 | BW56: 90 | BX56: 90 | BY56: 6.125742275e-17 | CI56: 0 | CJ56: 0 | CK56: 0 | CL56: 0 | CX56: 0
A57: 0 | B57: 44 | C57: 0.7333333333 | D57: -0.4045465354 | E57: 186.068198 | F57: -0.9228868133 | G57: 157.3518314 | H57: -67.35183136 | I57: -0.1042881715 | J57: -0.3706803301 | K57: 344.2864451 | L57: 0 | M57: 90 | O57: 0 | P57: 0 | Q57: 0 | R57: 0 | S57: 0 | T57: 0 | U57: 0 | V57: 0 | W57: 0 | X57: 0 | Y57: 0 | AA57: 44 | AT57: 0 | AU57: 0 | AV57: 157.3518314 | AW57: 0 | AY57: 0 | AZ57: 0 | BA57: 0 | BD57: 45 | BE57: -13.61976641 | BF57: -14.59160302 | BH57: -69.31160302 | BJ57: 6.125742275e-17 | BK57: 90 | BL57: 90 | BM57: 0 | BN57: 90 | BO57: 157.3518314 | BP57: 90 | BQ57: 344.2864451 | BR57: 0 | BS57: 90 | BT57: 0 | BU57: 90 | BW57: 90 | BX57: 90 | BY57: 6.125742275e-17 | CI57: 0 | CJ57: 0 | CK57: 0 | CL57: 0 | CX57: 0
A58: 0 | B58: 45 | C58: 0.75 | D58: -0.3878798687 | E58: 185.818198 | F58: -0.9232674461 | G58: 157.408534 | H58: -67.40853397 | I58: -0.100006764 | J58: -0.3709122136 | K58: 344.9105164 | L58: 0 | M58: 90 | O58: 0 | P58: 0 | Q58: 0 | R58: 0 | S58: 0 | T58: 0 | U58: 0 | V58: 0 | W58: 0 | X58: 0 | Y58: 0 | AA58: 45 | AT58: 0 | AU58: 0 | AV58: 157.408534 | AW58: 0 | AY58: 0 | AZ58: 0 | BA58: 0 | BD58: 46 | BE58: -13.28915619 | BF58: -14.57106105 | BH58: -69.29106105 | BJ58: 6.125742275e-17 | BK58: 90 | BL58: 90 | BM58: 0 | BN58: 90 | BO58: 157.408534 | BP58: 90 | BQ58: 344.9105164 | BR58: 0 | BS58: 90 | BT58: 0 | BU58: 90 | BW58: 90 | BX58: 90 | BY58: 6.125742275e-17 | CI58: 0 | CJ58: 0 | CK58: 0 | CL58: 0 | CX58: 0
A59: 0 | B59: 46 | C59: 0.7666666667 | D59: -0.3712132021 | E59: 185.568198 | F59: -0.9236321214 | G59: 157.4629862 | H59: -67.4629862 | I59: -0.09572345242 | J59: -0.3711343759 | K59: 345.5374007 | L59: 0 | M59: 90 | O59: 0 | P59: 0 | Q59: 0 | R59: 0 | S59: 0 | T59: 0 | U59: 0 | V59: 0 | W59: 0 | X59: 0 | Y59: 0 | AA59: 46 | AT59: 0 | AU59: 0 | AV59: 157.4629862 | AW59: 0 | AY59: 0 | AZ59: 0 | BA59: 0 | BD59: 47 | BE59: -12.95460809 | BF59: -14.5380086 | BH59: -69.2580086 | BJ59: 6.125742275e-17 | BK59: 90 | BL59: 90 | BM59: 0 | BN59: 90 | BO59: 157.4629862 | BP59: 90 | BQ59: 345.5374007 | BR59: 0 | BS59: 90 | BT59: 0 | BU59: 90 | BW59: 90 | BX59: 90 | BY59: 6.125742275e-17 | CI59: 0 | CJ59: 0 | CK59: 0 | CL59: 0 | CX59: 0
A60: 0 | B60: 47 | C60: 0.7833333333 | D60: -0.3545465354 | E60: 185.318198 | F60: -0.9239808325 | G60: 157.5151716 | H60: -67.51517159 | I60: -0.09143831845 | J60: -0.3713468125 | K60: 346.1670034 | L60: 0 | M60: 90 | O60: 0 | P60: 0 | Q60: 0 | R60: 0 | S60: 0 | T60: 0 | U60: 0 | V60: 0 | W60: 0 | X60: 0 | Y60: 0 | AA60: 47 | AT60: 0 | AU60: 0 | AV60: 157.5151716 | AW60: 0 | AY60: 0 | AZ60: 0 | BA60: 0 | BD60: 48 | BE60: -12.61622127 | BF60: -14.49256835 | BH60: -69.21256835 | BJ60: 6.125742275e-17 | BK60: 90 | BL60: 90 | BM60: 0 | BN60: 90 | BO60: 157.5151716 | BP60: 90 | BQ60: 346.1670034 | BR60: 0 | BS60: 90 | BT60: 0 | BU60: 90 | BW60: 90 | BX60: 90 | BY60: 6.125742275e-17 | CI60: 0 | CJ60: 0 | CK60: 0 | CL60: 0 | CX60: 0
A61: 0 | B61: 48 | C61: =A61+B61/60 -> 0.8 | D61: =C61+$C$9 -> -0.3378798687 | E61: 185.068198 | F61: -0.9243135725 | G61: 157.5650742 | H61: -67.56507417 | I61: -0.08715144362 | J61: -0.3715495196 | K61: 346.7992267 | L61: 0 | M61: 90 | O61: =IF($L61>0,1/F61,0) -> 0 | P61: 0 | Q61: 0 | R61: =IF($L61>0,P61*EXP(-Q61*O61),0) -> 0 | S61: 0 | T61: =IF($L61>0,S61*R61,0) -> 0 | U61: =IF($L61>0,IF(M61<=90,R61*COS(M61*PI()/180),0),0) -> 0 | V61: =IF($L61>0,R61*F61,0) -> 0 | W61: =IF($L61,T61*(1+COS($E$6*PI()/180))/2,0) -> 0 | X61: =IF($L61>0,$X$9*(V61+T61)*(1-COS($E$6*PI()/180))/2,0) -> 0 | Y61: =IF($L61>0,U61+W61+X61,0) -> 0 | AA61: 48 | AT61: 0 | AU61: 0 | AV61: 157.5650742 | AW61: 0 | AY61: 0 | AZ61: =IF(L61=1,IF(L60=0,ROW(),0),0) -> 0 | BA61: =IF(L61=1,IF(L62=0,ROW(),0),0) -> 0 | BD61: 49 | BE61: -12.27409599 | BF61: -14.43487621 | BH61: -69.15487621 | BJ61: 6.125742275e-17 | BK61: 90 | BL61: 90 | BM61: 0 | BN61: 90 | BO61: 157.5650742 | BP61: 90 | BQ61: 346.7992267 | BR61: 0 | BS61: 90 | BT61: 0 | BU61: 90 | BW61: 90 | BX61: 90 | BY61: 6.125742275e-17 | CI61: 0 | CJ61: 0 | CK61: 0 | CL61: 0 | CX61: 0
A62: 0 | B62: 49 | C62: =A62+B62/60 -> 0.8166666667 | D62: =C62+$C$9 -> -0.3212132021 | E62: 184.818198 | F62: -0.9246303353 | G62: 157.6126786 | H62: -67.61267857 | I62: -0.08286290956 | J62: -0.3717424932 | K62: 347.4339699 | L62: 0 | M62: 90 | O62: 0 | P62: 0 | Q62: 0 | R62: =IF($L62>0,P62*EXP(-Q62*O62),0) -> 0 | S62: 0 | T62: =IF($L62>0,S62*R62,0) -> 0 | U62: =IF($L62>0,IF(M62<=90,R62*COS(M62*PI()/180),0),0) -> 0 | V62: =IF($L62>0,R62*F62,0) -> 0 | W62: =IF($L62,T62*(1+COS($E$6*PI()/180))/2,0) -> 0 | X62: =IF($L62>0,$X$9*(V62+T62)*(1-COS($E$6*PI()/180))/2,0) -> 0 | Y62: =IF($L62>0,U62+W62+X62,0) -> 0 | AA62: 49 | AT62: 0 | AU62: 0 | AV62: 157.6126786 | AW62: 0 | AY62: 0 | AZ62: 0 | BA62: 0 | BD62: 50 | BE62: -11.92833363 | BF62: -14.36508116 | BH62: -69.08508116 | BJ62: 6.125742275e-17 | BK62: 90 | BL62: 90 | BM62: 0 | BN62: 90 | BO62: 157.6126786 | BP62: 90 | BQ62: 347.4339699 | BR62: 0 | BS62: 90 | BT62: 0 | BU62: 90 | BW62: 90 | BX62: 90 | BY62: 6.125742275e-17 | CI62: 0 | CJ62: 0 | CK62: 0 | CL62: 0 | CX62: 0
A63: 0 | B63: 50 | C63: 0.8333333333 | D63: -0.3045465354 | E63: 184.568198 | F63: -0.9249311148 | G63: 157.65797 | H63: -67.65796998 | I63: -0.07857279791 | J63: -0.3719257297 | K63: 348.0711291 | L63: 0 | M63: 90 | O63: 0 | P63: 0 | Q63: 0 | R63: 0 | S63: 0 | T63: 0 | U63: 0 | V63: 0 | W63: 0 | X63: 0 | Y63: 0 | AA63: 50 | AT63: 0 | AU63: 0 | AV63: 157.65797 | AW63: 0 | AY63: 0 | AZ63: 0 | BA63: 0 | BD63: 51 | BE63: -11.57903665 | BF63: -14.28334504 | BH63: -69.00334504 | BJ63: 6.125742275e-17 | BK63: 90 | BL63: 90 | BM63: 0 | BN63: 90 | BO63: 157.65797 | BP63: 90 | BQ63: 348.0711291 | BR63: 0 | BS63: 90 | BT63: 0 | BU63: 90 | BW63: 90 | BX63: 90 | BY63: 6.125742275e-17 | CI63: 0 | CJ63: 0 | CK63: 0 | CL63: 0 | CX63: 0
A64: 0 | B64: 51 | C64: 0.85 | D64: -0.2878798687 | E64: 184.318198 | F64: -0.9252159051 | G64: 157.7009342 | H64: -67.70093419 | I64: -0.07428119034 | J64: -0.3720992255 | K64: 348.7105979 | L64: 0 | M64: 90 | O64: 0 | P64: 0 | Q64: 0 | R64: 0 | S64: 0 | T64: 0 | U64: 0 | V64: 0 | W64: 0 | X64: 0 | Y64: 0 | AA64: 51 | AT64: 0 | AU64: 0 | AV64: 157.7009342 | AW64: 0 | AY64: 0 | AZ64: 0 | BA64: 0 | BD64: 52 | BE64: -11.22630855 | BF64: -14.18984234 | BH64: -68.90984234 | BJ64: 6.125742275e-17 | BK64: 90 | BL64: 90 | BM64: 0 | BN64: 90 | BO64: 157.7009342 | BP64: 90 | BQ64: 348.7105979 | BR64: 0 | BS64: 90 | BT64: 0 | BU64: 90 | BW64: 90 | BX64: 90 | BY64: 6.125742275e-17 | CI64: 0 | CJ64: 0 | CK64: 0 | CL64: 0 | CX64: 0
A65: 0 | B65: 52 | C65: 0.8666666667 | D65: -0.2712132021 | E65: 184.068198 | F65: -0.9254847011 | G65: 157.7415576 | H65: -67.74155761 | I65: -0.06998816857 | J65: -0.3722629774 | K65: 349.3522666 | L65: 0 | M65: 90 | O65: 0 | P65: 0 | Q65: 0 | R65: 0 | S65: 0 | T65: 0 | U65: 0 | V65: 0 | W65: 0 | X65: 0 | Y65: 0 | AA65: 52 | AT65: 0 | AU65: 0 | AV65: 157.7415576 | AW65: 0 | AY65: 0 | AZ65: 0 | BA65: 0 | BD65: 53 | BE65: -10.87025385 | BF65: -14.08475995 | BH65: -68.80475995 | BJ65: 6.125742275e-17 | BK65: 90 | BL65: 90 | BM65: 0 | BN65: 90 | BO65: 157.7415576 | BP65: 90 | BQ65: 349.3522666 | BR65: 0 | BS65: 90 | BT65: 0 | BU65: 90 | BW65: 90 | BX65: 90 | BY65: 6.125742275e-17 | CI65: 0 | CJ65: 0 | CK65: 0 | CL65: 0 | CX65: 0
A66: 0 | B66: 53 | C66: 0.8833333333 | D66: -0.2545465354 | E66: 183.818198 | F66: -0.9257374974 | G66: 157.7798273 | H66: -67.77982732 | I66: -0.06569381432 | J66: -0.3724169823 | K66: 349.9960233 | L66: 0 | M66: 90 | O66: 0 | P66: 0 | Q66: 0 | R66: 0 | S66: 0 | T66: 0 | U66: 0 | V66: 0 | W66: 0 | X66: 0 | Y66: 0 | AA66: 53 | AT66: 0 | AU66: 0 | AV66: 157.7798273 | AW66: 0 | AY66: 0 | AZ66: 0 | BA66: 0 | BD66: 54 | BE66: -10.51097806 | BF66: -13.96829696 | BH66: -68.68829696 | BJ66: 6.125742275e-17 | BK66: 90 | BL66: 90 | BM66: 0 | BN66: 90 | BO66: 157.7798273 | BP66: 90 | BQ66: 349.9960233 | BR66: 0 | BS66: 90 | BT66: 0 | BU66: 90 | BW66: 90 | BX66: 90 | BY66: 6.125742275e-17 | CI66: 0 | CJ66: 0 | CK66: 0 | CL66: 0 | CX66: 0
A67: 0 | B67: 54 | C67: 0.9 | D67: -0.2378798687 | E67: 183.568198 | F67: -0.9259742893 | G67: 157.815731 | H67: -67.81573104 | I67: -0.06139820936 | J67: -0.3725612372 | K67: 350.6417531 | L67: 0 | M67: 90 | O67: 0 | P67: 0 | Q67: 0 | R67: 0 | S67: 0 | T67: 0 | U67: 0 | V67: 0 | W67: 0 | X67: 0 | Y67: 0 | AA67: 54 | AT67: 0 | AU67: 0 | AV67: 157.815731 | AW67: 0 | AY67: 0 | AZ67: 0 | BA67: 0 | BD67: 55 | BE67: -10.14858765 | BF67: -13.84066434 | BH67: -68.56066434 | BJ67: 6.125742275e-17 | BK67: 90 | BL67: 90 | BM67: 0 | BN67: 90 | BO67: 157.815731 | BP67: 90 | BQ67: 350.6417531 | BR67: 0 | BS67: 90 | BT67: 0 | BU67: 90 | BW67: 90 | BX67: 90 | BY67: 6.125742275e-17 | CI67: 0 | CJ67: 0 | CK67: 0 | CL67: 0 | CX67: 0
A68: 0 | B68: 55 | C68: 0.9166666667 | D68: -0.2212132021 | E68: 183.318198 | F68: -0.9261950723 | G68: 157.8492572 | H68: -67.84925717 | I68: -0.05710143546 | J68: -0.3726957394 | K68: 351.289339 | L68: 0 | M68: 90 | O68: 0 | P68: 0 | Q68: 0 | R68: 0 | S68: 0 | T68: 0 | U68: 0 | V68: 0 | W68: 0 | X68: 0 | Y68: 0 | AA68: 55 | AT68: 0 | AU68: 0 | AV68: 157.8492572 | AW68: 0 | AY68: 0 | AZ68: 0 | BA68: 0 | BD68: 56 | BE68: -9.783189981 | BF68: -13.70208473 | BH68: -68.42208473 | BJ68: 6.125742275e-17 | BK68: 90 | BL68: 90 | BM68: 0 | BN68: 90 | BO68: 157.8492572 | BP68: 90 | BQ68: 351.289339 | BR68: 0 | BS68: 90 | BT68: 0 | BU68: 90 | BW68: 90 | BX68: 90 | BY68: 6.125742275e-17 | CI68: 0 | CJ68: 0 | CK68: 0 | CL68: 0 | CX68: 0
A69: 0 | B69: 56 | C69: 0.9333333333 | D69: -0.2045465354 | E69: 183.068198 | F69: -0.9263998421 | G69: 157.8803948 | H69: -67.88039482 | I69: -0.05280357444 | J69: -0.3728204863 | K69: 351.9386613 | L69: 0 | M69: 90 | O69: 0 | P69: 0 | Q69: 0 | R69: 0 | S69: 0 | T69: 0 | U69: 0 | V69: 0 | W69: 0 | X69: 0 | Y69: 0 | AA69: 56 | AT69: 0 | AU69: 0 | AV69: 157.8803948 | AW69: 0 | AY69: 0 | AZ69: 0 | BA69: 0 | BD69: 57 | BE69: -9.414893347 | BF69: -13.55279212 | BH69: -68.27279212 | BJ69: 6.125742275e-17 | BK69: 90 | BL69: 90 | BM69: 0 | BN69: 90 | BO69: 157.8803948 | BP69: 90 | BQ69: 351.9386613 | BR69: 0 | BS69: 90 | BT69: 0 | BU69: 90 | BW69: 90 | BX69: 90 | BY69: 6.125742275e-17 | CI69: 0 | CJ69: 0 | CK69: 0 | CL69: 0 | CX69: 0
A70: 0 | B70: 57 | C70: 0.95 | D70: -0.1878798687 | E70: 182.818198 | F70: -0.926588595 | G70: 157.9091338 | H70: -67.90913382 | I70: -0.04850470811 | J70: -0.3729354756 | K70: 352.5895985 | L70: 0 | M70: 90 | O70: 0 | P70: 0 | Q70: 0 | R70: 0 | S70: 0 | T70: 0 | U70: 0 | V70: 0 | W70: 0 | X70: 0 | Y70: 0 | AA70: 57 | AT70: 0 | AU70: 0 | AV70: 157.9091338 | AW70: 0 | AY70: 0 | AZ70: 0 | BA70: 0 | BD70: 58 | BE70: -9.043806876 | BF70: -13.39303156 | BH70: -68.11303156 | BJ70: 6.125742275e-17 | BK70: 90 | BL70: 90 | BM70: 0 | BN70: 90 | BO70: 157.9091338 | BP70: 90 | BQ70: 352.5895985 | BR70: 0 | BS70: 90 | BT70: 0 | BU70: 90 | BW70: 90 | BX70: 90 | BY70: 6.125742275e-17 | CI70: 0 | CJ70: 0 | CK70: 0 | CL70: 0 | CX70: 0
A71: 0 | B71: 58 | C71: 0.9666666667 | D71: -0.1712132021 | E71: 182.568198 | F71: -0.9267613272 | G71: 157.9354647 | H71: -67.93546472 | I71: -0.04420491832 | J71: -0.373040705 | K71: 353.2420266 | L71: 0 | M71: 90 | O71: 0 | P71: 0 | Q71: 0 | R71: 0 | S71: 0 | T71: 0 | U71: 0 | V71: 0 | W71: 0 | X71: 0 | Y71: 0 | AA71: 58 | AT71: 0 | AU71: 0 | AV71: 157.9354647 | AW71: 0 | AY71: 0 | AZ71: 0 | BA71: 0 | BD71: 59 | BE71: -8.670040531 | BF71: -13.22305883 | BH71: -67.94305883 | BJ71: 6.125742275e-17 | BK71: 90 | BL71: 90 | BM71: 0 | BN71: 90 | BO71: 157.9354647 | BP71: 90 | BQ71: 353.2420266 | BR71: 0 | BS71: 90 | BT71: 0 | BU71: 90 | BW71: 90 | BX71: 90 | BY71: 6.125742275e-17 | CI71: 0 | CJ71: 0 | CK71: 0 | CL71: 0 | CX71: 0
A72: 0 | B72: 59 | C72: 0.9833333333 | D72: -0.1545465354 | E72: 182.318198 | F72: -0.9269180355 | G72: 157.9593788 | H72: -67.95937883 | I72: -0.03990428693 | J72: -0.3731361726 | K72: 353.8958199 | L72: 0 | M72: 90 | O72: 0 | P72: 0 | Q72: 0 | R72: 0 | S72: 0 | T72: 0 | U72: 0 | V72: 0 | W72: 0 | X72: 0 | Y72: 0 | AA72: 59 | AT72: 0 | AU72: 0 | AV72: 157.9593788 | AW72: 0 | AY72: 0 | AZ72: 0 | BA72: 0 | BD72: 60 | BE72: -8.293705065 | BF72: -13.04314016 | BH72: -67.76314016 | BJ72: 6.125742275e-17 | BK72: 90 | BL72: 90 | BM72: 0 | BN72: 90 | BO72: 157.9593788 | BP72: 90 | BQ72: 353.8958199 | BR72: 0 | BS72: 90 | BT72: 0 | BU72: 90 | BW72: 90 | BX72: 90 | BY72: 6.125742275e-17 | CI72: 0 | CJ72: 0 | CK72: 0 | CL72: 0 | CX72: 0
A73: =A13+1 -> 1 | B73: =B13 -> 0 | C73: =A73+B73/60 -> 1 | D73: -0.1378798687 | E73: 182.068198 | F73: -0.927058717 | G73: 157.9808682 | H73: -67.98086821 | I73: -0.03560289583 | J73: -0.3732218765 | K73: 354.550851 | L73: 0 | M73: 90 | O73: 0 | P73: 0 | Q73: 0 | R73: 0 | S73: 0 | T73: 0 | U73: 0 | V73: 0 | W73: 0 | X73: 0 | Y73: 0 | AA73: 60 | AT73: 0 | AU73: 0 | AV73: 157.9808682 | AW73: 0 | AY73: 0 | AZ73: 0 | BA73: 0 | BD73: 61 | BE73: -7.914911995 | BF73: -12.85355186 | BH73: -67.57355186 | BJ73: 6.125742275e-17 | BK73: 90 | BL73: 90 | BM73: 0 | BN73: 90 | BO73: 157.9808682 | BP73: 90 | BQ73: 354.550851 | BR73: 0 | BS73: 90 | BT73: 0 | BU73: 90 | BW73: 90 | BX73: 90 | BY73: 6.125742275e-17 | CI73: 0 | CJ73: 0 | CK73: 0 | CL73: 0 | CX73: 0
A74: =A14+1 -> 1 | B74: =B14 -> 1 | C74: =A74+B74/60 -> 1.016666667 | D74: -0.1212132021 | E74: 181.818198 | F74: -0.9271833689 | G74: 157.9999257 | H74: -67.99992571 | I74: -0.03130082689 | J74: -0.3732978151 | K74: 355.2069906 | L74: 0 | M74: 90 | O74: 0 | P74: 0 | Q74: 0 | R74: 0 | S74: 0 | T74: 0 | U74: 0 | V74: 0 | W74: 0 | X74: 0 | Y74: 0 | AA74: 61 | AT74: 0 | AU74: 0 | AV74: 157.9999257 | AW74: 0 | AY74: 0 | AZ74: 0 | BA74: 0 | BD74: 62 | BE74: -7.533773567 | BF74: -12.65458 | BH74: -67.37458 | BJ74: 6.125742275e-17 | BK74: 90 | BL74: 90 | BM74: 0 | BN74: 90 | BO74: 157.9999257 | BP74: 90 | BQ74: 355.2069906 | BR74: 0 | BS74: 90 | BT74: 0 | BU74: 90 | BW74: 90 | BX74: 90 | BY74: 6.125742275e-17 | CI74: 0 | CJ74: 0 | CK74: 0 | CL74: 0 | CX74: 0
A75: 1 | B75: 2 | C75: 1.033333333 | D75: -0.1045465354 | E75: 181.568198 | F75: -0.9272919888 | G75: 158.016545 | H75: -68.01654496 | I75: -0.02699816204 | J75: -0.3733639869 | K75: 355.8641082 | L75: 0 | M75: 90 | O75: 0 | P75: 0 | Q75: 0 | R75: 0 | S75: 0 | T75: 0 | U75: 0 | V75: 0 | W75: 0 | X75: 0 | Y75: 0 | AA75: 62 | AT75: 0 | AU75: 0 | AV75: 158.016545 | AW75: 0 | AY75: 0 | AZ75: 0 | BA75: 0 | BD75: 63 | BE75: -7.150402718 | BF75: -12.44652001 | BH75: -67.16652001 | BJ75: 6.125742275e-17 | BK75: 90 | BL75: 90 | BM75: 0 | BN75: 90 | BO75: 158.016545 | BP75: 90 | BQ75: 355.8641082 | BR75: 0 | BS75: 90 | BT75: 0 | BU75: 90 | BW75: 90 | BX75: 90 | BY75: 6.125742275e-17 | CI75: 0 | CJ75: 0 | CK75: 0 | CL75: 0 | CX75: 0
A76: 1 | B76: 3 | C76: 1.05 | D76: -0.08787986872 | E76: 181.318198 | F76: -0.9273845747 | G76: 158.0307204 | H76: -68.03072038 | I76: -0.02269498317 | J76: -0.3734203908 | K76: 356.5220719 | L76: 0 | M76: 90 | O76: 0 | P76: 0 | Q76: 0 | R76: 0 | S76: 0 | T76: 0 | U76: 0 | V76: 0 | W76: 0 | X76: 0 | Y76: 0 | AA76: 63 | AT76: 0 | AU76: 0 | AV76: 158.0307204 | AW76: 0 | AY76: 0 | AZ76: 0 | BA76: 0 | BD76: 64 | BE76: -6.764913051 | BF76: -12.22967636 | BH76: -66.94967636 | BJ76: 6.125742275e-17 | BK76: 90 | BL76: 90 | BM76: 0 | BN76: 90 | BO76: 158.0307204 | BP76: 90 | BQ76: 356.5220719 | BR76: 0 | BS76: 90 | BT76: 0 | BU76: 90 | BW76: 90 | BX76: 90 | BY76: 6.125742275e-17 | CI76: 0 | CJ76: 0 | CK76: 0 | CL76: 0 | CX76: 0
A77: 1 | B77: 4 | C77: 1.066666667 | D77: -0.07121320206 | E77: 181.068198 | F77: -0.9274611249 | G77: =ACOS(F77)*180/PI() -> 158.0424472 | H77: =90-G77 -> -68.0424472 | I77: -0.01839137223 | J77: -0.3734670256 | K77: 357.1807486 | L77: 0 | M77: 90 | O77: 0 | P77: 0 | Q77: 0 | R77: 0 | S77: 0 | T77: 0 | U77: 0 | V77: 0 | W77: 0 | X77: 0 | Y77: 0 | AA77: 64 | AT77: 0 | AU77: =IF($L77>0,AC77-AT77,0) -> 0 | AV77: 158.0424472 | AW77: =IF($L77>0,IF($M77>-0.001,IF($M77<90,IF($AU77>0,$AT77+$AU77/COS($AV77*PI()/180)*COS($M77*PI()/180),AT77),AT77),AT77),0) -> 0 | AY77: 0 | AZ77: 0 | BA77: 0 | BD77: 65 | BE77: =23.45*SIN(360/365*(BD77-81)*PI()/180) -> -6.377418794 | BF77: -12.00436216 | BH77: -66.72436216 | BJ77: 6.125742275e-17 | BK77: 90 | BL77: 90 | BM77: 0 | BN77: =IF($L77>0,180/PI()*ACOS(SIN($G77*PI()/180)*SIN($BM77*PI()/180)*COS(($K77-$F$6)*PI()/180)+$F77*COS($BM77*PI()/180)),90) -> 90 | BO77: 158.0424472 | BP77: 90 | BQ77: 357.1807486 | BR77: =IF($L77>0,180/PI()*ATAN(SIN($BO77*PI()/180)*SIN($BQ77*PI()/180)/(SIN($E$6*PI()/180)*SIN($BO77*PI()/180)*COS($BQ77*PI()/180)-COS($E$6*PI()/180)*COS($BO77*PI()/180))),0) -> 0 | BS77: 90 | BT77: 0 | BU77: 90 | BW77: 90 | BX77: 90 | BY77: 6.125742275e-17 | CI77: 0 | CJ77: 0 | CK77: 0 | CL77: 0 | CX77: 0
A78: 1 | B78: 5 | C78: 1.083333333 | D78: -0.05454653539 | E78: =180*(12-D78)/12 -> 180.818198 | F78: -0.9275216379 | G78: 158.0517215 | H78: -68.05172147 | I78: -0.01408741114 | J78: -0.3735038904 | K78: =IF(I78>0,ACOS(-J78/SQRT(I78^2+J78^2))*180/PI(),(PI()+ACOS(J78/SQRT(I78^2+J78^2)))*180/PI()) -> 357.8400043 | L78: =IF(H78<0,0,1) -> 0 | M78: =$BX78 -> 90 | O78: 0 | P78: =IF($L78>0,$P$7+$P$9*SIN(360/365*($A$6-$P$11)*PI()/180),0) -> 0 | Q78: =IF($L78>0,$Q$9+$Q$11*SIN(360/365*($A$6-100)*PI()/180),0) -> 0 | R78: 0 | S78: =IF($L78>0,$S$9+$S$11*SIN(360/365*($A$6-100)*PI()/180),0) -> 0 | T78: 0 | U78: 0 | V78: 0 | W78: 0 | X78: 0 | Y78: 0 | AA78: 65 | AT78: =MIN(AG78:AI78) -> 0 | AU78: 0 | AV78: =IF(G78<90,IF(G78>80,80,G78),G78) -> 158.0517215 | AW78: 0 | AY78: =IF($L78>0,AJ78,0) -> 0 | AZ78: 0 | BA78: 0 | BD78: 66 | BE78: -5.98803477 | BF78: -11.77089877 | BH78: -66.49089877 | BJ78: =COS(BL78*PI()/180) -> 6.125742275e-17 | BK78: =IF($L78>0,180/PI()*ACOS(SIN($G78*PI()/180)*SIN($E$6*PI()/180)*COS(($K78-$F$6)*PI()/180)+$F78*COS($E$6*PI()/180)),90) -> 90 | BL78: =IF(BK78>90,90,BK78) -> 90 | BM78: =IF($L78>0,180/PI()*ASIN(SQRT(1/(1+COS($BO78*PI()/180) * COS($BO78*PI()/180) /SIN($BO78*PI()/180)/SIN($BO78*PI()/180)/COS(($K78-$F$6)*PI()/180)/COS(($K78-$F$6)*PI()/180)))),0) -> 0 | BN78: 90 | BO78: =G78 -> 158.0517215 | BP78: =IF(BN78<BO78,BN78,BO78) -> 90 | BQ78: =K78 -> 357.8400043 | BR78: 0 | BS78: =IF($L78>0,180/PI()*ACOS(-SIN(BR78*PI()/180)*SIN($BO78*PI()/180)*SIN(BQ78*PI()/180)-SIN($E$6*PI()/180)*COS(BR78*PI()/180)*SIN($BO78*PI()/180)*COS(BQ78*PI()/180)+COS($E$6*PI()/180)*COS($BR78*PI()/180)*COS(BO78*PI()/180)),90) -> 90 | BT78: =IF($L78>0,180/PI()*ASIN(SQRT(1/(1+$F78*$F78/SIN($G78*PI()/180)/SIN($G78*PI()/180)))),0) -> 0 | BU78: =IF($L78>0,0,90) -> 90 | BW78: =IF($I$6=0,$BK78,IF($I$6=1,$BS78,IF($I$6=2,$BP78,IF($I$6=3,$BU78)))) -> 90 | BX78: =IF(BW78<90,BW78,90) -> 90 | BY78: =COS(BX78*PI()/180) -> 6.125742275e-17 | CI78: 0 | CJ78: 0 | CK78: 0 | CL78: 0 | CN78: =IF($H78<= 0,IF($H79>=0,$H78,""),"") ->  | CO78: =IF($H78<= 0,IF($H79>=0,$A78+$B78/60+($A79+$B79/60-$A78-$B78/60)*(-$H78/($H79-$H78)),""),"") ->  | CP78: =IF($CO78<>"",ROUND(100*INT($CO78)+($CO78-INT($CO78))*60,0),"") ->  | CQ78: =IF($H77>=0,IF($H78<=0,$H78,""),"") ->  | CR78: =IF($H77>= 0,IF($H78<=0,$A78+$B78/60+($A79+$B79/60-$A78-$B78/60)*(-$H78/($H79-$H78)),""),"") ->  | CS78: =IF($CR78<>"",ROUND(100*INT($CR78)+($CR78-INT($CR78))*60,0),"") ->  | CX78: =MAX(AG78:AI78) -> 0
A79: 1 | B79: 6 | C79: 1.1 | D79: -0.03787986872 | E79: 180.568198 | F79: =SIN($B$6*PI()/180)*SIN($A$9*PI()/180)+COS($B$6*PI()/180)*COS($A$9*PI()/180)*COS(E79*PI()/180) -> -0.9275661124 | G79: 158.0585401 | H79: -68.05854006 | I79: =COS($A$9*PI()/180)*SIN(E79*PI()/180) -> -0.00978318185 | J79: =-SIN($A$9*PI()/180)*COS($B$6*PI()/180)+COS($A$9*PI()/180)*SIN($B$6*PI()/180)*COS(E79*PI()/180) -> -0.3735309846 | K79: 358.4997043 | L79: 0 | M79: 90 | O79: 0 | P79: 0 | Q79: 0 | R79: 0 | S79: 0 | T79: 0 | U79: 0 | V79: 0 | W79: 0 | X79: 0 | Y79: 0 | AA79: =AA78+1 -> 66 | AT79: 0 | AU79: 0 | AV79: 158.0585401 | AW79: 0 | AY79: 0 | AZ79: 0 | BA79: 0 | BD79: =BD78+1 -> 67 | BE79: -5.596876363 | BF79: =9.87*SIN(2*360/365*(BD79-81)*PI()/180)-7.53*COS(360/365*(BD79-81)*PI()/180)-1.5*SIN(360/365*(BD79-81)*PI()/180) -> -11.52961542 | BH79: -66.24961542 | BJ79: 6.125742275e-17 | BK79: 90 | BL79: 90 | BM79: 0 | BN79: 90 | BO79: 158.0585401 | BP79: 90 | BQ79: 358.4997043 | BR79: 0 | BS79: 90 | BT79: 0 | BU79: 90 | BW79: 90 | BX79: 90 | BY79: 6.125742275e-17 | CI79: 0 | CJ79: 0 | CK79: 0 | CL79: 0 | CT79: =IF($H79<= 0,IF($H80>=0,$K79,""),"") ->  | CU79: =IF($H79>= 0,IF($H80<=0,$K79,""),"") ->  | CX79: 0
A80: 1 | B80: 7 | C80: 1.116666667 | D80: -0.02121320206 | E80: 180.318198 | F80: -0.9275945478 | G80: 158.0629007 | H80: -68.06290067 | I80: -0.0054787663 | J80: -0.3735483075 | K80: 359.1597133 | L80: 0 | M80: 90 | O80: 0 | P80: 0 | Q80: 0 | R80: 0 | S80: 0 | T80: 0 | U80: 0 | V80: 0 | W80: 0 | X80: 0 | Y80: 0 | AA80: 67 | AT80: 0 | AU80: 0 | AV80: 158.0629007 | AW80: 0 | AY80: 0 | AZ80: 0 | BA80: 0 | BD80: 68 | BE80: -5.20405948 | BF80: -11.28084876 | BH80: =BF80+$C$6*60/15 -> -66.00084876 | BJ80: 6.125742275e-17 | BK80: 90 | BL80: 90 | BM80: 0 | BN80: 90 | BO80: 158.0629007 | BP80: 90 | BQ80: 359.1597133 | BR80: 0 | BS80: 90 | BT80: 0 | BU80: 90 | BW80: 90 | BX80: 90 | BY80: 6.125742275e-17 | CI80: 0 | CJ80: 0 | CK80: 0 | CL80: 0 | CX80: 0
A81: 1 | B81: 8 | C81: 1.133333333 | D81: -0.004546535392 | E81: 180.068198 | F81: -0.9276069434 | G81: 158.0648018 | H81: -68.06480181 | I81: -0.001174246442 | J81: -0.373555859 | K81: 359.8198954 | L81: 0 | M81: 90 | O81: 0 | P81: 0 | Q81: 0 | R81: 0 | S81: 0 | T81: 0 | U81: 0 | V81: 0 | W81: 0 | X81: 0 | Y81: 0 | AA81: 68 | AT81: 0 | AU81: 0 | AV81: 158.0648018 | AW81: 0 | AY81: 0 | AZ81: 0 | BA81: 0 | BD81: 69 | BE81: -4.809700522 | BF81: -11.02494251 | BH81: -65.74494251 | BJ81: 6.125742275e-17 | BK81: 90 | BL81: 90 | BM81: 0 | BN81: 90 | BO81: 158.0648018 | BP81: 90 | BQ81: 359.8198954 | BR81: 0 | BS81: 90 | BT81: 0 | BU81: 90 | BW81: 90 | BX81: 90 | BY81: 6.125742275e-17 | CI81: 0 | CJ81: 0 | CK81: 0 | CL81: 0 | CX81: 0
A82: 1 | B82: 9 | C82: 1.15 | D82: 0.01212013128 | E82: 179.818198 | F82: -0.9276032989 | G82: 158.0642428 | H82: -68.06424284 | I82: 0.003130295771 | J82: -0.3735536388 | K82: 0.4801145533 | L82: 0 | M82: 90 | O82: 0 | P82: 0 | Q82: 0 | R82: 0 | S82: 0 | T82: 0 | U82: 0 | V82: 0 | W82: 0 | X82: 0 | Y82: 0 | AA82: 69 | AT82: 0 | AU82: 0 | AV82: 158.0642428 | AW82: 0 | AY82: 0 | AZ82: 0 | BA82: 0 | BD82: 70 | BE82: -4.413916346 | BF82: -10.76224699 | BH82: -65.48224699 | BJ82: 6.125742275e-17 | BK82: 90 | BL82: 90 | BM82: 0 | BN82: 90 | BO82: 158.0642428 | BP82: 90 | BQ82: 0.4801145533 | BR82: 0 | BS82: 90 | BT82: 0 | BU82: 90 | BW82: 90 | BX82: 90 | BY82: 6.125742275e-17 | CI82: 0 | CJ82: 0 | CK82: 0 | CL82: 0 | CX82: 0
A83: 1 | B83: 10 | C83: 1.166666667 | D83: 0.02878679794 | E83: 179.568198 | F83: -0.9275836146 | G83: 158.061224 | H83: -68.06122395 | I83: 0.007434778388 | J83: -0.373541647 | K83: 1.140234802 | L83: 0 | M83: 90 | O83: 0 | P83: 0 | Q83: 0 | R83: 0 | S83: 0 | T83: 0 | U83: 0 | V83: 0 | W83: 0 | X83: 0 | Y83: 0 | AA83: 70 | AT83: 0 | AU83: 0 | AV83: 158.061224 | AW83: 0 | AY83: 0 | AZ83: 0 | BA83: 0 | BD83: 71 | BE83: -4.016824231 | BF83: -10.49311871 | BH83: -65.21311871 | BJ83: 6.125742275e-17 | BK83: 90 | BL83: 90 | BM83: 0 | BN83: 90 | BO83: 158.061224 | BP83: 90 | BQ83: 1.140234802 | BR83: 0 | BS83: 90 | BT83: 0 | BU83: 90 | BW83: 90 | BX83: 90 | BY83: 6.125742275e-17 | CI83: 0 | CJ83: 0 | CK83: 0 | CL83: 0 | CX83: 0
A84: 1 | B84: 11 | C84: 1.183333333 | D84: 0.04545346461 | E84: 179.318198 | F84: -0.9275478907 | G84: 158.0557462 | H84: -68.05574616 | I84: 0.01173911946 | J84: -0.3735198838 | K84: 1.800120176 | L84: 0 | M84: 90 | O84: 0 | P84: 0 | Q84: 0 | R84: 0 | S84: 0 | T84: 0 | U84: 0 | V84: 0 | W84: 0 | X84: 0 | Y84: 0 | AA84: 71 | AT84: 0 | AU84: 0 | AV84: 158.0557462 | AW84: 0 | AY84: 0 | AZ84: 0 | BA84: 0 | BD84: 72 | BE84: -3.618541845 | BF84: -10.21791993 | BH84: -64.93791993 | BJ84: 6.125742275e-17 | BK84: 90 | BL84: 90 | BM84: 0 | BN84: 90 | BO84: 158.0557462 | BP84: 90 | BQ84: 1.800120176 | BR84: 0 | BS84: 90 | BT84: 0 | BU84: 90 | BW84: 90 | BX84: 90 | BY84: 6.125742275e-17 | CI84: 0 | CJ84: 0 | CK84: 0 | CL84: 0 | CN84: =IF($H84<= 0,IF($H85>=0,$H84,""),"") ->  | CO84: =IF($H84<= 0,IF($H85>=0,$A84+$B84/60+($A85+$B85/60-$A84-$B84/60)*(-$H84/($H85-$H84)),""),"") ->  | CP84: =IF($CO84<>"",ROUND(100*INT($CO84)+($CO84-INT($CO84))*60,0),"") ->  | CQ84: =IF($H83>=0,IF($H84<=0,$H84,""),"") ->  | CR84: =IF($H83>= 0,IF($H84<=0,$A84+$B84/60+($A85+$B85/60-$A84-$B84/60)*(-$H84/($H85-$H84)),""),"") ->  | CS84: =IF($CR84<>"",ROUND(100*INT($CR84)+($CR84-INT($CR84))*60,0),"") ->  | CX84: 0
A85: 1 | B85: 12 | C85: 1.2 | D85: 0.06212013128 | E85: 179.068198 | F85: -0.9274961279 | G85: 158.0478113 | H85: -68.04781134 | I85: 0.01604323703 | J85: -0.3734883496 | K85: 2.45963506 | L85: 0 | M85: 90 | O85: 0 | P85: 0 | Q85: 0 | R85: 0 | S85: 0 | T85: 0 | U85: 0 | V85: 0 | W85: 0 | X85: 0 | Y85: 0 | AA85: 72 | AT85: 0 | AU85: 0 | AV85: 158.0478113 | AW85: 0 | AY85: 0 | AZ85: 0 | BA85: 0 | BD85: 73 | BE85: -3.219187206 | BF85: -9.937018221 | BH85: -64.65701822 | BJ85: 6.125742275e-17 | BK85: 90 | BL85: 90 | BM85: 0 | BN85: 90 | BO85: 158.0478113 | BP85: 90 | BQ85: 2.45963506 | BR85: 0 | BS85: 90 | BT85: 0 | BU85: 90 | BW85: 90 | BX85: 90 | BY85: 6.125742275e-17 | CI85: 0 | CJ85: 0 | CK85: 0 | CL85: 0 | CN85: =IF($H85<= 0,IF($H86>=0,$H85,""),"") ->  | CO85: =IF($H85<= 0,IF($H86>=0,$A85+$B85/60+($A86+$B86/60-$A85-$B85/60)*(-$H85/($H86-$H85)),""),"") ->  | CQ85: =IF($H84>=0,IF($H85<=0,$H85,""),"") ->  | CR85: =IF($H84>= 0,IF($H85<=0,$A85+$B85/60+($A86+$B86/60-$A85-$B85/60)*(-$H85/($H86-$H85)),""),"") ->  | CX85: 0
A86: 1 | B86: 13 | C86: 1.216666667 | D86: 0.07878679794 | E86: 178.818198 | F86: -0.9274283272 | G86: 158.0374221 | H86: -68.03742215 | I86: 0.02034704917 | J86: -0.3734470451 | K86: 3.11864434 | L86: 0 | M86: 90 | O86: 0 | P86: 0 | Q86: 0 | R86: 0 | S86: 0 | T86: 0 | U86: 0 | V86: 0 | W86: 0 | X86: 0 | Y86: 0 | AA86: 73 | AT86: 0 | AU86: 0 | AV86: 158.0374221 | AW86: 0 | AY86: 0 | AZ86: 0 | BA86: 0 | BD86: 74 | BE86: -2.818878653 | BF86: -9.650786013 | BH86: -64.37078601 | BJ86: 6.125742275e-17 | BK86: 90 | BL86: 90 | BM86: 0 | BN86: 90 | BO86: 158.0374221 | BP86: 90 | BQ86: 3.11864434 | BR86: 0 | BS86: 90 | BT86: 0 | BU86: 90 | BW86: 90 | BX86: 90 | BY86: 6.125742275e-17 | CI86: =V86 -> 0 | CJ86: =IF($L86,T86,0) -> 0 | CK86: 0 | CL86: =SUM(CI86:CK86) -> 0 | CX86: 0
A87: 1 | B87: 14 | C87: 1.233333333 | D87: 0.09545346461 | E87: 178.568198 | F87: -0.9273444899 | G87: 158.0245821 | H87: -68.02458211 | I87: 0.02465047392 | J87: -0.3733959709 | K87: 3.777013582 | L87: 0 | M87: 90 | O87: 0 | P87: 0 | Q87: 0 | R87: 0 | S87: 0 | T87: 0 | U87: 0 | V87: 0 | W87: 0 | X87: 0 | Y87: 0 | AA87: 74 | AT87: 0 | AU87: 0 | AV87: 158.0245821 | AW87: 0 | AY87: 0 | AZ87: 0 | BA87: 0 | BD87: 75 | BE87: -2.417734805 | BF87: -9.359600141 | BH87: -64.07960014 | BJ87: 6.125742275e-17 | BK87: 90 | BL87: 90 | BM87: 0 | BN87: 90 | BO87: 158.0245821 | BP87: 90 | BQ87: 3.777013582 | BR87: 0 | BS87: 90 | BT87: 0 | BU87: 90 | BW87: 90 | BX87: 90 | BY87: 6.125742275e-17 | CI87: 0 | CJ87: 0 | CK87: 0 | CL87: 0 | CX87: 0
A88: 1 | B88: 15 | C88: 1.25 | D88: 0.1121201313 | E88: 178.318198 | F88: -0.9272446177 | G88: 158.0092955 | H88: -68.00929553 | I88: 0.02895342937 | J88: -0.3733351282 | K88: 4.43460921 | L88: 0 | M88: 90 | O88: 0 | P88: 0 | Q88: 0 | R88: 0 | S88: 0 | T88: 0 | U88: 0 | V88: 0 | W88: 0 | X88: 0 | Y88: 0 | AA88: 75 | AT88: 0 | AU88: 0 | AV88: 158.0092955 | AW88: 0 | AY88: 0 | AZ88: 0 | BA88: 0 | BD88: 76 | BE88: -2.01587453 | BF88: -9.063841392 | BH88: -63.78384139 | BJ88: 6.125742275e-17 | BK88: 90 | BL88: 90 | BM88: 0 | BN88: 90 | BO88: 158.0092955 | BP88: 90 | BQ88: 4.43460921 | BR88: 0 | BS88: 90 | BT88: 0 | BU88: 90 | BW88: 90 | BX88: 90 | BY88: 6.125742275e-17 | CI88: 0 | CJ88: 0 | CK88: 0 | CL88: 0 | CX88: 0
A89: 1 | B89: 16 | C89: 1.266666667 | D89: 0.1287867979 | E89: 178.068198 | F89: -0.9271287123 | G89: 157.9915676 | H89: -67.99156757 | I89: 0.03325583358 | J89: -0.373264518 | K89: 5.091298683 | L89: 0 | M89: 90 | O89: 0 | P89: 0 | Q89: 0 | R89: 0 | S89: 0 | T89: 0 | U89: 0 | V89: 0 | W89: 0 | X89: 0 | Y89: 0 | AA89: 76 | AT89: 0 | AU89: 0 | AV89: 157.9915676 | AW89: 0 | AY89: 0 | AZ89: 0 | BA89: 0 | BD89: 77 | BE89: -1.613416909 | BF89: -8.76389404 | BH89: -63.48389404 | BJ89: 6.125742275e-17 | BK89: 90 | BL89: 90 | BM89: 0 | BN89: 90 | BO89: 157.9915676 | BP89: 90 | BQ89: 5.091298683 | BR89: 0 | BS89: 90 | BT89: 0 | BU89: 90 | BW89: 90 | BX89: 90 | BY89: 6.125742275e-17 | CI89: 0 | CJ89: 0 | CK89: 0 | CL89: 0 | CX89: 0
A90: 1 | B90: 17 | C90: 1.283333333 | D90: 0.1454534646 | E90: 177.818198 | F90: -0.926996776 | G90: 157.9714041 | H90: -67.97140414 | I90: 0.03755760465 | J90: -0.3731841417 | K90: 5.746950666 | L90: 0 | M90: 90 | O90: 0 | P90: 0 | Q90: 0 | R90: 0 | S90: 0 | T90: 0 | U90: 0 | V90: 0 | W90: 0 | X90: 0 | Y90: 0 | AA90: 77 | AT90: 0 | AU90: 0 | AV90: 157.9714041 | AW90: 0 | AY90: 0 | AZ90: 0 | BA90: 0 | BD90: 78 | BE90: -1.210481196 | BF90: -8.46014538 | BH90: -63.18014538 | BJ90: 6.125742275e-17 | BK90: 90 | BL90: 90 | BM90: 0 | BN90: 90 | BO90: 157.9714041 | BP90: 90 | BQ90: 5.746950666 | BR90: 0 | BS90: 90 | BT90: 0 | BU90: 90 | BW90: 90 | BX90: 90 | BY90: 6.125742275e-17 | CI90: 0 | CJ90: 0 | CK90: 0 | CL90: 0 | CX90: 0
A91: 1 | B91: 18 | C91: 1.3 | D91: 0.1621201313 | E91: 177.568198 | F91: -0.9268488113 | G91: 157.948812 | H91: -67.94881199 | I91: 0.04185866068 | J91: -0.3730940008 | K91: 6.401435198 | L91: 0 | M91: 90 | O91: 0 | P91: 0 | Q91: 0 | R91: 0 | S91: 0 | T91: 0 | U91: 0 | V91: 0 | W91: 0 | X91: 0 | Y91: 0 | AA91: 78 | AT91: 0 | AU91: 0 | AV91: 157.948812 | AW91: 0 | AY91: 0 | AZ91: 0 | BA91: 0 | BD91: 79 | BE91: -0.8071867926 | BF91: -8.152985263 | BH91: -62.87298526 | BJ91: 6.125742275e-17 | BK91: 90 | BL91: 90 | BM91: 0 | BN91: 90 | BO91: 157.948812 | BP91: 90 | BQ91: 6.401435198 | BR91: 0 | BS91: 90 | BT91: 0 | BU91: 90 | BW91: 90 | BX91: 90 | BY91: 6.125742275e-17 | CI91: 0 | CJ91: 0 | CK91: 0 | CL91: 0 | CX91: 0
A92: 1 | B92: 19 | C92: 1.316666667 | D92: 0.1787867979 | E92: 177.318198 | F92: -0.9266848211 | G92: 157.9237986 | H92: -67.92379863 | I92: 0.04615891978 | J92: -0.3729940971 | K92: 7.054623856 | L92: 0 | M92: 90 | O92: 0 | P92: 0 | Q92: 0 | R92: 0 | S92: 0 | T92: 0 | U92: 0 | V92: 0 | W92: 0 | X92: 0 | Y92: 0 | AA92: 79 | AT92: 0 | AU92: 0 | AV92: 157.9237986 | AW92: 0 | AY92: 0 | AZ92: 0 | BA92: 0 | BD92: 80 | BE92: -0.4036532019 | BF92: -7.842805622 | BH92: -62.56280562 | BJ92: 6.125742275e-17 | BK92: 90 | BL92: 90 | BM92: 0 | BN92: 90 | BO92: 157.9237986 | BP92: 90 | BQ92: 7.054623856 | BR92: 0 | BS92: 90 | BT92: 0 | BU92: 90 | BW92: 90 | BX92: 90 | BY92: 6.125742275e-17 | CI92: 0 | CJ92: 0 | CK92: 0 | CL92: 0 | CX92: 0
A93: 1 | B93: 20 | C93: 1.333333333 | D93: 0.1954534646 | E93: 177.068198 | F93: -0.9265048084 | G93: 157.8963723 | H93: -67.89637233 | I93: 0.05045830008 | J93: -0.3728844324 | K93: 7.706389914 | L93: 0 | M93: 90 | O93: 0 | P93: 0 | Q93: 0 | R93: 0 | S93: 0 | T93: 0 | U93: 0 | V93: 0 | W93: 0 | X93: 0 | Y93: 0 | AA93: 80 | AT93: 0 | AU93: 0 | AV93: 157.8963723 | AW93: 0 | AY93: 0 | AZ93: 0 | BA93: 0 | BD93: 81 | BE93: 0 | BF93: -7.53 | BH93: -62.25 | BJ93: 6.125742275e-17 | BK93: 90 | BL93: 90 | BM93: 0 | BN93: 90 | BO93: 157.8963723 | BP93: 90 | BQ93: 7.706389914 | BR93: 0 | BS93: 90 | BT93: 0 | BU93: 90 | BW93: 90 | BX93: 90 | BY93: 6.125742275e-17 | CI93: 0 | CJ93: 0 | CK93: 0 | CL93: 0 | CX93: 0
A94: 1 | B94: 21 | C94: 1.35 | D94: 0.2121201313 | E94: 176.818198 | F94: -0.9263087767 | G94: 157.8665421 | H94: -67.86654213 | I94: 0.05475671973 | J94: -0.3727650088 | K94: 8.356608497 | L94: 0 | M94: 90 | O94: 0 | P94: 0 | Q94: 0 | R94: 0 | S94: 0 | T94: 0 | U94: 0 | V94: 0 | W94: 0 | X94: 0 | Y94: 0 | AA94: 81 | AT94: 0 | AU94: 0 | AV94: 157.8665421 | AW94: 0 | AY94: 0 | AZ94: 0 | BA94: 0 | BD94: 82 | BE94: 0.4036532019 | BF94: -7.214963077 | BH94: -61.93496308 | BJ94: 6.125742275e-17 | BK94: 90 | BL94: 90 | BM94: 0 | BN94: 90 | BO94: 157.8665421 | BP94: 90 | BQ94: 8.356608497 | BR94: 0 | BS94: 90 | BT94: 0 | BU94: 90 | BW94: 90 | BX94: 90 | BY94: 6.125742275e-17 | CI94: 0 | CJ94: 0 | CK94: 0 | CL94: 0 | CX94: 0
A95: 1 | B95: 22 | C95: 1.366666667 | D95: 0.2287867979 | E95: 176.568198 | F95: -0.9260967298 | G95: 157.8343178 | H95: -67.83431781 | I95: 0.05905409689 | J95: -0.3726358286 | K95: 9.005156726 | L95: 0 | M95: 90 | O95: 0 | P95: 0 | Q95: 0 | R95: 0 | S95: 0 | T95: 0 | U95: 0 | V95: 0 | W95: 0 | X95: 0 | Y95: 0 | AA95: 82 | AT95: 0 | AU95: 0 | AV95: 157.8343178 | AW95: 0 | AY95: 0 | AZ95: 0 | BA95: 0 | BD95: 83 | BE95: 0.8071867926 | BF95: -6.898090192 | BH95: -61.61809019 | BJ95: 6.125742275e-17 | BK95: 90 | BL95: 90 | BM95: 0 | BN95: 90 | BO95: 157.8343178 | BP95: 90 | BQ95: 9.005156726 | BR95: 0 | BS95: 90 | BT95: 0 | BU95: 90 | BW95: 90 | BX95: 90 | BY95: 6.125742275e-17 | CI95: 0 | CJ95: 0 | CK95: 0 | CL95: 0 | CX95: 0
A96: 1 | B96: 23 | C96: 1.383333333 | D96: 0.2454534646 | E96: 176.318198 | F96: -0.9258686715 | G96: 157.7997099 | H96: -67.79970987 | I96: 0.06335034974 | J96: -0.3724968943 | K96: 9.65191386 | L96: 0 | M96: 90 | O96: 0 | P96: 0 | Q96: 0 | R96: 0 | S96: 0 | T96: 0 | U96: 0 | V96: 0 | W96: 0 | X96: 0 | Y96: 0 | AA96: 83 | AT96: 0 | AU96: 0 | AV96: 157.7997099 | AW96: 0 | AY96: 0 | AZ96: 0 | BA96: 0 | BD96: 84 | BE96: 1.210481196 | BF96: -6.579776874 | BH96: -61.29977687 | BJ96: 6.125742275e-17 | BK96: 90 | BL96: 90 | BM96: 0 | BN96: 90 | BO96: 157.7997099 | BP96: 90 | BQ96: 9.65191386 | BR96: 0 | BS96: 90 | BT96: 0 | BU96: 90 | BW96: 90 | BX96: 90 | BY96: 6.125742275e-17 | CI96: 0 | CJ96: 0 | CK96: 0 | CL96: 0 | CX96: 0
A97: 1 | B97: 24 | C97: 1.4 | D97: 0.2621201313 | E97: 176.068198 | F97: -0.9256246064 | G97: 157.7627295 | H97: -67.76272953 | I97: 0.06764539649 | J97: -0.3723482085 | K97: 10.29676143 | L97: 0 | M97: 90 | O97: 0 | P97: 0 | Q97: 0 | R97: 0 | S97: 0 | T97: 0 | U97: 0 | V97: 0 | W97: 0 | X97: 0 | Y97: 0 | AA97: 84 | AT97: 0 | AU97: 0 | AV97: 157.7627295 | AW97: 0 | AY97: 0 | AZ97: 0 | BA97: 0 | BD97: 85 | BE97: 1.613416909 | BF97: -6.260418358 | BH97: -60.98041836 | BJ97: 6.125742275e-17 | BK97: 90 | BL97: 90 | BM97: 0 | BN97: 90 | BO97: 157.7627295 | BP97: 90 | BQ97: 10.29676143 | BR97: 0 | BS97: 90 | BT97: 0 | BU97: 90 | BW97: 90 | BX97: 90 | BY97: 6.125742275e-17 | CI97: 0 | CJ97: 0 | CK97: 0 | CL97: 0 | CX97: 0
A98: 1 | B98: 25 | C98: 1.416666667 | D98: 0.2787867979 | E98: 175.818198 | F98: -0.925364539 | G98: 157.7233887 | H98: -67.72338869 | I98: 0.07193915538 | J98: -0.372189774 | K98: 10.93958338 | L98: 0 | M98: 90 | O98: 0 | P98: 0 | Q98: 0 | R98: 0 | S98: 0 | T98: 0 | U98: 0 | V98: 0 | W98: 0 | X98: 0 | Y98: 0 | AA98: 85 | AT98: 0 | AU98: 0 | AV98: 157.7233887 | AW98: 0 | AY98: 0 | AZ98: 0 | BA98: 0 | BD98: 86 | BE98: 2.01587453 | BF98: -5.940409122 | BH98: -60.66040912 | BJ98: 6.125742275e-17 | BK98: 90 | BL98: 90 | BM98: 0 | BN98: 90 | BO98: 157.7233887 | BP98: 90 | BQ98: 10.93958338 | BR98: 0 | BS98: 90 | BT98: 0 | BU98: 90 | BW98: 90 | BX98: 90 | BY98: 6.125742275e-17 | CI98: 0 | CJ98: 0 | CK98: 0 | CL98: 0 | CX98: 0
A99: 1 | B99: 26 | C99: 1.433333333 | D99: 0.2954534646 | E99: 175.568198 | F99: -0.9250884743 | G99: 157.6816999 | H99: -67.68169994 | I99: 0.07623154464 | J99: -0.3720215939 | K99: 11.58026614 | L99: 0 | M99: 90 | O99: 0 | P99: 0 | Q99: 0 | R99: 0 | S99: 0 | T99: 0 | U99: 0 | V99: =IF($L99>0,R99*F99,0) -> 0 | W99: 0 | X99: 0 | Y99: 0 | AA99: 86 | AT99: 0 | AU99: 0 | AV99: 157.6816999 | AW99: 0 | AY99: 0 | AZ99: 0 | BA99: 0 | BD99: 87 | BE99: 2.417734805 | BF99: -5.620142406 | BH99: -60.34014241 | BJ99: 6.125742275e-17 | BK99: 90 | BL99: 90 | BM99: 0 | BN99: 90 | BO99: 157.6816999 | BP99: 90 | BQ99: 11.58026614 | BR99: 0 | BS99: 90 | BT99: 0 | BU99: 90 | BW99: 90 | BX99: 90 | BY99: 6.125742275e-17 | CI99: 0 | CJ99: 0 | CK99: 0 | CL99: 0 | CX99: 0
A100: 1 | B100: 27 | C100: 1.45 | D100: 0.3121201313 | E100: 175.318198 | F100: -0.9247964175 | G100: 157.6376765 | H100: -67.63767649 | I100: 0.08052248257 | J100: -0.3718436714 | K100: 12.21869882 | L100: 0 | M100: 90 | O100: 0 | P100: 0 | Q100: 0 | R100: 0 | S100: 0 | T100: 0 | U100: 0 | V100: 0 | W100: 0 | X100: 0 | Y100: 0 | AA100: 87 | AT100: 0 | AU100: 0 | AV100: 157.6376765 | AW100: 0 | AY100: 0 | AZ100: 0 | BA100: 0 | BD100: 88 | BE100: 2.818878653 | BF100: -5.300009747 | BH100: -60.02000975 | BJ100: 6.125742275e-17 | BK100: 90 | BL100: 90 | BM100: 0 | BN100: 90 | BO100: 157.6376765 | BP100: 90 | BQ100: 12.21869882 | BR100: 0 | BS100: 90 | BT100: 0 | BU100: 90 | BW100: 90 | BX100: 90 | BY100: 6.125742275e-17 | CI100: 0 | CJ100: 0 | CK100: 0 | CL100: 0 | CX100: 0
A101: 1 | B101: 28 | C101: 1.466666667 | D101: 0.3287867979 | E101: 175.068198 | F101: -0.9244883743 | G101: 157.5913322 | H101: -67.59133223 | I101: 0.08481188746 | J101: -0.3716560097 | K101: 12.85477323 | L101: 0 | M101: 90 | O101: 0 | P101: 0 | Q101: 0 | R101: 0 | S101: 0 | T101: 0 | U101: 0 | V101: 0 | W101: 0 | X101: 0 | Y101: 0 | AA101: 88 | AT101: 0 | AU101: 0 | AV101: 157.5913322 | AW101: 0 | AY101: 0 | AZ101: 0 | BA101: 0 | BD101: 89 | BE101: 3.219187206 | BF101: -4.980400508 | BH101: -59.70040051 | BJ101: 6.125742275e-17 | BK101: 90 | BL101: 90 | BM101: 0 | BN101: 90 | BO101: 157.5913322 | BP101: 90 | BQ101: 12.85477323 | BR101: 0 | BS101: 90 | BT101: 0 | BU101: 90 | BW101: 90 | BX101: 90 | BY101: 6.125742275e-17 | CI101: 0 | CJ101: 0 | CK101: 0 | CL101: 0 | CX101: 0
A102: 1 | B102: 29 | C102: 1.483333333 | D102: 0.3454534646 | E102: 174.818198 | F102: -0.9241643504 | G102: 157.5426816 | H102: -67.54268163 | I102: 0.08909967766 | J102: -0.3714586126 | K102: 13.48838403 | L102: 0 | M102: 90 | O102: 0 | P102: 0 | Q102: 0 | R102: 0 | S102: 0 | T102: 0 | U102: 0 | V102: 0 | W102: 0 | X102: 0 | Y102: 0 | AA102: 89 | AT102: 0 | AU102: 0 | AV102: 157.5426816 | AW102: 0 | AY102: 0 | AZ102: 0 | BA102: 0 | BD102: 90 | BE102: 3.618541845 | BF102: -4.661701416 | BH102: -59.38170142 | BJ102: 6.125742275e-17 | BK102: 90 | BL102: 90 | BM102: 0 | BN102: 90 | BO102: 157.5426816 | BP102: 90 | BQ102: 13.48838403 | BR102: 0 | BS102: 90 | BT102: 0 | BU102: 90 | BW102: 90 | BX102: 90 | BY102: 6.125742275e-17 | CI102: 0 | CJ102: 0 | CK102: 0 | CL102: 0 | CX102: 0
A103: 1 | B103: 30 | C103: 1.5 | D103: 0.3621201313 | E103: 174.568198 | F103: -0.9238243521 | G103: 157.4917398 | H103: -67.49173976 | I103: 0.09338577153 | J103: -0.3712514838 | K103: 14.11942881 | L103: 0 | M103: 90 | O103: 0 | P103: 0 | Q103: 0 | R103: 0 | S103: 0 | T103: 0 | U103: 0 | V103: 0 | W103: 0 | X103: 0 | Y103: 0 | AA103: 90 | AT103: 0 | AU103: 0 | AV103: 157.4917398 | AW103: 0 | AY103: 0 | AZ103: 0 | BA103: 0 | BD103: 91 | BE103: 4.016824231 | BF103: -4.344296101 | BH103: -59.0642961 | BJ103: 6.125742275e-17 | BK103: 90 | BL103: 90 | BM103: 0 | BN103: 90 | BO103: 157.4917398 | BP103: 90 | BQ103: 14.11942881 | BR103: 0 | BS103: 90 | BT103: 0 | BU103: 90 | BW103: 90 | BX103: 90 | BY103: 6.125742275e-17 | CI103: 0 | CJ103: 0 | CK103: 0 | CL103: 0 | CX103: 0
A104: 1 | B104: 31 | C104: 1.516666667 | D104: 0.3787867979 | E104: 174.318198 | F104: -0.9234683857 | G104: 157.4385223 | H104: -67.43852227 | I104: 0.09767008747 | J104: -0.3710346272 | K104: 14.74780815 | L104: 0 | M104: 90 | O104: 0 | P104: 0 | Q104: 0 | R104: 0 | S104: 0 | T104: 0 | U104: 0 | V104: 0 | W104: 0 | X104: 0 | Y104: 0 | AA104: 91 | AT104: 0 | AU104: 0 | AV104: 157.4385223 | AW104: 0 | AY104: 0 | AZ104: 0 | BA104: 0 | BD104: 92 | BE104: 4.413916346 | BF104: -4.028564639 | BH104: -58.74856464 | BJ104: 6.125742275e-17 | BK104: 90 | BL104: 90 | BM104: 0 | BN104: 90 | BO104: 157.4385223 | BP104: 90 | BQ104: 14.74780815 | BR104: 0 | BS104: 90 | BT104: 0 | BU104: 90 | BW104: 90 | BX104: 90 | BY104: 6.125742275e-17 | CI104: 0 | CJ104: 0 | CK104: 0 | CL104: 0 | CX104: 0
A105: 1 | B105: 32 | C105: 1.533333333 | D105: 0.3954534646 | E105: 174.068198 | F105: -0.9230964582 | G105: 157.3830454 | H105: -67.38304536 | I105: 0.1019525439 | J105: -0.3708080469 | K105: 15.37342571 | L105: 0 | M105: 90 | O105: 0 | P105: 0 | Q105: 0 | R105: 0 | S105: 0 | T105: 0 | U105: 0 | V105: 0 | W105: 0 | X105: 0 | Y105: 0 | AA105: 92 | AT105: 0 | AU105: 0 | AV105: 157.3830454 | AW105: 0 | AY105: 0 | AZ105: 0 | BA105: 0 | BD105: 93 | BE105: 4.809700522 | BF105: -3.714883098 | BH105: -58.4348831 | BJ105: 6.125742275e-17 | BK105: 90 | BL105: 90 | BM105: 0 | BN105: 90 | BO105: 157.3830454 | BP105: 90 | BQ105: 15.37342571 | BR105: 0 | BS105: 90 | BT105: 0 | BU105: 90 | BW105: 90 | BX105: 90 | BY105: 6.125742275e-17 | CI105: 0 | CJ105: 0 | CK105: 0 | CL105: 0 | CX105: 0
A106: 1 | B106: 33 | C106: 1.55 | D106: 0.4121201313 | E106: 173.818198 | F106: -0.9227085765 | G106: 157.3253257 | H106: -67.32532573 | I106: 0.1062330593 | J106: -0.3705717473 | K106: 15.99618832 | L106: 0 | M106: 90 | O106: 0 | P106: 0 | Q106: 0 | R106: 0 | S106: 0 | T106: 0 | U106: 0 | V106: 0 | W106: 0 | X106: 0 | Y106: 0 | AA106: 93 | AT106: 0 | AU106: 0 | AV106: 157.3253257 | AW106: 0 | AY106: 0 | AZ106: 0 | BA106: 0 | BD106: 94 | BE106: 5.20405948 | BF106: -3.403623099 | BH106: -58.1236231 | BJ106: 6.125742275e-17 | BK106: 90 | BL106: 90 | BM106: 0 | BN106: 90 | BO106: 157.3253257 | BP106: 90 | BQ106: 15.99618832 | BR106: 0 | BS106: 90 | BT106: 0 | BU106: 90 | BW106: 90 | BX106: 90 | BY106: 6.125742275e-17 | CI106: 0 | CJ106: 0 | CK106: 0 | CL106: 0 | CX106: 0
A107: 1 | B107: 34 | C107: 1.566666667 | D107: 0.4287867979 | E107: 173.568198 | F107: -0.9223047481 | G107: 157.2653806 | H107: -67.26538063 | I107: 0.1105115522 | J107: -0.3703257328 | K107: 16.61600597 | L107: 0 | M107: 90 | O107: 0 | P107: 0 | Q107: 0 | R107: 0 | S107: 0 | T107: 0 | U107: 0 | V107: 0 | W107: 0 | X107: 0 | Y107: 0 | AA107: 94 | AT107: 0 | AU107: 0 | AV107: 157.2653806 | AW107: 0 | AY107: 0 | AZ107: 0 | BA107: 0 | BD107: 95 | BE107: 5.596876363 | BF107: -3.095151366 | BH107: -57.81515137 | BJ107: 6.125742275e-17 | BK107: 90 | BL107: 90 | BM107: 0 | BN107: 90 | BO107: 157.2653806 | BP107: 90 | BQ107: 16.61600597 | BR107: 0 | BS107: 90 | BT107: 0 | BU107: 90 | BW107: 90 | BX107: 90 | BY107: 6.125742275e-17 | CI107: 0 | CJ107: 0 | CK107: 0 | CL107: 0 | CX107: 0
A108: 1 | B108: 35 | C108: 1.583333333 | D108: 0.4454534646 | E108: 173.318198 | F108: -0.9218849807 | G108: 157.2032277 | H108: -67.20322774 | I108: 0.1147879411 | J108: -0.3700700082 | K108: 17.23279192 | L108: 0 | M108: 90 | O108: 0 | P108: 0 | Q108: 0 | R108: 0 | S108: 0 | T108: 0 | U108: 0 | V108: 0 | W108: 0 | X108: 0 | Y108: 0 | AA108: 95 | AT108: 0 | AU108: 0 | AV108: 157.2032277 | AW108: 0 | AY108: 0 | AZ108: 0 | BA108: 0 | BD108: 96 | BE108: 5.98803477 | BF108: -2.789829299 | BH108: -57.5098293 | BJ108: 6.125742275e-17 | BK108: 90 | BL108: 90 | BM108: 0 | BN108: 90 | BO108: 157.2032277 | BP108: 90 | BQ108: 17.23279192 | BR108: 0 | BS108: 90 | BT108: 0 | BU108: 90 | BW108: 90 | BX108: 90 | BY108: 6.125742275e-17 | CI108: 0 | CJ108: 0 | CK108: 0 | CL108: 0 | CX108: 0
A109: 1 | B109: 36 | C109: 1.6 | D109: 0.4621201313 | E109: 173.068198 | F109: -0.9214492822 | G109: 157.1388852 | H109: -67.13888522 | I109: 0.1190621446 | J109: -0.3698045783 | K109: 17.84646271 | L109: 0 | M109: 90 | O109: 0 | P109: 0 | Q109: 0 | R109: 0 | S109: 0 | T109: 0 | U109: 0 | V109: 0 | W109: 0 | X109: 0 | Y109: 0 | AA109: 96 | AT109: 0 | AU109: 0 | AV109: 157.1388852 | AW109: 0 | AY109: 0 | AZ109: 0 | BA109: 0 | BD109: 97 | BE109: 6.377418794 | BF109: -2.488012545 | BH109: -57.20801254 | BJ109: 6.125742275e-17 | BK109: 90 | BL109: 90 | BM109: 0 | BN109: 90 | BO109: 157.1388852 | BP109: 90 | BQ109: 17.84646271 | BR109: 0 | BS109: 90 | BT109: 0 | BU109: 90 | BW109: 90 | BX109: 90 | BY109: 6.125742275e-17 | CI109: 0 | CJ109: 0 | CK109: 0 | CL109: 0 | CX109: 0
A110: 1 | B110: 37 | C110: 1.616666667 | D110: 0.4787867979 | E110: 172.818198 | F110: -0.9209976609 | G110: 157.0723717 | H110: -67.07237167 | I110: 0.1233340814 | J110: -0.3695294482 | K110: 18.4569382 | L110: 0 | M110: 90 | O110: 0 | P110: 0 | Q110: 0 | R110: 0 | S110: 0 | T110: 0 | U110: 0 | V110: 0 | W110: 0 | X110: 0 | Y110: 0 | AA110: 97 | AT110: 0 | AU110: 0 | AV110: 157.0723717 | AW110: 0 | AY110: 0 | AZ110: 0 | BA110: 0 | BD110: 98 | BE110: 6.764913051 | BF110: -2.190050577 | BH110: -56.91005058 | BJ110: 6.125742275e-17 | BK110: 90 | BL110: 90 | BM110: 0 | BN110: 90 | BO110: 157.0723717 | BP110: 90 | BQ110: 18.4569382 | BR110: 0 | BS110: 90 | BT110: 0 | BU110: 90 | BW110: 90 | BX110: 90 | BY110: 6.125742275e-17 | CI110: 0 | CJ110: 0 | CK110: 0 | CL110: 0 | CX110: 0
A111: 1 | B111: 38 | C111: 1.633333333 | D111: 0.4954534646 | E111: 172.568198 | F111: -0.9205301254 | G111: 157.0037061 | H111: -67.00370609 | I111: 0.12760367 | J111: -0.369244623 | K111: 19.06414161 | L111: 0 | M111: 90 | O111: 0 | P111: 0 | Q111: 0 | R111: 0 | S111: 0 | T111: 0 | U111: 0 | V111: 0 | W111: 0 | X111: 0 | Y111: 0 | AA111: 98 | AT111: 0 | AU111: 0 | AV111: 157.0037061 | AW111: 0 | AY111: 0 | AZ111: 0 | BA111: 0 | BD111: 99 | BE111: 7.150402718 | BF111: -1.896286283 | BH111: -56.61628628 | BJ111: 6.125742275e-17 | BK111: 90 | BL111: 90 | BM111: 0 | BN111: 90 | BO111: 157.0037061 | BP111: 90 | BQ111: 19.06414161 | BR111: 0 | BS111: 90 | BT111: 0 | BU111: 90 | BW111: 90 | BX111: 90 | BY111: 6.125742275e-17 | CI111: 0 | CJ111: 0 | CK111: 0 | CL111: 0 | CX111: 0
A112: 1 | B112: 39 | C112: 1.65 | D112: 0.5121201313 | E112: 172.318198 | F112: -0.9200466847 | G112: 156.9329079 | H112: -66.93290787 | I112: 0.1318708292 | J112: -0.3689501083 | K112: 19.66799951 | L112: 0 | M112: 90 | O112: 0 | P112: 0 | Q112: 0 | R112: 0 | S112: 0 | T112: 0 | U112: 0 | V112: 0 | W112: 0 | X112: 0 | Y112: 0 | AA112: 99 | AT112: 0 | AU112: 0 | AV112: 156.9329079 | AW112: 0 | AY112: 0 | AZ112: 0 | BA112: 0 | BD112: 100 | BE112: 7.533773567 | BF112: -1.607055565 | BH112: -56.32705557 | BJ112: 6.125742275e-17 | BK112: 90 | BL112: 90 | BM112: 0 | BN112: 90 | BO112: 156.9329079 | BP112: 90 | BQ112: 19.66799951 | BR112: 0 | BS112: 90 | BT112: 0 | BU112: 90 | BW112: 90 | BX112: 90 | BY112: 6.125742275e-17 | CI112: 0 | CJ112: 0 | CK112: 0 | CL112: 0 | CX112: 0
A113: 1 | B113: 40 | C113: 1.666666667 | D113: 0.5287867979 | E113: 172.068198 | F113: -0.9195473479 | G113: 156.8599967 | H113: -66.85999674 | I113: 0.1361354779 | J113: -0.3686459096 | K113: 20.26844183 | L113: 0 | M113: 90 | O113: 0 | P113: 0 | Q113: 0 | R113: 0 | S113: 0 | T113: 0 | U113: 0 | V113: 0 | W113: 0 | X113: 0 | Y113: 0 | AA113: 100 | AT113: 0 | AU113: 0 | AV113: 156.8599967 | AW113: 0 | AY113: 0 | AZ113: 0 | BA113: 0 | BD113: 101 | BE113: 7.914911995 | BF113: -1.32268694 | BH113: -56.04268694 | BJ113: 6.125742275e-17 | BK113: 90 | BL113: 90 | BM113: 0 | BN113: 90 | BO113: 156.8599967 | BP113: 90 | BQ113: 20.26844183 | BR113: 0 | BS113: 90 | BT113: 0 | BU113: 90 | BW113: 90 | BX113: 90 | BY113: 6.125742275e-17 | CI113: 0 | CJ113: 0 | CK113: 0 | CL113: 0 | CX113: 0
A114: 1 | B114: 41 | C114: 1.683333333 | D114: 0.5454534646 | E114: 171.818198 | F114: -0.9190321245 | G114: 156.7849928 | H114: -66.78499281 | I114: 0.1403975346 | J114: -0.3683320328 | K114: 20.86540191 | L114: 0 | M114: 90 | O114: 0 | P114: 0 | Q114: 0 | R114: 0 | S114: 0 | T114: 0 | U114: 0 | V114: 0 | W114: 0 | X114: 0 | Y114: 0 | AA114: 101 | AT114: 0 | AU114: 0 | AV114: 156.7849928 | AW114: 0 | AY114: 0 | AZ114: 0 | BA114: 0 | BD114: 102 | BE114: 8.293705065 | BF114: -1.04350116 | BH114: -55.76350116 | BJ114: 6.125742275e-17 | BK114: 90 | BL114: 90 | BM114: 0 | BN114: 90 | BO114: 156.7849928 | BP114: 90 | BQ114: 20.86540191 | BR114: 0 | BS114: 90 | BT114: 0 | BU114: 90 | BW114: 90 | BX114: 90 | BY114: 6.125742275e-17 | CI114: 0 | CJ114: 0 | CK114: 0 | CL114: 0 | CX114: 0
A115: 1 | B115: 42 | C115: 1.7 | D115: 0.5621201313 | E115: 171.568198 | F115: -0.9185010244 | G115: 156.7079165 | H115: -66.70791646 | I115: 0.1446569185 | J115: -0.3680084837 | K115: 21.45881643 | L115: 0 | M115: 90 | O115: 0 | P115: 0 | Q115: 0 | R115: 0 | S115: 0 | T115: 0 | U115: 0 | V115: 0 | W115: 0 | X115: 0 | Y115: 0 | AA115: 102 | AT115: 0 | AU115: 0 | AV115: 156.7079165 | AW115: 0 | AY115: 0 | AZ115: 0 | BA115: 0 | BD115: 103 | BE115: 8.670040531 | BF115: -0.7698108297 | BH115: -55.48981083 | BJ115: 6.125742275e-17 | BK115: 90 | BL115: 90 | BM115: 0 | BN115: 90 | BO115: 156.7079165 | BP115: 90 | BQ115: 21.45881643 | BR115: 0 | BS115: 90 | BT115: 0 | BU115: 90 | BW115: 90 | BX115: 90 | BY115: 6.125742275e-17 | CI115: 0 | CJ115: 0 | CK115: 0 | CL115: 0 | CX115: 0
A116: 1 | B116: 43 | C116: 1.716666667 | D116: 0.5787867979 | E116: 171.318198 | F116: -0.9179540577 | G116: 156.6287884 | H116: -66.62878839 | I116: 0.1489135482 | J116: -0.3676752686 | K116: 22.04862546 | L116: 0 | M116: 90 | O116: 0 | P116: 0 | Q116: 0 | R116: 0 | S116: 0 | T116: 0 | U116: 0 | V116: 0 | W116: 0 | X116: 0 | Y116: 0 | AA116: 103 | AT116: 0 | AU116: 0 | AV116: 156.6287884 | AW116: 0 | AY116: 0 | AZ116: 0 | BA116: 0 | BD116: 104 | BE116: 9.043806876 | BF116: -0.5019200502 | BH116: -55.22192005 | BJ116: 6.125742275e-17 | BK116: 90 | BL116: 90 | BM116: 0 | BN116: 90 | BO116: 156.6287884 | BP116: 90 | BQ116: 22.04862546 | BR116: 0 | BS116: 90 | BT116: 0 | BU116: 90 | BW116: 90 | BX116: 90 | BY116: 6.125742275e-17 | CI116: 0 | CJ116: 0 | CK116: 0 | CL116: 0 | CX116: 0
A117: 1 | B117: 44 | C117: 1.733333333 | D117: 0.5954534646 | E117: 171.068198 | F117: -0.9173912347 | G117: 156.5476296 | H117: -66.54762957 | I117: 0.1531673429 | J117: -0.3673323938 | K117: 22.63477239 | L117: 0 | M117: 90 | O117: 0 | P117: 0 | Q117: 0 | R117: 0 | S117: 0 | T117: 0 | U117: 0 | V117: 0 | W117: 0 | X117: 0 | Y117: 0 | AA117: 104 | AT117: 0 | AU117: 0 | AV117: 156.5476296 | AW117: 0 | AY117: 0 | AZ117: 0 | BA117: 0 | BD117: 105 | BE117: 9.414893347 | BF117: -0.2401240578 | BH117: -54.96012406 | BJ117: 6.125742275e-17 | BK117: 90 | BL117: 90 | BM117: 0 | BN117: 90 | BO117: 156.5476296 | BP117: 90 | BQ117: 22.63477239 | BR117: 0 | BS117: 90 | BT117: 0 | BU117: 90 | BW117: 90 | BX117: 90 | BY117: 6.125742275e-17 | CI117: 0 | CJ117: 0 | CK117: 0 | CL117: 0 | CX117: 0
A118: 1 | B118: 45 | C118: 1.75 | D118: 0.6121201313 | E118: 170.818198 | F118: -0.9168125663 | G118: 156.4644612 | H118: -66.4644612 | I118: 0.1574182215 | J118: -0.3669798658 | K118: 23.21720394 | L118: 0 | M118: 90 | O118: 0 | P118: 0 | Q118: 0 | R118: 0 | S118: 0 | T118: 0 | U118: 0 | V118: 0 | W118: 0 | X118: 0 | Y118: 0 | AA118: 105 | AT118: 0 | AU118: 0 | AV118: 156.4644612 | AW118: 0 | AY118: 0 | AZ118: 0 | BA118: 0 | BD118: 106 | BE118: 9.783189981 | BF118: 0.0152911166 | BH118: -54.70470888 | BJ118: 6.125742275e-17 | BK118: 90 | BL118: 90 | BM118: 0 | BN118: 90 | BO118: 156.4644612 | BP118: 90 | BQ118: 23.21720394 | BR118: 0 | BS118: 90 | BT118: 0 | BU118: 90 | BW118: 90 | BX118: 90 | BY118: 6.125742275e-17 | CI118: 0 | CJ118: 0 | CK118: 0 | CL118: 0 | CX118: 0
A119: 1 | B119: 46 | C119: 1.766666667 | D119: 0.6287867979 | E119: 170.568198 | F119: -0.9162180633 | G119: 156.3793047 | H119: -66.3793047 | I119: 0.161666103 | J119: -0.3666176914 | K119: 23.79587013 | L119: 0 | M119: 90 | O119: 0 | P119: 0 | Q119: 0 | R119: 0 | S119: 0 | T119: 0 | U119: 0 | V119: 0 | W119: 0 | X119: 0 | Y119: 0 | AA119: 106 | AT119: 0 | AU119: 0 | AV119: 156.3793047 | AW119: 0 | AY119: 0 | AZ119: 0 | BA119: 0 | BD119: 107 | BE119: 10.14858765 | BF119: 0.2640489797 | BH119: -54.45595102 | BJ119: 6.125742275e-17 | BK119: 90 | BL119: 90 | BM119: 0 | BN119: 90 | BO119: 156.3793047 | BP119: 90 | BQ119: 23.79587013 | BR119: 0 | BS119: 90 | BT119: 0 | BU119: 90 | BW119: 90 | BX119: 90 | BY119: 6.125742275e-17 | CI119: 0 | CJ119: 0 | CK119: 0 | CL119: 0 | CX119: 0
A120: 1 | B120: 47 | C120: 1.783333333 | D120: 0.6454534646 | E120: 170.318198 | F120: -0.9156077372 | G120: 156.2921817 | H120: -66.29218172 | I120: 0.1659109067 | J120: -0.3662458774 | K120: 24.37072424 | L120: 0 | M120: 90 | O120: 0 | P120: 0 | Q120: 0 | R120: 0 | S120: 0 | T120: 0 | U120: 0 | V120: 0 | W120: 0 | X120: 0 | Y120: 0 | AA120: 107 | AT120: 0 | AU120: 0 | AV120: 156.2921817 | AW120: 0 | AY120: 0 | AZ120: 0 | BA120: 0 | BD120: 108 | BE120: 10.51097806 | BF120: 0.5058828959 | BH120: -54.2141171 | BJ120: 6.125742275e-17 | BK120: 90 | BL120: 90 | BM120: 0 | BN120: 90 | BO120: 156.2921817 | BP120: 90 | BQ120: 24.37072424 | BR120: 0 | BS120: 90 | BT120: 0 | BU120: 90 | BW120: 90 | BX120: 90 | BY120: 6.125742275e-17 | CI120: 0 | CJ120: 0 | CK120: 0 | CL120: 0 | CX120: 0
A121: 1 | B121: 48 | C121: 1.8 | D121: 0.6621201313 | E121: 170.068198 | F121: -0.9149815995 | G121: 156.2031141 | H121: -66.20311407 | I121: 0.1701525517 | J121: -0.3658644309 | K121: 24.94172276 | L121: 0 | M121: 90 | O121: 0 | P121: 0 | Q121: 0 | R121: 0 | S121: 0 | T121: 0 | U121: 0 | V121: 0 | W121: 0 | X121: 0 | Y121: 0 | AA121: 108 | AT121: 0 | AU121: 0 | AV121: 156.2031141 | AW121: 0 | AY121: 0 | AZ121: 0 | BA121: 0 | BD121: 109 | BE121: 10.87025385 | BF121: 0.7405363946 | BH121: -53.97946361 | BJ121: 6.125742275e-17 | BK121: 90 | BL121: 90 | BM121: 0 | BN121: 90 | BO121: 156.2031141 | BP121: 90 | BQ121: 24.94172276 | BR121: 0 | BS121: 90 | BT121: 0 | BU121: 90 | BW121: 90 | BX121: 90 | BY121: 6.125742275e-17 | CI121: 0 | CJ121: 0 | CK121: 0 | CL121: 0 | CX121: 0
A122: 1 | B122: 49 | C122: 1.816666667 | D122: 0.6787867979 | E122: 169.818198 | F122: -0.9143396621 | G122: 156.1121237 | H122: -66.1121237 | I122: 0.1743909572 | J122: -0.3654733592 | K122: 25.50882538 | L122: 0 | M122: 90 | O122: 0 | P122: 0 | Q122: 0 | R122: 0 | S122: 0 | T122: 0 | U122: 0 | V122: 0 | W122: 0 | X122: 0 | Y122: 0 | AA122: 109 | AT122: 0 | AU122: 0 | AV122: 156.1121237 | AW122: 0 | AY122: 0 | AZ122: 0 | BA122: 0 | BD122: 110 | BE122: 11.22630855 | BF122: 0.9677634656 | BH122: -53.75223653 | BJ122: 6.125742275e-17 | BK122: 90 | BL122: 90 | BM122: 0 | BN122: 90 | BO122: 156.1121237 | BP122: 90 | BQ122: 25.50882538 | BR122: 0 | BS122: 90 | BT122: 0 | BU122: 90 | BW122: 90 | BX122: 90 | BY122: 6.125742275e-17 | CI122: 0 | CJ122: 0 | CK122: 0 | CL122: 0 | CX122: 0
A123: 1 | B123: 50 | C123: 1.833333333 | D123: 0.6954534646 | E123: 169.568198 | F123: -0.9136819374 | G123: 156.0192327 | H123: -66.01923275 | I123: 0.1786260426 | J123: -0.3650726697 | K123: 26.07199491 | L123: 0 | M123: 90 | O123: 0 | P123: 0 | Q123: 0 | R123: 0 | S123: 0 | T123: 0 | U123: 0 | V123: 0 | W123: 0 | X123: 0 | Y123: 0 | AA123: 110 | AT123: 0 | AU123: 0 | AV123: 156.0192327 | AW123: 0 | AY123: 0 | AZ123: 0 | BA123: 0 | BD123: 111 | BE123: 11.57903665 | BF123: 1.187328841 | BH123: -53.53267116 | BJ123: 6.125742275e-17 | BK123: 90 | BL123: 90 | BM123: 0 | BN123: 90 | BO123: 156.0192327 | BP123: 90 | BQ123: 26.07199491 | BR123: 0 | BS123: 90 | BT123: 0 | BU123: 90 | BW123: 90 | BX123: 90 | BY123: 6.125742275e-17 | CI123: 0 | CJ123: 0 | CK123: 0 | CL123: 0 | CX123: 0
A124: 1 | B124: 51 | C124: 1.85 | D124: 0.7121201313 | E124: 169.318198 | F124: -0.9130084378 | G124: 155.9244634 | H124: -65.92446343 | I124: 0.1828577271 | J124: -0.3646623701 | K124: 26.63119721 | L124: 0 | M124: 90 | O124: 0 | P124: 0 | Q124: 0 | R124: 0 | S124: 0 | T124: 0 | U124: 0 | V124: 0 | W124: 0 | X124: 0 | Y124: 0 | AA124: 111 | AT124: 0 | AU124: 0 | AV124: 155.9244634 | AW124: 0 | AY124: 0 | AZ124: 0 | BA124: 0 | BD124: 112 | BE124: 11.92833363 | BF124: 1.399008264 | BH124: -53.32099174 | BJ124: 6.125742275e-17 | BK124: 90 | BL124: 90 | BM124: 0 | BN124: 90 | BO124: 155.9244634 | BP124: 90 | BQ124: 26.63119721 | BR124: 0 | BS124: 90 | BT124: 0 | BU124: 90 | BW124: 90 | BX124: 90 | BY124: 6.125742275e-17 | CI124: 0 | CJ124: 0 | CK124: 0 | CL124: 0 | CX124: 0
A125: 1 | B125: 52 | C125: 1.866666667 | D125: 0.7287867979 | E125: 169.068198 | F125: -0.9123191761 | G125: 155.8278381 | H125: -65.82783806 | I125: 0.1870859304 | J125: -0.3642424681 | K125: 27.18640121 | L125: 0 | M125: 90 | O125: =IF($L125>0,1/F125,0) -> 0 | P125: 0 | Q125: 0 | R125: 0 | S125: 0 | T125: 0 | U125: 0 | V125: 0 | W125: 0 | X125: 0 | Y125: 0 | AA125: 112 | AT125: 0 | AU125: 0 | AV125: 155.8278381 | AW125: 0 | AY125: 0 | AZ125: =IF(L125=1,IF(L124=0,ROW(),0),0) -> 0 | BA125: =IF(L125=1,IF(L126=0,ROW(),0),0) -> 0 | BD125: 113 | BE125: 12.27409599 | BF125: 1.602588745 | BH125: -53.11741126 | BJ125: 6.125742275e-17 | BK125: 90 | BL125: 90 | BM125: 0 | BN125: 90 | BO125: 155.8278381 | BP125: 90 | BQ125: 27.18640121 | BR125: 0 | BS125: 90 | BT125: 0 | BU125: 90 | BW125: 90 | BX125: 90 | BY125: 6.125742275e-17 | CI125: 0 | CJ125: 0 | CK125: 0 | CL125: 0 | CX125: 0
A126: 1 | B126: 53 | C126: 1.883333333 | D126: =C126+$C$9 -> 0.7454534646 | E126: 168.818198 | F126: -0.9116141655 | G126: 155.7293791 | H126: -65.72937906 | I126: 0.1913105717 | J126: -0.3638129718 | K126: 27.73757877 | L126: 0 | M126: 90 | O126: 0 | P126: 0 | Q126: 0 | R126: =IF($L126>0,P126*EXP(-Q126*O126),0) -> 0 | S126: 0 | T126: =IF($L126>0,S126*R126,0) -> 0 | U126: =IF($L126>0,IF(M126<=90,R126*COS(M126*PI()/180),0),0) -> 0 | V126: 0 | W126: =IF($L126,T126*(1+COS($E$6*PI()/180))/2,0) -> 0 | X126: =IF($L126>0,$X$9*(V126+T126)*(1-COS($E$6*PI()/180))/2,0) -> 0 | Y126: =IF($L126>0,U126+W126+X126,0) -> 0 | AA126: 113 | AT126: 0 | AU126: 0 | AV126: 155.7293791 | AW126: 0 | AY126: 0 | AZ126: 0 | BA126: 0 | BD126: 114 | BE126: 12.61622127 | BF126: 1.797868799 | BH126: -52.9221312 | BJ126: 6.125742275e-17 | BK126: 90 | BL126: 90 | BM126: 0 | BN126: 90 | BO126: 155.7293791 | BP126: 90 | BQ126: 27.73757877 | BR126: 0 | BS126: 90 | BT126: 0 | BU126: 90 | BW126: 90 | BX126: 90 | BY126: 6.125742275e-17 | CI126: 0 | CJ126: 0 | CK126: 0 | CL126: 0 | CX126: 0
A127: 1 | B127: 54 | C127: 1.9 | D127: 0.7621201313 | E127: 168.568198 | F127: -0.9108934193 | G127: 155.6291089 | H127: -65.62910889 | I127: 0.1955315709 | J127: -0.3633738893 | K127: 28.28470466 | L127: 0 | M127: 90 | O127: 0 | P127: 0 | Q127: 0 | R127: 0 | S127: 0 | T127: 0 | U127: 0 | V127: 0 | W127: 0 | X127: 0 | Y127: 0 | AA127: 114 | AT127: 0 | AU127: 0 | AV127: 155.6291089 | AW127: 0 | AY127: 0 | AZ127: 0 | BA127: 0 | BD127: 115 | BE127: 12.95460809 | BF127: 1.984658678 | BH127: -52.73534132 | BJ127: 6.125742275e-17 | BK127: 90 | BL127: 90 | BM127: 0 | BN127: 90 | BO127: 155.6291089 | BP127: 90 | BQ127: 28.28470466 | BR127: 0 | BS127: 90 | BT127: 0 | BU127: 90 | BW127: 90 | BX127: 90 | BY127: 6.125742275e-17 | CI127: 0 | CJ127: 0 | CK127: 0 | CL127: 0 | CX127: 0
A128: 1 | B128: 55 | C128: 1.916666667 | D128: 0.7787867979 | E128: 168.318198 | F128: -0.9101569514 | G128: 155.5270501 | H128: -65.52705006 | I128: 0.1997488473 | J128: -0.3629252291 | K128: 28.82775649 | L128: 0 | M128: 90 | O128: 0 | P128: 0 | Q128: 0 | R128: 0 | S128: 0 | T128: 0 | U128: 0 | V128: 0 | W128: 0 | X128: 0 | Y128: 0 | AA128: 115 | AT128: 0 | AU128: 0 | AV128: 155.5270501 | AW128: 0 | AY128: 0 | AZ128: 0 | BA128: 0 | BD128: 116 | BE128: 13.28915619 | BF128: 2.162780581 | BH128: -52.55721942 | BJ128: 6.125742275e-17 | BK128: 90 | BL128: 90 | BM128: 0 | BN128: 90 | BO128: 155.5270501 | BP128: 90 | BQ128: 28.82775649 | BR128: 0 | BS128: 90 | BT128: 0 | BU128: 90 | BW128: 90 | BX128: 90 | BY128: 6.125742275e-17 | CI128: 0 | CJ128: 0 | CK128: 0 | CL128: 0 | CX128: 0
A129: 1 | B129: 56 | C129: 1.933333333 | D129: 0.7954534646 | E129: 168.068198 | F129: -0.9094047756 | G129: 155.4232251 | H129: -65.4232251 | I129: 0.2039623209 | J129: -0.3624669995 | K129: 29.36671463 | L129: 0 | M129: 90 | O129: 0 | P129: 0 | Q129: 0 | R129: 0 | S129: 0 | T129: 0 | U129: 0 | V129: 0 | W129: 0 | X129: 0 | Y129: 0 | AA129: 116 | AT129: 0 | AU129: 0 | AV129: 155.4232251 | AW129: 0 | AY129: 0 | AZ129: 0 | BA129: 0 | BD129: 117 | BE129: 13.61976641 | BF129: 2.33206885 | BH129: -52.38793115 | BJ129: 6.125742275e-17 | BK129: 90 | BL129: 90 | BM129: 0 | BN129: 90 | BO129: 155.4232251 | BP129: 90 | BQ129: 29.36671463 | BR129: 0 | BS129: 90 | BT129: 0 | BU129: 90 | BW129: 90 | BX129: 90 | BY129: 6.125742275e-17 | CI129: 0 | CJ129: 0 | CK129: 0 | CL129: 0 | CX129: 0
A130: 1 | B130: 57 | C130: 1.95 | D130: 0.8121201313 | E130: 167.818198 | F130: -0.9086369064 | G130: 155.3176566 | H130: -65.31765656 | I130: 0.2081719112 | J130: -0.3619992094 | K130: 29.90156215 | L130: 0 | M130: 90 | O130: 0 | P130: 0 | Q130: 0 | R130: 0 | S130: 0 | T130: 0 | U130: 0 | V130: 0 | W130: 0 | X130: 0 | Y130: 0 | AA130: 117 | AT130: 0 | AU130: 0 | AV130: 155.3176566 | AW130: 0 | AY130: 0 | AZ130: 0 | BA130: 0 | BD130: 118 | BE130: 13.94634081 | BF130: 2.492370155 | BH130: -52.22762984 | BJ130: 6.125742275e-17 | BK130: 90 | BL130: 90 | BM130: 0 | BN130: 90 | BO130: 155.3176566 | BP130: 90 | BQ130: 29.90156215 | BR130: 0 | BS130: 90 | BT130: 0 | BU130: 90 | BW130: 90 | BX130: 90 | BY130: 6.125742275e-17 | CI130: 0 | CJ130: 0 | CK130: 0 | CL130: 0 | CX130: 0
A131: 1 | B131: 58 | C131: 1.966666667 | D131: 0.8287867979 | E131: 167.568198 | F131: -0.9078533584 | G131: 155.210367 | H131: -65.21036697 | I131: 0.2123775383 | J131: -0.3615218677 | K131: 30.43228476 | L131: 0 | M131: 90 | O131: 0 | P131: 0 | Q131: 0 | R131: 0 | S131: 0 | T131: 0 | U131: 0 | V131: 0 | W131: 0 | X131: 0 | Y131: 0 | AA131: 118 | AT131: 0 | AU131: 0 | AV131: 155.210367 | AW131: 0 | AY131: 0 | AZ131: 0 | BA131: 0 | BD131: 119 | BE131: 14.2687826 | BF131: 2.643543664 | BH131: -52.07645634 | BJ131: 6.125742275e-17 | BK131: 90 | BL131: 90 | BM131: 0 | BN131: 90 | BO131: 155.210367 | BP131: 90 | BQ131: 30.43228476 | BR131: 0 | BS131: 90 | BT131: 0 | BU131: 90 | BW131: 90 | BX131: 90 | BY131: 6.125742275e-17 | CI131: 0 | CJ131: 0 | CK131: 0 | CL131: 0 | CX131: 0
A132: 1 | B132: 59 | C132: 1.983333333 | D132: 0.8454534646 | E132: 167.318198 | F132: -0.9070541465 | G132: 155.1013789 | H132: -65.10137885 | I132: 0.2165791221 | J132: -0.3610349835 | K132: 30.9588707 | L132: 0 | M132: 90 | O132: 0 | P132: 0 | Q132: 0 | R132: 0 | S132: 0 | T132: 0 | U132: 0 | V132: 0 | W132: 0 | X132: 0 | Y132: 0 | AA132: 119 | AT132: 0 | AU132: 0 | AV132: 155.1013789 | AW132: 0 | AY132: 0 | AZ132: 0 | BA132: 0 | BD132: 120 | BE132: 14.58699625 | BF132: 2.785461189 | BH132: -51.93453881 | BJ132: 6.125742275e-17 | BK132: 90 | BL132: 90 | BM132: 0 | BN132: 90 | BO132: 155.1013789 | BP132: 90 | BQ132: 30.9588707 | BR132: 0 | BS132: 90 | BT132: 0 | BU132: 90 | BW132: 90 | BX132: 90 | BY132: 6.125742275e-17 | CI132: 0 | CJ132: 0 | CK132: 0 | CL132: 0 | CX132: 0
A133: 2 | B133: 0 | C133: 2 | D133: 0.8621201313 | E133: 167.068198 | F133: -0.9062392858 | G133: 154.9907147 | H133: -64.99071467 | I133: 0.2207765824 | J133: -0.3605385659 | K133: 31.4813107 | L133: 0 | M133: 90 | O133: 0 | P133: 0 | Q133: 0 | R133: 0 | S133: 0 | T133: 0 | U133: 0 | V133: 0 | W133: 0 | X133: 0 | Y133: 0 | AA133: 120 | AT133: 0 | AU133: 0 | AV133: 154.9907147 | AW133: 0 | AY133: 0 | AZ133: 0 | BA133: 0 | BD133: 121 | BE133: 14.90088746 | BF133: 2.918007329 | BH133: -51.80199267 | BJ133: 6.125742275e-17 | BK133: 90 | BL133: 90 | BM133: 0 | BN133: 90 | BO133: 154.9907147 | BP133: 90 | BQ133: 31.4813107 | BR133: 0 | BS133: 90 | BT133: 0 | BU133: 90 | BW133: 90 | BX133: 90 | BY133: 6.125742275e-17 | CI133: 0 | CJ133: 0 | CK133: 0 | CL133: 0 | CX133: 0
A134: 2 | B134: 1 | C134: 2.016666667 | D134: 0.8787867979 | E134: 166.818198 | F134: -0.905408792 | G134: 154.8783969 | H134: -64.87839686 | I134: 0.2249698396 | J134: -0.3600326245 | K134: 31.99959791 | L134: 0 | M134: 90 | O134: 0 | P134: 0 | Q134: 0 | R134: 0 | S134: 0 | T134: 0 | U134: 0 | V134: 0 | W134: 0 | X134: 0 | Y134: 0 | AA134: 121 | AT134: 0 | AU134: 0 | AV134: 154.8783969 | AW134: 0 | AY134: 0 | AZ134: 0 | BA134: 0 | BD134: 122 | BE134: 15.21036321 | BF134: 3.041079587 | BH134: -51.67892041 | BJ134: 6.125742275e-17 | BK134: 90 | BL134: 90 | BM134: 0 | BN134: 90 | BO134: 154.8783969 | BP134: 90 | BQ134: 31.99959791 | BR134: 0 | BS134: 90 | BT134: 0 | BU134: 90 | BW134: 90 | BX134: 90 | BY134: 6.125742275e-17 | CI134: 0 | CJ134: 0 | CK134: 0 | CL134: 0 | CX134: 0
A135: 2 | B135: 2 | C135: 2.033333333 | D135: 0.8954534646 | E135: 166.568198 | F135: -0.9045626807 | G135: 154.7644478 | H135: -64.76444777 | I135: 0.2291588136 | J135: -0.359517169 | K135: 32.51372777 | L135: 0 | M135: 90 | O135: 0 | P135: 0 | Q135: 0 | R135: 0 | S135: 0 | T135: 0 | U135: 0 | V135: 0 | W135: 0 | X135: 0 | Y135: 0 | AA135: 122 | AT135: 0 | AU135: 0 | AV135: 154.7644478 | AW135: 0 | AY135: 0 | AZ135: 0 | BA135: 0 | BD135: 123 | BE135: 15.5153318 | BF135: 3.154588479 | BH135: -51.56541152 | BJ135: 6.125742275e-17 | BK135: 90 | BL135: 90 | BM135: 0 | BN135: 90 | BO135: 154.7644478 | BP135: 90 | BQ135: 32.51372777 | BR135: 0 | BS135: 90 | BT135: 0 | BU135: 90 | BW135: 90 | BX135: 90 | BY135: 6.125742275e-17 | CI135: 0 | CJ135: 0 | CK135: 0 | CL135: 0 | CX135: 0
A136: 2 | B136: 3 | C136: 2.05 | D136: 0.9121201313 | E136: 166.318198 | F136: -0.9037009682 | G136: 154.6488897 | H136: -64.64888968 | I136: 0.2333434247 | J136: -0.3589922091 | K136: 33.02369801 | L136: 0 | M136: 90 | O136: 0 | P136: 0 | Q136: 0 | R136: 0 | S136: 0 | T136: 0 | U136: 0 | V136: 0 | W136: 0 | X136: 0 | Y136: 0 | AA136: 123 | AT136: 0 | AU136: 0 | AV136: 154.6488897 | AW136: 0 | AY136: 0 | AZ136: 0 | BA136: 0 | BD136: 124 | BE136: 15.81570286 | BF136: 3.258457618 | BH136: -51.46154238 | BJ136: 6.125742275e-17 | BK136: 90 | BL136: 90 | BM136: 0 | BN136: 90 | BO136: 154.6488897 | BP136: 90 | BQ136: 33.02369801 | BR136: 0 | BS136: 90 | BT136: 0 | BU136: 90 | BW136: 90 | BX136: 90 | BY136: 6.125742275e-17 | CI136: 0 | CJ136: 0 | CK136: 0 | CL136: 0 | CX136: 0
A137: 2 | B137: 4 | C137: 2.066666667 | D137: 0.9287867979 | E137: 166.068198 | F137: -0.9028236709 | G137: 154.5317448 | H137: -64.53174478 | I137: 0.2375235933 | J137: -0.3584577547 | K137: 33.52950849 | L137: 0 | M137: 90 | O137: 0 | P137: 0 | Q137: 0 | R137: 0 | S137: 0 | T137: 0 | U137: 0 | V137: 0 | W137: 0 | X137: 0 | Y137: 0 | AA137: 124 | AT137: 0 | AU137: 0 | AV137: 154.5317448 | AW137: 0 | AY137: 0 | AZ137: 0 | BA137: 0 | BD137: 125 | BE137: 16.11138739 | BF137: 3.352623794 | BH137: -51.36737621 | BJ137: 6.125742275e-17 | BK137: 90 | BL137: 90 | BM137: 0 | BN137: 90 | BO137: 154.5317448 | BP137: 90 | BQ137: 33.52950849 | BR137: 0 | BS137: 90 | BT137: 0 | BU137: 90 | BW137: 90 | BX137: 90 | BY137: 6.125742275e-17 | CI137: 0 | CJ137: 0 | CK137: 0 | CL137: 0 | CX137: 0
A138: =A78+1 -> 2 | B138: =B78 -> 5 | C138: =A138+B138/60 -> 2.083333333 | D138: 0.9454534646 | E138: 165.818198 | F138: -0.9019308053 | G138: 154.4130352 | H138: -64.41303516 | I138: 0.2416992399 | J138: -0.3579138162 | K138: 34.03116121 | L138: 0 | M138: 90 | O138: 0 | P138: 0 | Q138: 0 | R138: 0 | S138: 0 | T138: 0 | U138: 0 | V138: 0 | W138: 0 | X138: 0 | Y138: 0 | AA138: 125 | AT138: 0 | AU138: 0 | AV138: 154.4130352 | AW138: 0 | AY138: 0 | AZ138: 0 | BA138: 0 | BD138: 126 | BE138: 16.40229777 | BF138: 3.437037027 | BH138: -51.28296297 | BJ138: 6.125742275e-17 | BK138: 90 | BL138: 90 | BM138: 0 | BN138: 90 | BO138: 154.4130352 | BP138: 90 | BQ138: 34.03116121 | BR138: 0 | BS138: 90 | BT138: 0 | BU138: 90 | BW138: 90 | BX138: 90 | BY138: 6.125742275e-17 | CI138: 0 | CJ138: 0 | CK138: 0 | CL138: 0 | CX138: 0
A139: 2 | B139: 6 | C139: 2.1 | D139: 0.9621201313 | E139: 165.568198 | F139: -0.9010223886 | G139: 154.2927828 | H139: -64.29278278 | I139: 0.2458702848 | J139: -0.3573604038 | K139: 34.52866016 | L139: 0 | M139: 90 | O139: 0 | P139: 0 | Q139: 0 | R139: 0 | S139: 0 | T139: 0 | U139: 0 | V139: 0 | W139: 0 | X139: 0 | Y139: 0 | AA139: 126 | AT139: 0 | AU139: 0 | AV139: 154.2927828 | AW139: 0 | AY139: 0 | AZ139: 0 | BA139: 0 | BD139: 127 | BE139: 16.68834779 | BF139: 3.511660607 | BH139: -51.20833939 | BJ139: 6.125742275e-17 | BK139: 90 | BL139: 90 | BM139: 0 | BN139: 90 | BO139: 154.2927828 | BP139: 90 | BQ139: 34.52866016 | BR139: 0 | BS139: 90 | BT139: 0 | BU139: 90 | BW139: 90 | BX139: 90 | BY139: 6.125742275e-17 | CI139: 0 | CJ139: 0 | CK139: 0 | CL139: 0 | CX139: 0
A140: 2 | B140: 7 | C140: 2.116666667 | D140: 0.9787867979 | E140: 165.318198 | F140: -0.9000984381 | G140: 154.1710095 | H140: -64.1710095 | I140: 0.2500366487 | J140: -0.3567975281 | K140: 35.02201126 | L140: 0 | M140: 90 | O140: 0 | P140: 0 | Q140: 0 | R140: 0 | S140: 0 | T140: 0 | U140: 0 | V140: 0 | W140: 0 | X140: 0 | Y140: 0 | AA140: 127 | AT140: 0 | AU140: 0 | AV140: 154.1710095 | AW140: 0 | AY140: 0 | AZ140: 0 | BA140: 0 | BD140: 128 | BE140: 16.9694527 | BF140: 3.576471122 | BH140: -51.14352888 | BJ140: 6.125742275e-17 | BK140: 90 | BL140: 90 | BM140: 0 | BN140: 90 | BO140: 154.1710095 | BP140: 90 | BQ140: 35.02201126 | BR140: 0 | BS140: 90 | BT140: 0 | BU140: 90 | BW140: 90 | BX140: 90 | BY140: 6.125742275e-17 | CI140: 0 | CJ140: 0 | CK140: 0 | CL140: 0 | CX140: 0
A141: 2 | B141: 8 | C141: 2.133333333 | D141: 0.9954534646 | E141: 165.068198 | F141: -0.8991589712 | G141: =ACOS(F141)*180/PI() -> 154.047737 | H141: =90-G141 -> -64.04773703 | I141: 0.2541982523 | J141: -0.3562251998 | K141: 35.51122232 | L141: 0 | M141: 90 | O141: 0 | P141: 0 | Q141: 0 | R141: 0 | S141: 0 | T141: 0 | U141: 0 | V141: 0 | W141: 0 | X141: 0 | Y141: 0 | AA141: 128 | AT141: 0 | AU141: =IF($L141>0,AC141-AT141,0) -> 0 | AV141: 154.047737 | AW141: =IF($L141>0,IF($M141>-0.001,IF($M141<90,IF($AU141>0,$AT141+$AU141/COS($AV141*PI()/180)*COS($M141*PI()/180),AT141),AT141),AT141),0) -> 0 | AY141: 0 | AZ141: 0 | BA141: 0 | BD141: 129 | BE141: =23.45*SIN(360/365*(BD141-81)*PI()/180) -> 17.24552919 | BF141: 3.631458464 | BH141: -51.08854154 | BJ141: 6.125742275e-17 | BK141: 90 | BL141: 90 | BM141: 0 | BN141: =IF($L141>0,180/PI()*ACOS(SIN($G141*PI()/180)*SIN($BM141*PI()/180)*COS(($K141-$F$6)*PI()/180)+$F141*COS($BM141*PI()/180)),90) -> 90 | BO141: 154.047737 | BP141: 90 | BQ141: 35.51122232 | BR141: =IF($L141>0,180/PI()*ATAN(SIN($BO141*PI()/180)*SIN($BQ141*PI()/180)/(SIN($E$6*PI()/180)*SIN($BO141*PI()/180)*COS($BQ141*PI()/180)-COS($E$6*PI()/180)*COS($BO141*PI()/180))),0) -> 0 | BS141: 90 | BT141: 0 | BU141: 90 | BW141: 90 | BX141: 90 | BY141: 6.125742275e-17 | CI141: 0 | CJ141: 0 | CK141: 0 | CL141: 0 | CX141: 0
A142: 2 | B142: 9 | C142: 2.15 | D142: 1.012120131 | E142: =180*(12-D142)/12 -> 164.818198 | F142: -0.898204006 | G142: 153.9229869 | H142: -63.92298693 | I142: 0.2583550163 | J142: -0.3556434298 | K142: =IF(I142>0,ACOS(-J142/SQRT(I142^2+J142^2))*180/PI(),(PI()+ACOS(J142/SQRT(I142^2+J142^2)))*180/PI()) -> 35.99630292 | L142: =IF(H142<0,0,1) -> 0 | M142: =$BX142 -> 90 | O142: 0 | P142: =IF($L142>0,$P$7+$P$9*SIN(360/365*($A$6-$P$11)*PI()/180),0) -> 0 | Q142: =IF($L142>0,$Q$9+$Q$11*SIN(360/365*($A$6-100)*PI()/180),0) -> 0 | R142: 0 | S142: =IF($L142>0,$S$9+$S$11*SIN(360/365*($A$6-100)*PI()/180),0) -> 0 | T142: 0 | U142: 0 | V142: 0 | W142: 0 | X142: 0 | Y142: 0 | AA142: 129 | AT142: =MIN(AG142:AI142) -> 0 | AU142: 0 | AV142: =IF(G142<90,IF(G142>80,80,G142),G142) -> 153.9229869 | AW142: 0 | AY142: =IF($L142>0,AJ142,0) -> 0 | AZ142: 0 | BA142: 0 | BD142: 130 | BE142: 17.51649546 | BF142: 3.676625824 | BH142: -51.04337418 | BJ142: =COS(BL142*PI()/180) -> 6.125742275e-17 | BK142: =IF($L142>0,180/PI()*ACOS(SIN($G142*PI()/180)*SIN($E$6*PI()/180)*COS(($K142-$F$6)*PI()/180)+$F142*COS($E$6*PI()/180)),90) -> 90 | BL142: =IF(BK142>90,90,BK142) -> 90 | BM142: =IF($L142>0,180/PI()*ASIN(SQRT(1/(1+COS($BO142*PI()/180) * COS($BO142*PI()/180) /SIN($BO142*PI()/180)/SIN($BO142*PI()/180)/COS(($K142-$F$6)*PI()/180)/COS(($K142-$F$6)*PI()/180)))),0) -> 0 | BN142: 90 | BO142: =G142 -> 153.9229869 | BP142: =IF(BN142<BO142,BN142,BO142) -> 90 | BQ142: =K142 -> 35.99630292 | BR142: 0 | BS142: =IF($L142>0,180/PI()*ACOS(-SIN(BR142*PI()/180)*SIN($BO142*PI()/180)*SIN(BQ142*PI()/180)-SIN($E$6*PI()/180)*COS(BR142*PI()/180)*SIN($BO142*PI()/180)*COS(BQ142*PI()/180)+COS($E$6*PI()/180)*COS($BR142*PI()/180)*COS(BO142*PI()/180)),90) -> 90 | BT142: =IF($L142>0,180/PI()*ASIN(SQRT(1/(1+$F142*$F142/SIN($G142*PI()/180)/SIN($G142*PI()/180)))),0) -> 0 | BU142: =IF($L142>0,0,90) -> 90 | BW142: =IF($I$6=0,$BK142,IF($I$6=1,$BS142,IF($I$6=2,$BP142,IF($I$6=3,$BU142)))) -> 90 | BX142: =IF(BW142<90,BW142,90) -> 90 | BY142: =COS(BX142*PI()/180) -> 6.125742275e-17 | CI142: 0 | CJ142: 0 | CK142: 0 | CL142: 0 | CP142: =IF($CO142<>"",ROUND(100*INT($CO142)+($CO142-INT($CO142))*60,0),"") ->  | CS142: =IF($CR142<>"",ROUND(100*INT($CR142)+($CR142-INT($CR142))*60,0),"") ->  | CX142: =MAX(AG142:AI142) -> 0
A143: 2 | B143: 10 | C143: 2.166666667 | D143: 1.028786798 | E143: 164.568198 | F143: =SIN($B$6*PI()/180)*SIN($A$9*PI()/180)+COS($B$6*PI()/180)*COS($A$9*PI()/180)*COS(E143*PI()/180) -> -0.8972335606 | G143: 153.7967806 | H143: -63.79678062 | I143: =COS($A$9*PI()/180)*SIN(E143*PI()/180) -> 0.2625068616 | J143: =-SIN($A$9*PI()/180)*COS($B$6*PI()/180)+COS($A$9*PI()/180)*SIN($B$6*PI()/180)*COS(E143*PI()/180) -> -0.3550522292 | K143: 36.47726435 | L143: 0 | M143: 90 | O143: 0 | P143: 0 | Q143: 0 | R143: 0 | S143: 0 | T143: 0 | U143: 0 | V143: 0 | W143: 0 | X143: 0 | Y143: 0 | AA143: =AA142+1 -> 130 | AT143: 0 | AU143: 0 | AV143: 153.7967806 | AW143: 0 | AY143: 0 | AZ143: 0 | BA143: 0 | BD143: =BD142+1 -> 131 | BE143: 17.78227121 | BF143: =9.87*SIN(2*360/365*(BD143-81)*PI()/180)-7.53*COS(360/365*(BD143-81)*PI()/180)-1.5*SIN(360/365*(BD143-81)*PI()/180) -> 3.711989664 | BH143: -51.00801034 | BJ143: 6.125742275e-17 | BK143: 90 | BL143: 90 | BM143: 0 | BN143: 90 | BO143: 153.7967806 | BP143: 90 | BQ143: 36.47726435 | BR143: 0 | BS143: 90 | BT143: 0 | BU143: 90 | BW143: 90 | BX143: 90 | BY143: 6.125742275e-17 | CI143: 0 | CJ143: 0 | CK143: 0 | CL143: 0 | CT143: =IF($H143<= 0,IF($H144>=0,$K143,""),"") ->  | CU143: =IF($H143>= 0,IF($H144<=0,$K143,""),"") ->  | CX143: 0
A144: 2 | B144: 11 | C144: 2.183333333 | D144: 1.045453465 | E144: 164.318198 | F144: -0.8962476534 | G144: 153.6691394 | H144: -63.66913935 | I144: 0.2666537091 | J144: -0.3544516092 | K144: 36.95411955 | L144: 0 | M144: 90 | O144: 0 | P144: 0 | Q144: 0 | R144: 0 | S144: 0 | T144: 0 | U144: 0 | V144: 0 | W144: 0 | X144: 0 | Y144: 0 | AA144: 131 | AT144: 0 | AU144: 0 | AV144: 153.6691394 | AW144: 0 | AY144: 0 | AZ144: 0 | BA144: 0 | BD144: 132 | BE144: 18.04277769 | BF144: 3.73757968 | BH144: =BF144+$C$6*60/15 -> -50.98242032 | BJ144: 6.125742275e-17 | BK144: 90 | BL144: 90 | BM144: 0 | BN144: 90 | BO144: 153.6691394 | BP144: 90 | BQ144: 36.95411955 | BR144: 0 | BS144: 90 | BT144: 0 | BU144: 90 | BW144: 90 | BX144: 90 | BY144: 6.125742275e-17 | CI144: 0 | CJ144: 0 | CK144: 0 | CL144: 0 | CX144: 0
A145: 2 | B145: 12 | C145: 2.2 | D145: 1.062120131 | E145: 164.068198 | F145: -0.8952463032 | G145: 153.5400842 | H145: -63.54008421 | I145: 0.2707954799 | J145: -0.3538415812 | K145: 37.42688302 | L145: 0 | M145: 90 | O145: 0 | P145: 0 | Q145: 0 | R145: 0 | S145: 0 | T145: 0 | U145: 0 | V145: 0 | W145: 0 | X145: 0 | Y145: 0 | AA145: 132 | AT145: 0 | AU145: 0 | AV145: 153.5400842 | AW145: 0 | AY145: 0 | AZ145: 0 | BA145: 0 | BD145: 133 | BE145: 18.29793771 | BF145: 3.753438744 | BH145: -50.96656126 | BJ145: 6.125742275e-17 | BK145: 90 | BL145: 90 | BM145: 0 | BN145: 90 | BO145: 153.5400842 | BP145: 90 | BQ145: 37.42688302 | BR145: 0 | BS145: 90 | BT145: 0 | BU145: 90 | BW145: 90 | BX145: 90 | BY145: 6.125742275e-17 | CI145: 0 | CJ145: 0 | CK145: 0 | CL145: 0 | CX145: 0
A146: 2 | B146: 13 | C146: 2.216666667 | D146: 1.078786798 | E146: 163.818198 | F146: -0.8942295292 | G146: 153.4096361 | H146: -63.40963612 | I146: 0.2749320952 | J146: -0.3532221569 | K146: 37.89557072 | L146: 0 | M146: 90 | O146: 0 | P146: 0 | Q146: 0 | R146: 0 | S146: 0 | T146: 0 | U146: 0 | V146: 0 | W146: 0 | X146: 0 | Y146: 0 | AA146: 133 | AT146: 0 | AU146: 0 | AV146: 153.4096361 | AW146: 0 | AY146: 0 | AZ146: 0 | BA146: 0 | BD146: 134 | BE146: 18.54767565 | BF146: 3.759622832 | BH146: -50.96037717 | BJ146: 6.125742275e-17 | BK146: 90 | BL146: 90 | BM146: 0 | BN146: 90 | BO146: 153.4096361 | BP146: 90 | BQ146: 37.89557072 | BR146: 0 | BS146: 90 | BT146: 0 | BU146: 90 | BW146: 90 | BX146: 90 | BY146: 6.125742275e-17 | CI146: 0 | CJ146: 0 | CK146: 0 | CL146: 0 | CX146: 0
A147: 2 | B147: 14 | C147: 2.233333333 | D147: 1.095453465 | E147: 163.568198 | F147: -0.8931973506 | G147: 153.2778158 | H147: -63.27781578 | I147: 0.2790634762 | J147: -0.3525933481 | K147: 38.36020007 | L147: 0 | M147: 90 | O147: 0 | P147: 0 | Q147: 0 | R147: 0 | S147: 0 | T147: 0 | U147: 0 | V147: 0 | W147: 0 | X147: 0 | Y147: 0 | AA147: 134 | AT147: 0 | AU147: 0 | AV147: 153.2778158 | AW147: 0 | AY147: 0 | AZ147: 0 | BA147: 0 | BD147: 135 | BE147: 18.79191752 | BF147: 3.756200936 | BH147: -50.96379906 | BJ147: 6.125742275e-17 | BK147: 90 | BL147: 90 | BM147: 0 | BN147: 90 | BO147: 153.2778158 | BP147: 90 | BQ147: 38.36020007 | BR147: 0 | BS147: 90 | BT147: 0 | BU147: 90 | BW147: 90 | BX147: 90 | BY147: 6.125742275e-17 | CI147: 0 | CJ147: 0 | CK147: 0 | CL147: 0 | CX147: 0
A148: 2 | B148: 15 | C148: 2.25 | D148: 1.112120131 | E148: 163.318198 | F148: -0.8921497871 | G148: 153.1446437 | H148: -63.14464375 | I148: 0.2831895442 | J148: -0.3519551668 | K148: 38.82078982 | L148: 0 | M148: 90 | O148: 0 | P148: 0 | Q148: 0 | R148: 0 | S148: 0 | T148: 0 | U148: 0 | V148: 0 | W148: 0 | X148: 0 | Y148: 0 | AA148: 135 | AT148: 0 | AU148: 0 | AV148: 153.1446437 | AW148: 0 | AY148: 0 | AZ148: 0 | BA148: 0 | BD148: 136 | BE148: 19.03059093 | BF148: 3.743254959 | BH148: -50.97674504 | BJ148: 6.125742275e-17 | BK148: 90 | BL148: 90 | BM148: 0 | BN148: 90 | BO148: 153.1446437 | BP148: 90 | BQ148: 38.82078982 | BR148: 0 | BS148: 90 | BT148: 0 | BU148: 90 | BW148: 90 | BX148: 90 | BY148: 6.125742275e-17 | CI148: 0 | CJ148: 0 | CK148: 0 | CL148: 0 | CX148: 0
A149: 2 | B149: 16 | C149: 2.266666667 | D149: 1.128786798 | E149: 163.068198 | F149: -0.8910868587 | G149: 153.0101404 | H149: -63.01014036 | I149: 0.2873102207 | J149: -0.351307625 | K149: 39.27736 | L149: 0 | M149: 90 | O149: 0 | P149: 0 | Q149: 0 | R149: 0 | S149: 0 | T149: 0 | U149: 0 | V149: 0 | W149: 0 | X149: 0 | Y149: 0 | AA149: 136 | AT149: 0 | AU149: 0 | AV149: 153.0101404 | AW149: 0 | AY149: 0 | AZ149: 0 | BA149: 0 | BD149: 137 | BE149: 19.26362517 | BF149: 3.720879594 | BH149: -50.99912041 | BJ149: 6.125742275e-17 | BK149: 90 | BL149: 90 | BM149: 0 | BN149: 90 | BO149: 153.0101404 | BP149: 90 | BQ149: 39.27736 | BR149: 0 | BS149: 90 | BT149: 0 | BU149: 90 | BW149: 90 | BX149: 90 | BY149: 6.125742275e-17 | CI149: 0 | CJ149: 0 | CK149: 0 | CL149: 0 | CN149: =IF($H149<= 0,IF($H150>=0,$H149,""),"") ->  | CO149: =IF($H149<= 0,IF($H150>=0,$A149+$B149/60+($A150+$B150/60-$A149-$B149/60)*(-$H149/($H150-$H149)),""),"") ->  | CQ149: =IF($H148>=0,IF($H149<=0,$H149,""),"") ->  | CR149: =IF($H148>= 0,IF($H149<=0,$A149+$B149/60+($A150+$B150/60-$A149-$B149/60)*(-$H149/($H150-$H149)),""),"") ->  | CX149: 0
A150: 2 | B150: 17 | C150: 2.283333333 | D150: 1.145453465 | E150: 162.818198 | F150: -0.8900085855 | G150: 152.8743258 | H150: -62.87432576 | I150: 0.2914254272 | J150: -0.3506507351 | K150: 39.72993184 | L150: 0 | M150: 90 | O150: 0 | P150: 0 | Q150: 0 | R150: 0 | S150: 0 | T150: 0 | U150: 0 | V150: 0 | W150: 0 | X150: 0 | Y150: 0 | AA150: 137 | AT150: 0 | AU150: 0 | AV150: 152.8743258 | AW150: 0 | AY150: 0 | AZ150: 0 | BA150: 0 | BD150: 138 | BE150: 19.49095119 | BF150: 3.68918219 | BH150: -51.03081781 | BJ150: 6.125742275e-17 | BK150: 90 | BL150: 90 | BM150: 0 | BN150: 90 | BO150: 152.8743258 | BP150: 90 | BQ150: 39.72993184 | BR150: 0 | BS150: 90 | BT150: 0 | BU150: 90 | BW150: 90 | BX150: 90 | BY150: 6.125742275e-17 | CI150: =V150 -> 0 | CJ150: =IF($L150,T150,0) -> 0 | CK150: 0 | CL150: =SUM(CI150:CK150) -> 0 | CX150: 0
A151: 2 | B151: 18 | C151: 2.3 | D151: 1.162120131 | E151: 162.568198 | F151: -0.8889149882 | G151: 152.7372199 | H151: -62.73721988 | I151: 0.2955350854 | J151: -0.3499845097 | K151: 40.17852774 | L151: 0 | M151: 90 | O151: 0 | P151: 0 | Q151: 0 | R151: 0 | S151: 0 | T151: 0 | U151: 0 | V151: 0 | W151: 0 | X151: 0 | Y151: 0 | AA151: 138 | AT151: 0 | AU151: 0 | AV151: 152.7372199 | AW151: 0 | AY151: 0 | AZ151: 0 | BA151: 0 | BD151: 139 | BE151: 19.71250161 | BF151: 3.648282601 | BH151: -51.0717174 | BJ151: 6.125742275e-17 | BK151: 90 | BL151: 90 | BM151: 0 | BN151: 90 | BO151: 152.7372199 | BP151: 90 | BQ151: 40.17852774 | BR151: 0 | BS151: 90 | BT151: 0 | BU151: 90 | BW151: 90 | BX151: 90 | BY151: 6.125742275e-17 | CI151: 0 | CJ151: 0 | CK151: 0 | CL151: 0 | CX151: 0
A152: 2 | B152: 19 | C152: 2.316666667 | D152: 1.178786798 | E152: 162.318198 | F152: -0.8878060875 | G152: 152.5988425 | H152: -62.59884245 | I152: 0.299639117 | J152: -0.3493089614 | K152: 40.62317118 | L152: 0 | M152: 90 | O152: 0 | P152: 0 | Q152: 0 | R152: 0 | S152: 0 | T152: 0 | U152: 0 | V152: 0 | W152: 0 | X152: 0 | Y152: 0 | AA152: 139 | AT152: 0 | AU152: 0 | AV152: 152.5988425 | AW152: 0 | AY152: 0 | AZ152: 0 | BA152: 0 | BD152: 140 | BE152: 19.9282108 | BF152: 3.598313016 | BH152: -51.12168698 | BJ152: 6.125742275e-17 | BK152: 90 | BL152: 90 | BM152: 0 | BN152: 90 | BO152: 152.5988425 | BP152: 90 | BQ152: 40.62317118 | BR152: 0 | BS152: 90 | BT152: 0 | BU152: 90 | BW152: 90 | BX152: 90 | BY152: 6.125742275e-17 | CI152: 0 | CJ152: 0 | CK152: 0 | CL152: 0 | CX152: 0
A153: 2 | B153: 20 | C153: 2.333333333 | D153: 1.195453465 | E153: 162.068198 | F153: -0.8866819046 | G153: 152.459213 | H153: -62.45921299 | I153: 0.3037374439 | J153: -0.348624103 | K153: 41.06388662 | L153: 0 | M153: 90 | O153: 0 | P153: 0 | Q153: 0 | R153: 0 | S153: 0 | T153: 0 | U153: 0 | V153: 0 | W153: 0 | X153: 0 | Y153: 0 | AA153: 140 | AT153: 0 | AU153: 0 | AV153: 152.459213 | AW153: 0 | AY153: 0 | AZ153: 0 | BA153: 0 | BD153: 141 | BE153: 20.13801482 | BF153: 3.539417782 | BH153: -51.18058222 | BJ153: 6.125742275e-17 | BK153: 90 | BL153: 90 | BM153: 0 | BN153: 90 | BO153: 152.459213 | BP153: 90 | BQ153: 41.06388662 | BR153: 0 | BS153: 90 | BT153: 0 | BU153: 90 | BW153: 90 | BX153: 90 | BY153: 6.125742275e-17 | CI153: 0 | CJ153: 0 | CK153: 0 | CL153: 0 | CX153: 0
A154: 2 | B154: 21 | C154: 2.35 | D154: 1.212120131 | E154: 161.818198 | F154: -0.8855424608 | G154: 152.3183508 | H154: -62.3183508 | I154: 0.3078299881 | J154: -0.3479299477 | K154: 41.50069954 | L154: 0 | M154: 90 | O154: 0 | P154: 0 | Q154: 0 | R154: 0 | S154: 0 | T154: 0 | U154: 0 | V154: 0 | W154: 0 | X154: 0 | Y154: 0 | AA154: 141 | AT154: 0 | AU154: 0 | AV154: 152.3183508 | AW154: 0 | AY154: 0 | AZ154: 0 | BA154: 0 | BD154: 142 | BE154: 20.34185152 | BF154: 3.471753206 | BH154: -51.24824679 | BJ154: 6.125742275e-17 | BK154: 90 | BL154: 90 | BM154: 0 | BN154: 90 | BO154: 152.3183508 | BP154: 90 | BQ154: 41.50069954 | BR154: 0 | BS154: 90 | BT154: 0 | BU154: 90 | BW154: 90 | BX154: 90 | BY154: 6.125742275e-17 | CI154: 0 | CJ154: 0 | CK154: 0 | CL154: 0 | CX154: 0
A155: 2 | B155: 22 | C155: 2.366666667 | D155: 1.228786798 | E155: 161.568198 | F155: -0.8843877779 | G155: 152.1762749 | H155: -62.17627495 | I155: 0.3119166717 | J155: -0.3472265086 | K155: 41.93363627 | L155: 0 | M155: 90 | O155: 0 | P155: 0 | Q155: 0 | R155: 0 | S155: 0 | T155: 0 | U155: 0 | V155: 0 | W155: 0 | X155: 0 | Y155: 0 | AA155: 142 | AT155: 0 | AU155: 0 | AV155: 152.1762749 | AW155: 0 | AY155: 0 | AZ155: 0 | BA155: 0 | BD155: 143 | BE155: 20.53966049 | BF155: 3.395487343 | BH155: -51.32451266 | BJ155: 6.125742275e-17 | BK155: 90 | BL155: 90 | BM155: 0 | BN155: 90 | BO155: 152.1762749 | BP155: 90 | BQ155: 41.93363627 | BR155: 0 | BS155: 90 | BT155: 0 | BU155: 90 | BW155: 90 | BX155: 90 | BY155: 6.125742275e-17 | CI155: 0 | CJ155: 0 | CK155: 0 | CL155: 0 | CX155: 0
A156: 2 | B156: 23 | C156: 2.383333333 | D156: 1.245453465 | E156: 161.318198 | F156: -0.8832178778 | G156: 152.0330043 | H156: -62.0330043 | I156: 0.3159974168 | J156: -0.3465137991 | K156: 42.36272401 | L156: 0 | M156: 90 | O156: =IF($L156>0,1/F156,0) -> 0 | P156: 0 | Q156: 0 | R156: 0 | S156: 0 | T156: 0 | U156: 0 | V156: 0 | W156: 0 | X156: 0 | Y156: 0 | AA156: 143 | AT156: 0 | AU156: 0 | AV156: 152.0330043 | AW156: 0 | AY156: 0 | AZ156: 0 | BA156: 0 | BD156: 144 | BE156: 20.73138311 | BF156: 3.310799771 | BH156: -51.40920023 | BJ156: 6.125742275e-17 | BK156: 90 | BL156: 90 | BM156: 0 | BN156: 90 | BO156: 152.0330043 | BP156: 90 | BQ156: 42.36272401 | BR156: 0 | BS156: 90 | BT156: 0 | BU156: 90 | BW156: 90 | BX156: 90 | BY156: 6.125742275e-17 | CI156: 0 | CJ156: 0 | CK156: 0 | CL156: 0 | CX156: 0
A157: 2 | B157: 24 | C157: 2.4 | D157: 1.262120131 | E157: 161.068198 | F157: -0.8820327828 | G157: 151.8885575 | H157: -61.88855747 | I157: 0.3200721458 | J157: -0.3457918328 | K157: 42.78799073 | L157: 0 | M157: 90 | O157: 0 | P157: 0 | Q157: 0 | R157: 0 | S157: 0 | T157: 0 | U157: 0 | V157: 0 | W157: 0 | X157: 0 | Y157: 0 | AA157: 144 | AT157: 0 | AU157: 0 | AV157: 151.8885575 | AW157: 0 | AY157: 0 | AZ157: 0 | BA157: 0 | BD157: 145 | BE157: 20.91696257 | BF157: 3.217881355 | BH157: -51.50211865 | BJ157: 6.125742275e-17 | BK157: 90 | BL157: 90 | BM157: 0 | BN157: 90 | BO157: 151.8885575 | BP157: 90 | BQ157: 42.78799073 | BR157: 0 | BS157: 90 | BT157: 0 | BU157: 90 | BW157: 90 | BX157: 90 | BY157: 6.125742275e-17 | CI157: 0 | CJ157: 0 | CK157: 0 | CL157: 0 | CX157: 0
A158: 2 | B158: 25 | C158: 2.416666667 | D158: 1.278786798 | E158: 160.818198 | F158: -0.8808325154 | G158: 151.7429529 | H158: -61.74295289 | I158: 0.3241407811 | J158: -0.3450606234 | K158: 43.20946513 | L158: 0 | M158: 90 | O158: 0 | P158: 0 | Q158: 0 | R158: 0 | S158: 0 | T158: 0 | U158: 0 | V158: 0 | W158: 0 | X158: 0 | Y158: 0 | AA158: 145 | AT158: 0 | AU158: 0 | AV158: 151.7429529 | AW158: 0 | AY158: 0 | AZ158: 0 | BA158: 0 | BD158: 146 | BE158: 21.09634389 | BF158: 3.116933989 | BH158: -51.60306601 | BJ158: 6.125742275e-17 | BK158: 90 | BL158: 90 | BM158: 0 | BN158: 90 | BO158: 151.7429529 | BP158: 90 | BQ158: 43.20946513 | BR158: 0 | BS158: 90 | BT158: 0 | BU158: 90 | BW158: 90 | BX158: 90 | BY158: 6.125742275e-17 | CI158: 0 | CJ158: 0 | CK158: 0 | CL158: 0 | CX158: 0
A159: 2 | B159: 26 | C159: 2.433333333 | D159: 1.295453465 | E159: 160.568198 | F159: -0.8796170986 | G159: 151.5962087 | H159: -61.5962087 | I159: 0.3282032452 | J159: -0.3443201848 | K159: 43.6271766 | L159: 0 | M159: 90 | O159: 0 | P159: 0 | Q159: 0 | R159: 0 | S159: 0 | T159: 0 | U159: 0 | V159: 0 | W159: 0 | X159: 0 | Y159: 0 | AA159: 146 | AT159: 0 | AU159: 0 | AV159: 151.5962087 | AW159: 0 | AY159: 0 | AZ159: 0 | BA159: 0 | BD159: 147 | BE159: 21.26947391 | BF159: 3.008170332 | BH159: -51.71182967 | BJ159: 6.125742275e-17 | BK159: 90 | BL159: 90 | BM159: 0 | BN159: 90 | BO159: 151.5962087 | BP159: 90 | BQ159: 43.6271766 | BR159: 0 | BS159: 90 | BT159: 0 | BU159: 90 | BW159: 90 | BX159: 90 | BY159: 6.125742275e-17 | CI159: 0 | CJ159: 0 | CK159: 0 | CL159: 0 | CX159: 0
A160: 2 | B160: 27 | C160: 2.45 | D160: 1.312120131 | E160: 160.318198 | F160: -0.8783865554 | G160: 151.4483429 | H160: -61.44834287 | I160: 0.3322594608 | J160: -0.3435705313 | K160: 44.04115516 | L160: 0 | M160: 90 | O160: 0 | P160: 0 | Q160: 0 | R160: 0 | S160: 0 | T160: 0 | U160: 0 | V160: 0 | W160: 0 | X160: 0 | Y160: 0 | AA160: 147 | AT160: 0 | AU160: 0 | AV160: 151.4483429 | AW160: 0 | AY160: 0 | AZ160: 0 | BA160: 0 | BD160: 148 | BE160: 21.43630132 | BF160: 2.89181353 | BH160: -51.82818647 | BJ160: 6.125742275e-17 | BK160: 90 | BL160: 90 | BM160: 0 | BN160: 90 | BO160: 151.4483429 | BP160: 90 | BQ160: 44.04115516 | BR160: 0 | BS160: 90 | BT160: 0 | BU160: 90 | BW160: 90 | BX160: 90 | BY160: 6.125742275e-17 | CI160: 0 | CJ160: 0 | CK160: 0 | CL160: 0 | CX160: 0
A161: 2 | B161: 28 | C161: 2.466666667 | D161: 1.328786798 | E161: 160.068198 | F161: -0.8771409093 | G161: 151.2993731 | H161: -61.29937311 | I161: 0.3363093506 | J161: -0.3428116769 | K161: 44.45143141 | L161: 0 | M161: 90 | O161: 0 | P161: 0 | Q161: 0 | R161: 0 | S161: 0 | T161: 0 | U161: 0 | V161: 0 | W161: 0 | X161: 0 | Y161: 0 | AA161: 148 | AT161: 0 | AU161: 0 | AV161: 151.2993731 | AW161: 0 | AY161: 0 | AZ161: 0 | BA161: 0 | BD161: 149 | BE161: 21.5967767 | BF161: 2.768096921 | BH161: -51.95190308 | BJ161: 6.125742275e-17 | BK161: 90 | BL161: 90 | BM161: 0 | BN161: 90 | BO161: 151.2993731 | BP161: 90 | BQ161: 44.45143141 | BR161: 0 | BS161: 90 | BT161: 0 | BU161: 90 | BW161: 90 | BX161: 90 | BY161: 6.125742275e-17 | CI161: 0 | CJ161: 0 | CK161: 0 | CL161: 0 | CX161: 0
A162: 2 | B162: 29 | C162: 2.483333333 | D162: 1.345453465 | E162: 159.818198 | F162: -0.8758801841 | G162: 151.1493169 | H162: -61.14931688 | I162: 0.3403528376 | J162: -0.3420436362 | K162: 44.85803645 | L162: 0 | M162: 90 | O162: 0 | P162: 0 | Q162: 0 | R162: 0 | S162: 0 | T162: 0 | U162: 0 | V162: 0 | W162: 0 | X162: 0 | Y162: 0 | AA162: 149 | AT162: 0 | AU162: 0 | AV162: 151.1493169 | AW162: 0 | AY162: 0 | AZ162: 0 | BA162: 0 | BD162: 150 | BE162: 21.75085248 | BF162: 2.637263732 | BH162: -52.08273627 | BJ162: 6.125742275e-17 | BK162: 90 | BL162: 90 | BM162: 0 | BN162: 90 | BO162: 151.1493169 | BP162: 90 | BQ162: 44.85803645 | BR162: 0 | BS162: 90 | BT162: 0 | BU162: 90 | BW162: 90 | BX162: 90 | BY162: 6.125742275e-17 | CI162: 0 | CJ162: 0 | CK162: 0 | CL162: 0 | CX162: 0
A163: 2 | B163: 30 | C163: 2.5 | D163: 1.362120131 | E163: 159.568198 | F163: -0.8746044036 | G163: 150.9981914 | H163: -60.99819145 | I163: 0.3443898448 | J163: -0.3412664238 | K163: 45.26100192 | L163: 0 | M163: 90 | O163: 0 | P163: 0 | Q163: 0 | R163: 0 | S163: 0 | T163: 0 | U163: 0 | V163: =IF($L163>0,R163*F163,0) -> 0 | W163: 0 | X163: 0 | Y163: 0 | AA163: 150 | AT163: 0 | AU163: 0 | AV163: 150.9981914 | AW163: 0 | AY163: 0 | AZ163: 0 | BA163: 0 | BD163: 151 | BE163: 21.89848302 | BF163: 2.499566758 | BH163: -52.22043324 | BJ163: 6.125742275e-17 | BK163: 90 | BL163: 90 | BM163: 0 | BN163: 90 | BO163: 150.9981914 | BP163: 90 | BQ163: 45.26100192 | BR163: 0 | BS163: 90 | BT163: 0 | BU163: 90 | BW163: 90 | BX163: 90 | BY163: 6.125742275e-17 | CI163: 0 | CJ163: 0 | CK163: 0 | CL163: 0 | CX163: 0
A164: 2 | B164: 31 | C164: 2.516666667 | D164: 1.378786798 | E164: 159.318198 | F164: -0.8733135922 | G164: 150.8460138 | H164: -60.84601381 | I164: 0.3484202953 | J164: -0.3404800545 | K164: 45.66035987 | L164: 0 | M164: 90 | O164: 0 | P164: 0 | Q164: 0 | R164: 0 | S164: 0 | T164: 0 | U164: 0 | V164: 0 | W164: 0 | X164: 0 | Y164: 0 | AA164: 151 | AT164: 0 | AU164: 0 | AV164: 150.8460138 | AW164: 0 | AY164: 0 | AZ164: 0 | BA164: 0 | BD164: 152 | BE164: 22.03962456 | BF164: 2.355268041 | BH164: -52.36473196 | BJ164: 6.125742275e-17 | BK164: 90 | BL164: 90 | BM164: 0 | BN164: 90 | BO164: 150.8460138 | BP164: 90 | BQ164: 45.66035987 | BR164: 0 | BS164: 90 | BT164: 0 | BU164: 90 | BW164: 90 | BX164: 90 | BY164: 6.125742275e-17 | CI164: 0 | CJ164: 0 | CK164: 0 | CL164: 0 | CX164: 0
A165: 2 | B165: 32 | C165: 2.533333333 | D165: 1.395453465 | E165: 159.068198 | F165: -0.8720077745 | G165: 150.6928008 | H165: -60.69280076 | I165: 0.3524441124 | J165: -0.3396845432 | K165: 46.05614274 | L165: 0 | M165: 90 | O165: 0 | P165: 0 | Q165: 0 | R165: 0 | S165: 0 | T165: 0 | U165: 0 | V165: 0 | W165: 0 | X165: 0 | Y165: 0 | AA165: 152 | AT165: 0 | AU165: 0 | AV165: 150.6928008 | AW165: 0 | AY165: 0 | AZ165: 0 | BA165: 0 | BD165: 153 | BE165: 22.17423529 | BF165: 2.204638523 | BH165: -52.51536148 | BJ165: 6.125742275e-17 | BK165: 90 | BL165: 90 | BM165: 0 | BN165: 90 | BO165: 150.6928008 | BP165: 90 | BQ165: 46.05614274 | BR165: 0 | BS165: 90 | BT165: 0 | BU165: 90 | BW165: 90 | BX165: 90 | BY165: 6.125742275e-17 | CI165: 0 | CJ165: 0 | CK165: 0 | CL165: 0 | CX165: 0
A166: 2 | B166: 33 | C166: 2.55 | D166: 1.412120131 | E166: 158.818198 | F166: -0.8706869753 | G166: 150.5385688 | H166: -60.53856884 | I166: 0.3564612194 | J166: -0.3388799052 | K166: 46.44838337 | L166: 0 | M166: 90 | O166: 0 | P166: 0 | Q166: 0 | R166: 0 | S166: 0 | T166: 0 | U166: 0 | V166: 0 | W166: 0 | X166: 0 | Y166: 0 | AA166: 153 | AT166: 0 | AU166: 0 | AV166: 150.5385688 | AW166: 0 | AY166: 0 | AZ166: 0 | BA166: 0 | BD166: 154 | BE166: 22.30227531 | BF166: 2.047957698 | BH166: -52.6720423 | BJ166: 6.125742275e-17 | BK166: 90 | BL166: 90 | BM166: 0 | BN166: 90 | BO166: 150.5385688 | BP166: 90 | BQ166: 46.44838337 | BR166: 0 | BS166: 90 | BT166: 0 | BU166: 90 | BW166: 90 | BX166: 90 | BY166: 6.125742275e-17 | CI166: 0 | CJ166: 0 | CK166: 0 | CL166: 0 | CX166: 0
A167: 2 | B167: 34 | C167: 2.566666667 | D167: 1.428786798 | E167: 158.568198 | F167: -0.8693512197 | G167: 150.3833344 | H167: -60.38333436 | I167: 0.36047154 | J167: -0.3380661557 | K167: 46.83711489 | L167: 0 | M167: 90 | O167: 0 | P167: 0 | Q167: 0 | R167: 0 | S167: 0 | T167: 0 | U167: 0 | V167: 0 | W167: 0 | X167: 0 | Y167: 0 | AA167: 154 | AT167: 0 | AU167: 0 | AV167: 150.3833344 | AW167: 0 | AY167: 0 | AZ167: 0 | BA167: 0 | BD167: 155 | BE167: 22.42370668 | BF167: 1.885513253 | BH167: -52.83448675 | BJ167: 6.125742275e-17 | BK167: 90 | BL167: 90 | BM167: 0 | BN167: 90 | BO167: 150.3833344 | BP167: 90 | BQ167: 46.83711489 | BR167: 0 | BS167: 90 | BT167: 0 | BU167: 90 | BW167: 90 | BX167: 90 | BY167: 6.125742275e-17 | CI167: 0 | CJ167: 0 | CK167: 0 | CL167: 0 | CX167: 0
A168: 2 | B168: 35 | C168: 2.583333333 | D168: 1.445453465 | E168: 158.318198 | F168: -0.8680005333 | G168: 150.2271134 | H168: -60.22711341 | I168: 0.3644749976 | J168: -0.3372433102 | K168: 47.22237072 | L168: 0 | M168: 90 | O168: 0 | P168: 0 | Q168: 0 | R168: 0 | S168: 0 | T168: 0 | U168: 0 | V168: 0 | W168: 0 | X168: 0 | Y168: 0 | AA168: 155 | AT168: 0 | AU168: 0 | AV168: 150.2271134 | AW168: 0 | AY168: 0 | AZ168: 0 | BA168: 0 | BD168: 156 | BE168: 22.53849343 | BF168: 1.717600692 | BH168: -53.00239931 | BJ168: 6.125742275e-17 | BK168: 90 | BL168: 90 | BM168: 0 | BN168: 90 | BO168: 150.2271134 | BP168: 90 | BQ168: 47.22237072 | BR168: 0 | BS168: 90 | BT168: 0 | BU168: 90 | BW168: 90 | BX168: 90 | BY168: 6.125742275e-17 | CI168: 0 | CJ168: 0 | CK168: 0 | CL168: 0 | CX168: 0
A169: 2 | B169: 36 | C169: 2.6 | D169: 1.462120131 | E169: 158.068198 | F169: -0.8666349417 | G169: 150.0699218 | H169: -60.06992182 | I169: 0.3684715162 | J169: -0.3364113843 | K169: 47.60418453 | L169: 0 | M169: 90 | O169: 0 | P169: 0 | Q169: 0 | R169: 0 | S169: 0 | T169: 0 | U169: 0 | V169: 0 | W169: 0 | X169: 0 | Y169: 0 | AA169: 156 | AT169: 0 | AU169: 0 | AV169: 150.0699218 | AW169: 0 | AY169: 0 | AZ169: 0 | BA169: 0 | BD169: 157 | BE169: 22.64660154 | BF169: 1.54452296 | BH169: -53.17547704 | BJ169: 6.125742275e-17 | BK169: 90 | BL169: 90 | BM169: 0 | BN169: 90 | BO169: 150.0699218 | BP169: 90 | BQ169: 47.60418453 | BR169: 0 | BS169: 90 | BT169: 0 | BU169: 90 | BW169: 90 | BX169: 90 | BY169: 6.125742275e-17 | CI169: 0 | CJ169: 0 | CK169: 0 | CL169: 0 | CX169: 0
A170: 2 | B170: 37 | C170: 2.616666667 | D170: 1.478786798 | E170: 157.818198 | F170: -0.8652544709 | G170: 149.9117752 | H170: -59.91177522 | I170: 0.3724610197 | J170: -0.335570394 | K170: 47.98259022 | L170: 0 | M170: 90 | O170: 0 | P170: 0 | Q170: 0 | R170: 0 | S170: 0 | T170: 0 | U170: 0 | V170: 0 | W170: 0 | X170: 0 | Y170: 0 | AA170: 157 | AT170: 0 | AU170: 0 | AV170: 149.9117752 | AW170: 0 | AY170: 0 | AZ170: 0 | BA170: 0 | BD170: 158 | BE170: 22.74799897 | BF170: 1.366590051 | BH170: -53.35340995 | BJ170: 6.125742275e-17 | BK170: 90 | BL170: 90 | BM170: 0 | BN170: 90 | BO170: 149.9117752 | BP170: 90 | BQ170: 47.98259022 | BR170: 0 | BS170: 90 | BT170: 0 | BU170: 90 | BW170: 90 | BX170: 90 | BY170: 6.125742275e-17 | CI170: 0 | CJ170: 0 | CK170: 0 | CL170: 0 | CX170: 0
A171: 2 | B171: 38 | C171: 2.633333333 | D171: 1.495453465 | E171: 157.568198 | F171: -0.8638591473 | G171: 149.752689 | H171: -59.75268899 | I171: 0.376443432 | J171: -0.3347203553 | K171: 48.35762185 | L171: 0 | M171: 90 | O171: 0 | P171: 0 | Q171: 0 | R171: 0 | S171: 0 | T171: 0 | U171: 0 | V171: 0 | W171: 0 | X171: 0 | Y171: 0 | AA171: 158 | AT171: 0 | AU171: 0 | AV171: 149.752689 | AW171: 0 | AY171: 0 | AZ171: 0 | BA171: 0 | BD171: 159 | BE171: 22.84265567 | BF171: 1.184118607 | BH171: -53.53588139 | BJ171: 6.125742275e-17 | BK171: 90 | BL171: 90 | BM171: 0 | BN171: 90 | BO171: 149.752689 | BP171: 90 | BQ171: 48.35762185 | BR171: 0 | BS171: 90 | BT171: 0 | BU171: 90 | BW171: 90 | BX171: 90 | BY171: 6.125742275e-17 | CI171: 0 | CJ171: 0 | CK171: 0 | CL171: 0 | CX171: 0
A172: 2 | B172: 39 | C172: 2.65 | D172: 1.512120131 | E172: 157.318198 | F172: -0.8624489972 | G172: 149.5926783 | H172: -59.5926783 | I172: 0.3804186773 | J172: -0.3338612842 | K172: 48.72931364 | L172: 0 | M172: 90 | O172: 0 | P172: 0 | Q172: 0 | R172: 0 | S172: 0 | T172: 0 | U172: 0 | V172: 0 | W172: 0 | X172: 0 | Y172: 0 | AA172: 159 | AT172: 0 | AU172: 0 | AV172: 149.5926783 | AW172: 0 | AY172: 0 | AZ172: 0 | BA172: 0 | BD172: 160 | BE172: 22.93054361 | BF172: 0.9974315171 | BH172: -53.72256848 | BJ172: 6.125742275e-17 | BK172: 90 | BL172: 90 | BM172: 0 | BN172: 90 | BO172: 149.5926783 | BP172: 90 | BQ172: 48.72931364 | BR172: 0 | BS172: 90 | BT172: 0 | BU172: 90 | BW172: 90 | BX172: 90 | BY172: 6.125742275e-17 | CI172: 0 | CJ172: 0 | CK172: 0 | CL172: 0 | CX172: 0
A173: 2 | B173: 40 | C173: 2.666666667 | D173: 1.528786798 | E173: 157.068198 | F173: -0.8610240477 | G173: 149.4317581 | H173: -59.43175807 | I173: 0.3843866801 | J173: -0.3329931972 | K173: 49.09769993 | L173: 0 | M173: 90 | O173: 0 | P173: 0 | Q173: 0 | R173: 0 | S173: 0 | T173: 0 | U173: 0 | V173: 0 | W173: 0 | X173: 0 | Y173: 0 | AA173: 160 | AT173: 0 | AU173: 0 | AV173: 149.4317581 | AW173: 0 | AY173: 0 | AZ173: 0 | BA173: 0 | BD173: 161 | BE173: 23.01163673 | BF173: 0.8068574989 | BH173: -53.9131425 | BJ173: 6.125742275e-17 | BK173: 90 | BL173: 90 | BM173: 0 | BN173: 90 | BO173: 149.4317581 | BP173: 90 | BQ173: 49.09769993 | BR173: 0 | BS173: 90 | BT173: 0 | BU173: 90 | BW173: 90 | BX173: 90 | BY173: 6.125742275e-17 | CI173: 0 | CJ173: 0 | CK173: 0 | CL173: 0 | CX173: 0
A174: 2 | B174: 41 | C174: 2.683333333 | D174: 1.545453465 | E174: 156.818198 | F174: -0.8595843259 | G174: 149.269943 | H174: -59.26994301 | I174: 0.3883473646 | J174: -0.3321161109 | K174: 49.46281516 | L174: 0 | M174: 90 | O174: 0 | P174: 0 | Q174: 0 | R174: 0 | S174: 0 | T174: 0 | U174: 0 | V174: 0 | W174: 0 | X174: 0 | Y174: 0 | AA174: 161 | AT174: 0 | AU174: 0 | AV174: 149.269943 | AW174: 0 | AY174: 0 | AZ174: 0 | BA174: 0 | BD174: 162 | BE174: 23.085911 | BF174: 0.6127306781 | BH174: -54.10726932 | BJ174: 6.125742275e-17 | BK174: 90 | BL174: 90 | BM174: 0 | BN174: 90 | BO174: 149.269943 | BP174: 90 | BQ174: 49.46281516 | BR174: 0 | BS174: 90 | BT174: 0 | BU174: 90 | BW174: 90 | BX174: 90 | BY174: 6.125742275e-17 | CI174: 0 | CJ174: 0 | CK174: 0 | CL174: 0 | CX174: 0
A175: 2 | B175: 42 | C175: 2.7 | D175: 1.562120131 | E175: 156.568198 | F175: -0.8581298591 | G175: 149.1072476 | H175: -59.10724761 | I175: 0.3923006556 | J175: -0.3312300418 | K175: 49.82469382 | L175: 0 | M175: 90 | O175: 0 | P175: 0 | Q175: 0 | R175: 0 | S175: 0 | T175: 0 | U175: 0 | V175: 0 | W175: 0 | X175: 0 | Y175: 0 | AA175: 162 | AT175: 0 | AU175: 0 | AV175: 149.1072476 | AW175: 0 | AY175: 0 | AZ175: 0 | BA175: 0 | BD175: 163 | BE175: 23.15334442 | BF175: 0.4153901606 | BH175: -54.30460984 | BJ175: 6.125742275e-17 | BK175: 90 | BL175: 90 | BM175: 0 | BN175: 90 | BO175: 149.1072476 | BP175: 90 | BQ175: 49.82469382 | BR175: 0 | BS175: 90 | BT175: 0 | BU175: 90 | BW175: 90 | BX175: 90 | BY175: 6.125742275e-17 | CI175: 0 | CJ175: 0 | CK175: 0 | CL175: 0 | CX175: 0
A176: 2 | B176: 43 | C176: 2.716666667 | D176: 1.578786798 | E176: 156.318198 | F176: -0.856660675 | G176: 148.9436861 | H176: -58.94368611 | I176: 0.3962464778 | J176: -0.3303350069 | K176: 50.18337046 | L176: 0 | M176: 90 | O176: 0 | P176: 0 | Q176: 0 | R176: 0 | S176: 0 | T176: 0 | U176: 0 | V176: 0 | W176: 0 | X176: 0 | Y176: 0 | AA176: 163 | AT176: 0 | AU176: 0 | AV176: 148.9436861 | AW176: 0 | AY176: 0 | AZ176: 0 | BA176: 0 | BD176: 164 | BE176: 23.21391701 | BF176: 0.2151795986 | BH176: -54.5048204 | BJ176: 6.125742275e-17 | BK176: 90 | BL176: 90 | BM176: 0 | BN176: 90 | BO176: 148.9436861 | BP176: 90 | BQ176: 50.18337046 | BR176: 0 | BS176: 90 | BT176: 0 | BU176: 90 | BW176: 90 | BX176: 90 | BY176: 6.125742275e-17 | CI176: 0 | CJ176: 0 | CK176: 0 | CL176: 0 | CX176: 0
A177: 2 | B177: 44 | C177: 2.733333333 | D177: 1.595453465 | E177: 156.068198 | F177: -0.8551768016 | G177: 148.7792726 | H177: -58.77927256 | I177: 0.400184756 | J177: -0.3294310232 | K177: 50.53887963 | L177: 0 | M177: 90 | O177: 0 | P177: 0 | Q177: 0 | R177: 0 | S177: 0 | T177: 0 | U177: 0 | V177: 0 | W177: 0 | X177: 0 | Y177: 0 | AA177: 164 | AT177: 0 | AU177: 0 | AV177: 148.7792726 | AW177: 0 | AY177: 0 | AZ177: 0 | BA177: 0 | BD177: 165 | BE177: 23.26761081 | BF177: 0.01244675015 | BH177: -54.70755325 | BJ177: 6.125742275e-17 | BK177: 90 | BL177: 90 | BM177: 0 | BN177: 90 | BO177: 148.7792726 | BP177: 90 | BQ177: 50.53887963 | BR177: 0 | BS177: 90 | BT177: 0 | BU177: 90 | BW177: 90 | BX177: 90 | BY177: 6.125742275e-17 | CI177: 0 | CJ177: 0 | CK177: 0 | CL177: 0 | CX177: 0
A178: 2 | B178: 45 | C178: 2.75 | D178: 1.612120131 | E178: 155.818198 | F178: -0.8536782672 | G178: 148.6140208 | H178: -58.61402077 | I178: 0.4041154153 | J178: -0.3285181079 | K178: 50.89125587 | L178: 0 | M178: 90 | O178: 0 | P178: 0 | Q178: 0 | R178: 0 | S178: 0 | T178: 0 | U178: 0 | V178: 0 | W178: 0 | X178: 0 | Y178: 0 | AA178: 165 | AT178: 0 | AU178: 0 | AV178: 148.6140208 | AW178: 0 | AY178: 0 | AZ178: 0 | BA178: 0 | BD178: 166 | BE178: 23.31440992 | BF178: -0.1924569653 | BH178: -54.91245697 | BJ178: 6.125742275e-17 | BK178: 90 | BL178: 90 | BM178: 0 | BN178: 90 | BO178: 148.6140208 | BP178: 90 | BQ178: 50.89125587 | BR178: 0 | BS178: 90 | BT178: 0 | BU178: 90 | BW178: 90 | BX178: 90 | BY178: 6.125742275e-17 | CI178: 0 | CJ178: 0 | CK178: 0 | CL178: 0 | CX178: 0
A179: 2 | B179: 46 | C179: 2.766666667 | D179: 1.628786798 | E179: 155.568198 | F179: -0.8521651003 | G179: 148.4479443 | H179: -58.44794435 | I179: 0.4080383808 | J179: -0.3275962784 | K179: 51.2405337 | L179: 0 | M179: 90 | O179: 0 | P179: 0 | Q179: 0 | R179: 0 | S179: 0 | T179: 0 | U179: 0 | V179: 0 | W179: 0 | X179: 0 | Y179: 0 | AA179: 166 | AT179: 0 | AU179: 0 | AV179: 148.4479443 | AW179: 0 | AY179: 0 | AZ179: 0 | BA179: 0 | BD179: 167 | BE179: 23.35430046 | BF179: -0.3991769166 | BH179: -55.11917692 | BJ179: 6.125742275e-17 | BK179: 90 | BL179: 90 | BM179: 0 | BN179: 90 | BO179: 148.4479443 | BP179: 90 | BQ179: 51.2405337 | BR179: 0 | BS179: 90 | BT179: 0 | BU179: 90 | BW179: 90 | BX179: 90 | BY179: 6.125742275e-17 | CI179: 0 | CJ179: 0 | CK179: 0 | CL179: 0 | CX179: 0
A180: 2 | B180: 47 | C180: 2.783333333 | D180: 1.645453465 | E180: 155.318198 | F180: -0.8506373297 | G180: 148.2810567 | H180: -58.28105668 | I180: 0.4119535778 | J180: -0.3266655522 | K180: 51.5867476 | L180: 0 | M180: 90 | O180: 0 | P180: 0 | Q180: 0 | R180: 0 | S180: 0 | T180: 0 | U180: 0 | V180: 0 | W180: 0 | X180: 0 | Y180: 0 | AA180: 167 | AT180: 0 | AU180: 0 | AV180: 148.2810567 | AW180: 0 | AY180: 0 | AZ180: 0 | BA180: 0 | BD180: 168 | BE180: 23.38727062 | BF180: -0.6073557142 | BH180: -55.32735571 | BJ180: 6.125742275e-17 | BK180: 90 | BL180: 90 | BM180: 0 | BN180: 90 | BO180: 148.2810567 | BP180: 90 | BQ180: 51.5867476 | BR180: 0 | BS180: 90 | BT180: 0 | BU180: 90 | BW180: 90 | BX180: 90 | BY180: 6.125742275e-17 | CI180: 0 | CJ180: 0 | CK180: 0 | CL180: 0 | CX180: 0
A181: 2 | B181: 48 | C181: 2.8 | D181: 1.662120131 | E181: 155.068198 | F181: -0.8490949845 | G181: 148.1133709 | H181: -58.11337094 | I181: 0.4158609318 | J181: -0.3257259471 | K181: 51.92993196 | L181: 0 | M181: 90 | O181: 0 | P181: 0 | Q181: 0 | R181: 0 | S181: 0 | T181: 0 | U181: 0 | V181: 0 | W181: 0 | X181: 0 | Y181: 0 | AA181: 168 | AT181: 0 | AU181: 0 | AV181: 148.1133709 | AW181: 0 | AY181: 0 | AZ181: 0 | BA181: 0 | BD181: 169 | BE181: 23.41331063 | BF181: -0.8166336669 | BH181: -55.53663367 | BJ181: 6.125742275e-17 | BK181: 90 | BL181: 90 | BM181: 0 | BN181: 90 | BO181: 148.1133709 | BP181: 90 | BQ181: 51.92993196 | BR181: 0 | BS181: 90 | BT181: 0 | BU181: 90 | BW181: 90 | BX181: 90 | BY181: 6.125742275e-17 | CI181: 0 | CJ181: 0 | CK181: 0 | CL181: 0 | CX181: 0
A182: 2 | B182: 49 | C182: 2.816666667 | D182: 1.678786798 | E182: 154.818198 | F182: -0.8475380941 | G182: 147.9449001 | H182: -57.94490009 | I182: 0.4197603684 | J182: -0.324777481 | K182: 52.27012109 | L182: 0 | M182: 90 | O182: 0 | P182: 0 | Q182: 0 | R182: 0 | S182: 0 | T182: 0 | U182: 0 | V182: 0 | W182: 0 | X182: 0 | Y182: 0 | AA182: 169 | AT182: 0 | AU182: 0 | AV182: 147.9449001 | AW182: 0 | AY182: 0 | AZ182: 0 | BA182: 0 | BD182: 170 | BE182: 23.43241276 | BF182: -1.026649242 | BH182: -55.74664924 | BJ182: 6.125742275e-17 | BK182: 90 | BL182: 90 | BM182: 0 | BN182: 90 | BO182: 147.9449001 | BP182: 90 | BQ182: 52.27012109 | BR182: 0 | BS182: 90 | BT182: 0 | BU182: 90 | BW182: 90 | BX182: 90 | BY182: 6.125742275e-17 | CI182: 0 | CJ182: 0 | CK182: 0 | CL182: 0 | CX182: 0
A183: 2 | B183: 50 | C183: 2.833333333 | D183: 1.695453465 | E183: 154.568198 | F183: -0.845966688 | G183: 147.7756569 | H183: -57.77565689 | I183: 0.4236518134 | J183: -0.3238201719 | K183: 52.6073492 | L183: 0 | M183: 90 | O183: 0 | P183: 0 | Q183: 0 | R183: 0 | S183: 0 | T183: 0 | U183: 0 | V183: 0 | W183: 0 | X183: 0 | Y183: 0 | AA183: 170 | AT183: 0 | AU183: 0 | AV183: 147.7756569 | AW183: 0 | AY183: 0 | AZ183: 0 | BA183: 0 | BD183: 171 | BE183: 23.44457137 | BF183: -1.237039527 | BH183: -55.95703953 | BJ183: 6.125742275e-17 | BK183: 90 | BL183: 90 | BM183: 0 | BN183: 90 | BO183: 147.7756569 | BP183: 90 | BQ183: 52.6073492 | BR183: 0 | BS183: 90 | BT183: 0 | BU183: 90 | BW183: 90 | BX183: 90 | BY183: 6.125742275e-17 | CI183: 0 | CJ183: 0 | CK183: 0 | CL183: 0 | CX183: 0
A184: 2 | B184: 51 | C184: 2.85 | D184: 1.712120131 | E184: 154.318198 | F184: -0.8443807963 | G184: 147.6056539 | H184: -57.60565389 | I184: 0.4275351927 | J184: -0.322854038 | K184: 52.94165036 | L184: 0 | M184: 90 | O184: 0 | P184: 0 | Q184: 0 | R184: 0 | S184: 0 | T184: 0 | U184: 0 | V184: 0 | W184: 0 | X184: 0 | Y184: 0 | AA184: 171 | AT184: 0 | AU184: 0 | AV184: 147.6056539 | AW184: 0 | AY184: 0 | AZ184: 0 | BA184: 0 | BD184: 172 | BE184: 23.44978285 | BF184: -1.447440694 | BH184: -56.16744069 | BJ184: 6.125742275e-17 | BK184: 90 | BL184: 90 | BM184: 0 | BN184: 90 | BO184: 147.6056539 | BP184: 90 | BQ184: 52.94165036 | BR184: 0 | BS184: 90 | BT184: 0 | BU184: 90 | BW184: 90 | BX184: 90 | BY184: 6.125742275e-17 | CI184: 0 | CJ184: 0 | CK184: 0 | CL184: 0 | CX184: 0
A185: 2 | B185: 52 | C185: 2.866666667 | D185: 1.728786798 | E185: 154.068198 | F185: -0.842780449 | G185: 147.4349034 | H185: -57.43490344 | I185: 0.4314104323 | J185: -0.3218790978 | K185: 53.27305853 | L185: 0 | M185: 90 | O185: 0 | P185: 0 | Q185: 0 | R185: 0 | S185: 0 | T185: 0 | U185: 0 | V185: 0 | W185: 0 | X185: 0 | Y185: 0 | AA185: 172 | AT185: 0 | AU185: 0 | AV185: 147.4349034 | AW185: 0 | AY185: 0 | AZ185: 0 | BA185: 0 | BD185: 173 | BE185: 23.44804565 | BF185: -1.657488464 | BH185: -56.37748846 | BJ185: 6.125742275e-17 | BK185: 90 | BL185: 90 | BM185: 0 | BN185: 90 | BO185: 147.4349034 | BP185: 90 | BQ185: 53.27305853 | BR185: 0 | BS185: 90 | BT185: 0 | BU185: 90 | BW185: 90 | BX185: 90 | BY185: 6.125742275e-17 | CI185: 0 | CJ185: 0 | CK185: 0 | CL185: 0 | CX185: 0
A186: 2 | B186: 53 | C186: 2.883333333 | D186: 1.745453465 | E186: 153.818198 | F186: -0.8411656768 | G186: 147.2634177 | H186: -57.26341768 | I186: 0.4352774585 | J186: -0.3208953698 | K186: 53.60160749 | L186: 0 | M186: 90 | O186: 0 | P186: 0 | Q186: 0 | R186: 0 | S186: 0 | T186: 0 | U186: 0 | V186: 0 | W186: 0 | X186: 0 | Y186: 0 | AA186: 173 | AT186: 0 | AU186: 0 | AV186: 147.2634177 | AW186: 0 | AY186: 0 | AZ186: 0 | BA186: 0 | BD186: 174 | BE186: 23.43936028 | BF186: -1.866818573 | BH186: -56.58681857 | BJ186: 6.125742275e-17 | BK186: 90 | BL186: 90 | BM186: 0 | BN186: 90 | BO186: 147.2634177 | BP186: 90 | BQ186: 53.60160749 | BR186: 0 | BS186: 90 | BT186: 0 | BU186: 90 | BW186: 90 | BX186: 90 | BY186: 6.125742275e-17 | CI186: 0 | CJ186: 0 | CK186: 0 | CL186: 0 | CX186: 0
A187: 2 | B187: 54 | C187: 2.9 | D187: 1.762120131 | E187: 153.568198 | F187: -0.8395365102 | G187: 147.0912086 | H187: -57.09120856 | I187: 0.4391361976 | J187: -0.3199028727 | K187: 53.92733087 | L187: 0 | M187: 90 | O187: 0 | P187: 0 | Q187: 0 | R187: 0 | S187: 0 | T187: 0 | U187: 0 | V187: 0 | W187: 0 | X187: 0 | Y187: 0 | AA187: 174 | AT187: 0 | AU187: 0 | AV187: 147.0912086 | AW187: 0 | AY187: 0 | AZ187: 0 | BA187: 0 | BD187: 175 | BE187: 23.42372933 | BF187: -2.07506724 | BH187: -56.79506724 | BJ187: 6.125742275e-17 | BK187: 90 | BL187: 90 | BM187: 0 | BN187: 90 | BO187: 147.0912086 | BP187: 90 | BQ187: 53.92733087 | BR187: 0 | BS187: 90 | BT187: 0 | BU187: 90 | BW187: 90 | BX187: 90 | BY187: 6.125742275e-17 | CI187: 0 | CJ187: 0 | CK187: 0 | CL187: 0 | CX187: 0
A188: 2 | B188: 55 | C188: 2.916666667 | D188: 1.778786798 | E188: 153.318198 | F188: -0.8378929804 | G188: 146.9182878 | H188: -56.91828784 | I188: 0.4429865763 | J188: -0.3189016254 | K188: 54.25026212 | L188: 0 | M188: 90 | O188: 0 | P188: 0 | Q188: 0 | R188: 0 | S188: 0 | T188: 0 | U188: 0 | V188: 0 | W188: 0 | X188: 0 | Y188: 0 | AA188: 175 | AT188: 0 | AU188: 0 | AV188: 146.9182878 | AW188: 0 | AY188: 0 | AZ188: 0 | BA188: 0 | BD188: 176 | BE188: 23.40115742 | BF188: -2.281871628 | BH188: -57.00187163 | BJ188: 6.125742275e-17 | BK188: 90 | BL188: 90 | BM188: 0 | BN188: 90 | BO188: 146.9182878 | BP188: 90 | BQ188: 54.25026212 | BR188: 0 | BS188: 90 | BT188: 0 | BU188: 90 | BW188: 90 | BX188: 90 | BY188: 6.125742275e-17 | CI188: 0 | CJ188: 0 | CK188: 0 | CL188: 0 | CX188: 0
A189: 2 | B189: 56 | C189: 2.933333333 | D189: 1.795453465 | E189: 153.068198 | F189: -0.8362351186 | G189: 146.7446671 | H189: -56.74466707 | I189: 0.446828521 | J189: -0.317891647 | K189: 54.57043449 | L189: 0 | M189: 90 | O189: 0 | P189: 0 | Q189: 0 | R189: 0 | S189: 0 | T189: 0 | U189: 0 | V189: 0 | W189: 0 | X189: 0 | Y189: 0 | AA189: 176 | AT189: 0 | AU189: 0 | AV189: 146.7446671 | AW189: 0 | AY189: 0 | AZ189: =IF(L189=1,IF(L188=0,ROW(),0),0) -> 0 | BA189: =IF(L189=1,IF(L190=0,ROW(),0),0) -> 0 | BD189: 177 | BE189: 23.37165125 | BF189: -2.486870313 | BH189: -57.20687031 | BJ189: 6.125742275e-17 | BK189: 90 | BL189: 90 | BM189: 0 | BN189: 90 | BO189: 146.7446671 | BP189: 90 | BQ189: 54.57043449 | BR189: 0 | BS189: 90 | BT189: 0 | BU189: 90 | BW189: 90 | BX189: 90 | BY189: 6.125742275e-17 | CI189: 0 | CJ189: 0 | CK189: 0 | CL189: 0 | CX189: 0
A190: 2 | B190: 57 | C190: 2.95 | D190: =C190+$C$9 -> 1.812120131 | E190: 152.818198 | F190: -0.8345629564 | G190: 146.5703576 | H190: -56.57035762 | I190: 0.4506619589 | J190: -0.3168729567 | K190: 54.88788104 | L190: 0 | M190: 90 | O190: =IF($L190>0,1/F190,0) -> 0 | P190: 0 | Q190: 0 | R190: =IF($L190>0,P190*EXP(-Q190*O190),0) -> 0 | S190: 0 | T190: =IF($L190>0,S190*R190,0) -> 0 | U190: =IF($L190>0,IF(M190<=90,R190*COS(M190*PI()/180),0),0) -> 0 | V190: 0 | W190: =IF($L190,T190*(1+COS($E$6*PI()/180))/2,0) -> 0 | X190: =IF($L190>0,$X$9*(V190+T190)*(1-COS($E$6*PI()/180))/2,0) -> 0 | Y190: =IF($L190>0,U190+W190+X190,0) -> 0 | AA190: 177 | AT190: 0 | AU190: 0 | AV190: 146.5703576 | AW190: 0 | AY190: 0 | AZ190: 0 | BA190: 0 | BD190: 178 | BE190: 23.33521955 | BF190: -2.689703744 | BH190: -57.40970374 | BJ190: 6.125742275e-17 | BK190: 90 | BL190: 90 | BM190: 0 | BN190: 90 | BO190: 146.5703576 | BP190: 90 | BQ190: 54.88788104 | BR190: 0 | BS190: 90 | BT190: 0 | BU190: 90 | BW190: 90 | BX190: 90 | BY190: 6.125742275e-17 | CI190: 0 | CJ190: 0 | CK190: 0 | CL190: 0 | CX190: 0
A191: 2 | B191: 58 | C191: 2.966666667 | D191: 1.828786798 | E191: 152.568198 | F191: -0.8328765256 | G191: 146.3953707 | H191: -56.39537067 | I191: 0.4544868167 | J191: -0.3158455739 | K191: 55.20263461 | L191: 0 | M191: 90 | O191: 0 | P191: 0 | Q191: 0 | R191: 0 | S191: 0 | T191: 0 | U191: 0 | V191: 0 | W191: 0 | X191: 0 | Y191: 0 | AA191: 178 | AT191: 0 | AU191: 0 | AV191: 146.3953707 | AW191: 0 | AY191: 0 | AZ191: 0 | BA191: 0 | BD191: 179 | BE191: 23.29187312 | BF191: -2.890014704 | BH191: -57.6100147 | BJ191: 6.125742275e-17 | BK191: 90 | BL191: 90 | BM191: 0 | BN191: 90 | BO191: 146.3953707 | BP191: 90 | BQ191: 55.20263461 | BR191: 0 | BS191: 90 | BT191: 0 | BU191: 90 | BW191: 90 | BX191: 90 | BY191: 6.125742275e-17 | CI191: 0 | CJ191: 0 | CK191: 0 | CL191: 0 | CX191: 0
A192: 2 | B192: 59 | C192: 2.983333333 | D192: 1.845453465 | E192: 152.318198 | F192: -0.8311758583 | G192: 146.2197172 | H192: -56.21971722 | I192: 0.4583030218 | J192: -0.3148095181 | K192: 55.51472782 | L192: 0 | M192: 90 | O192: 0 | P192: 0 | Q192: 0 | R192: 0 | S192: 0 | T192: 0 | U192: 0 | V192: 0 | W192: 0 | X192: 0 | Y192: 0 | AA192: 179 | AT192: 0 | AU192: 0 | AV192: 146.2197172 | AW192: 0 | AY192: 0 | AZ192: 0 | BA192: 0 | BD192: 180 | BE192: 23.2416248 | BF192: -3.087448769 | BH192: -57.80744877 | BJ192: 6.125742275e-17 | BK192: 90 | BL192: 90 | BM192: 0 | BN192: 90 | BO192: 146.2197172 | BP192: 90 | BQ192: 55.51472782 | BR192: 0 | BS192: 90 | BT192: 0 | BU192: 90 | BW192: 90 | BX192: 90 | BY192: 6.125742275e-17 | CI192: 0 | CJ192: 0 | CK192: 0 | CL192: 0 | CX192: 0
A193: 3 | B193: 0 | C193: 3 | D193: 1.862120131 | E193: 152.068198 | F193: -0.829460987 | G193: 146.0434081 | H193: -56.04340809 | I193: 0.4621105015 | J193: -0.3137648092 | K193: 55.82419305 | L193: 0 | M193: 90 | O193: 0 | P193: 0 | Q193: 0 | R193: 0 | S193: 0 | T193: 0 | U193: 0 | V193: 0 | W193: 0 | X193: 0 | Y193: 0 | AA193: 180 | AT193: 0 | AU193: 0 | AV193: 146.0434081 | AW193: 0 | AY193: 0 | AZ193: 0 | BA193: 0 | BD193: 181 | BE193: 23.18448949 | BF193: -3.281654762 | BH193: -58.00165476 | BJ193: 6.125742275e-17 | BK193: 90 | BL193: 90 | BM193: 0 | BN193: 90 | BO193: 146.0434081 | BP193: 90 | BQ193: 55.82419305 | BR193: 0 | BS193: 90 | BT193: 0 | BU193: 90 | BW193: 90 | BX193: 90 | BY193: 6.125742275e-17 | CI193: 0 | CJ193: 0 | CK193: 0 | CL193: 0 | CX193: 0
A194: 3 | B194: 1 | C194: 3.016666667 | D194: 1.878786798 | E194: 151.818198 | F194: -0.8277319442 | G194: 145.8664539 | H194: -55.8664539 | I194: 0.4659091832 | J194: -0.3127114669 | K194: 56.13106247 | L194: 0 | M194: 90 | O194: 0 | P194: 0 | Q194: 0 | R194: 0 | S194: 0 | T194: 0 | U194: 0 | V194: 0 | W194: 0 | X194: 0 | Y194: 0 | AA194: 181 | AT194: 0 | AU194: 0 | AV194: 145.8664539 | AW194: 0 | AY194: 0 | AZ194: 0 | BA194: 0 | BD194: 182 | BE194: 23.12048412 | BF194: -3.472285204 | BH194: -58.1922852 | BJ194: 6.125742275e-17 | BK194: 90 | BL194: 90 | BM194: 0 | BN194: 90 | BO194: 145.8664539 | BP194: 90 | BQ194: 56.13106247 | BR194: 0 | BS194: 90 | BT194: 0 | BU194: 90 | BW194: 90 | BX194: 90 | BY194: 6.125742275e-17 | CI194: 0 | CJ194: 0 | CK194: 0 | CL194: 0 | CX194: 0
A195: 3 | B195: 2 | C195: 3.033333333 | D195: 1.895453465 | E195: 151.568198 | F195: -0.8259887629 | G195: 145.6888651 | H195: -55.6888651 | I195: 0.4696989947 | J195: -0.3116495114 | K195: 56.43536797 | L195: 0 | M195: 90 | O195: 0 | P195: 0 | Q195: 0 | R195: 0 | S195: 0 | T195: 0 | U195: 0 | V195: 0 | W195: 0 | X195: 0 | Y195: 0 | AA195: 182 | AT195: 0 | AU195: 0 | AV195: 145.6888651 | AW195: 0 | AY195: 0 | AZ195: 0 | BA195: 0 | BD195: 183 | BE195: 23.04962764 | BF195: -3.658996762 | BH195: -58.37899676 | BJ195: 6.125742275e-17 | BK195: 90 | BL195: 90 | BM195: 0 | BN195: 90 | BO195: 145.6888651 | BP195: 90 | BQ195: 56.43536797 | BR195: 0 | BS195: 90 | BT195: 0 | BU195: 90 | BW195: 90 | BX195: 90 | BY195: 6.125742275e-17 | CI195: 0 | CJ195: 0 | CK195: 0 | CL195: 0 | CX195: 0
A196: 3 | B196: 3 | C196: 3.05 | D196: 1.912120131 | E196: 151.318198 | F196: -0.8242314762 | G196: 145.510652 | H196: -55.51065199 | I196: 0.4734798638 | J196: -0.3105789628 | K196: 56.7371412 | L196: 0 | M196: 90 | O196: 0 | P196: 0 | Q196: 0 | R196: 0 | S196: 0 | T196: 0 | U196: 0 | V196: 0 | W196: 0 | X196: 0 | Y196: 0 | AA196: 183 | AT196: 0 | AU196: 0 | AV196: 145.510652 | AW196: 0 | AY196: 0 | AZ196: 0 | BA196: 0 | BD196: 184 | BE196: 22.97194107 | BF196: -3.841450688 | BH196: -58.56145069 | BJ196: 6.125742275e-17 | BK196: 90 | BL196: 90 | BM196: 0 | BN196: 90 | BO196: 145.510652 | BP196: 90 | BQ196: 56.7371412 | BR196: 0 | BS196: 90 | BT196: 0 | BU196: 90 | BW196: 90 | BX196: 90 | BY196: 6.125742275e-17 | CI196: 0 | CJ196: 0 | CK196: 0 | CL196: 0 | CX196: 0
A197: 3 | B197: 4 | C197: 3.066666667 | D197: 1.928786798 | E197: 151.068198 | F197: -0.8224601177 | G197: 145.3318247 | H197: -55.33182466 | I197: 0.4772517186 | J197: -0.3094998416 | K197: 57.03641355 | L197: 0 | M197: 90 | O197: 0 | P197: 0 | Q197: 0 | R197: 0 | S197: 0 | T197: 0 | U197: 0 | V197: 0 | W197: 0 | X197: 0 | Y197: 0 | AA197: 184 | AT197: 0 | AU197: 0 | AV197: 145.3318247 | AW197: 0 | AY197: 0 | AZ197: 0 | BA197: 0 | BD197: 185 | BE197: 22.88744741 | BF197: -4.019313257 | BH197: -58.73931326 | BJ197: 6.125742275e-17 | BK197: 90 | BL197: 90 | BM197: 0 | BN197: 90 | BO197: 145.3318247 | BP197: 90 | BQ197: 57.03641355 | BR197: 0 | BS197: 90 | BT197: 0 | BU197: 90 | BW197: 90 | BX197: 90 | BY197: 6.125742275e-17 | CI197: 0 | CJ197: 0 | CK197: 0 | CL197: 0 | CX197: 0
A198: 3 | B198: 5 | C198: 3.083333333 | D198: 1.945453465 | E198: 150.818198 | F198: -0.820674721 | G198: 145.1523931 | H198: -55.15239305 | I198: 0.4810144871 | J198: -0.3084121682 | K198: 57.33321615 | L198: 0 | M198: 90 | O198: 0 | P198: 0 | Q198: 0 | R198: 0 | S198: 0 | T198: 0 | U198: 0 | V198: 0 | W198: 0 | X198: 0 | Y198: 0 | AA198: 185 | AT198: 0 | AU198: 0 | AV198: 145.1523931 | AW198: 0 | AY198: 0 | AZ198: 0 | BA198: 0 | BD198: 186 | BE198: 22.79617171 | BF198: -4.192256196 | BH198: -58.9122562 | BJ198: 6.125742275e-17 | BK198: 90 | BL198: 90 | BM198: 0 | BN198: 90 | BO198: 145.1523931 | BP198: 90 | BQ198: 57.33321615 | BR198: 0 | BS198: 90 | BT198: 0 | BU198: 90 | BW198: 90 | BX198: 90 | BY198: 6.125742275e-17 | CI198: 0 | CJ198: 0 | CK198: 0 | CL198: 0 | CX198: 0
A199: 3 | B199: 6 | C199: 3.1 | D199: 1.962120131 | E199: 150.568198 | F199: -0.8188753201 | G199: 144.9723669 | H199: -54.97236695 | I199: 0.4847680978 | J199: -0.3073159634 | K199: 57.62757984 | L199: 0 | M199: 90 | O199: 0 | P199: 0 | Q199: 0 | R199: 0 | S199: 0 | T199: 0 | U199: 0 | V199: 0 | W199: 0 | X199: 0 | Y199: 0 | AA199: 186 | AT199: 0 | AU199: 0 | AV199: 144.9723669 | AW199: 0 | AY199: 0 | AZ199: 0 | BA199: 0 | BD199: 187 | BE199: 22.69814101 | BF199: -4.359957113 | BH199: -59.07995711 | BJ199: 6.125742275e-17 | BK199: 90 | BL199: 90 | BM199: 0 | BN199: 90 | BO199: 144.9723669 | BP199: 90 | BQ199: 57.62757984 | BR199: 0 | BS199: 90 | BT199: 0 | BU199: 90 | BW199: 90 | BX199: 90 | BY199: 6.125742275e-17 | CI199: 0 | CJ199: 0 | CK199: 0 | CL199: 0 | CX199: 0
A200: 3 | B200: 7 | C200: 3.116666667 | D200: 1.978786798 | E200: 150.318198 | F200: -0.8170619494 | G200: 144.7917559 | H200: -54.79175594 | I200: 0.4885124793 | J200: -0.3062112481 | K200: 57.9195352 | L200: 0 | M200: 90 | O200: 0 | P200: 0 | Q200: 0 | R200: 0 | S200: 0 | T200: 0 | U200: 0 | V200: 0 | W200: 0 | X200: 0 | Y200: 0 | AA200: 187 | AT200: 0 | AU200: 0 | AV200: 144.7917559 | AW200: 0 | AY200: 0 | AZ200: 0 | BA200: 0 | BD200: 188 | BE200: 22.59338436 | BF200: -4.522099904 | BH200: -59.2420999 | BJ200: 6.125742275e-17 | BK200: 90 | BL200: 90 | BM200: 0 | BN200: 90 | BO200: 144.7917559 | BP200: 90 | BQ200: 57.9195352 | BR200: 0 | BS200: 90 | BT200: 0 | BU200: 90 | BW200: 90 | BX200: 90 | BY200: 6.125742275e-17 | CI200: 0 | CJ200: 0 | CK200: 0 | CL200: 0 | CX200: 0
... 362 more rows
